{"text_format":"1","workbook":"xlsx","n_sheets":59,"sheets":["Control","Title Sheet","Overview","Set Up","Model Inputs","Intervention Cost","RR tables","Additional Monetary Impact","Utility","MENU1B5","MENU1B6","MENU1B7","MENU1B8","Utility reference","Overall","Per student","MENU2B3","MENU2B4","MENU2B5","MENU2B6","MENU2B7","MENU2B8","MENU3B1","MENU3B2","MENU3B3","MENU3B4","MENU3B5","MENU3B6","MENU3B7","MENU3B8","MENU4B1","MENU4B2","MENU4B3","MENU4B4","MENU4B5","MENU4B6","MENU4B7","MENU4B8","MENU5B1","MENU5B2","MENU5B3","MENU5B4","MENU5B5","MENU5B6","MENU5B7","MENU5B8","MENU6B1","MENU6B2","MENU6B3","MENU6B4","MENU6B5","MENU6B6","MENU6B7","MENU6B8","Sensitivity Analysis","Templates","Changes log","Sheet2","Sheet1"],"not_rendered":{"charts":33,"images":8,"macros":1,"external_links":1,"defined_names":45,"comments":4,"pivot_tables":0},"unopened":[],"bounds":{"document_bytes":16777216,"sheet_cells":100000,"rows_first":2000,"rows_last":500,"rows_between":2000,"halvings":0,"cell_chars":16384,"cell_head_chars":4096},"cells_cut":0,"cells_raw":0,"read":"whole","date_system":"1900"}

{"sheet":"Control","index":0,"n_rows":32,"n_cols":10,"rows_kept":32,"cut":false,"hidden":false,"merged":[[0,1,0,8]]}
["Menu Text","Button Text/Sheet Names"]
["Inputs","Set Up","Outcome Relative Risk","Additional Monetary Impact","Utility",".",".",".","."]
["Results","Overall","Per student","Sensitivity Analysis",".",".",".",".","."]
[".",".",".",".",".",".",".",".","."]
[".",".",".",".",".",".",".",".","."]
[".",".",".",".",".",".",".",".","."]
[".",".",".",".",".",".",".",".","."]
[]
[]
[]
[]
[null,null,null,null,null,null,null,null,null,"Colour coding of sheet tabs:"]
[]
[null,null,null,null,null,null,null,null,null,"LIVE Sheet"]
[]
[null,null,null,null,null,null,null,null,null,"Inputs"]
[]
[null,"Hide using this ---->",".",null,null,null,null,null,null,"Calculations"]
[]
[null,null,null,null,null,null,null,null,null,"Results"]
[]
[]
["Enter Title here:","Measuring outcomes following promotion of social, emotional and mental wellbeing in schools"]
[]
[]
[]
["Inputs","Set Up","Outcome Relative Risk","Additional Monetary Impact","Utility","MENU1B5","MENU1B6","MENU1B7","MENU1B8"]
["Results","Overall","Per student","Sensitivity Analysis","MENU2B4","MENU2B5","MENU2B6","MENU2B7","MENU2B8"]
["MENU3","MENU3B1","MENU3B2","MENU3B3","MENU3B4","MENU3B5","MENU3B6","MENU3B7","MENU3B8"]
["MENU4","MENU4B1","MENU4B2","MENU4B3","MENU4B4","MENU4B5","MENU4B6","MENU4B7","MENU4B8"]
["MENU5","MENU5B1","MENU5B2","MENU5B3","MENU5B4","MENU5B5","MENU5B6","MENU5B7","MENU5B8"]
["MENU6","MENU6B1","MENU6B2","MENU6B3","MENU6B4","MENU6B5","MENU6B6","MENU6B7","MENU6B8"]

{"sheet":"Title Sheet","index":1,"n_rows":27,"n_cols":19,"rows_kept":27,"cut":false,"hidden":false,"merged":[[26,3,56,12],[11,3,13,13],[17,3,17,5],[19,3,19,5],[21,3,21,5],[23,3,23,5]]}
[]
[]
[]
[null,null,null,null,null,null,null,null,null,null,null,null,null,null,null,null,null,null,"Laura Coote, Erin Barker, Matthew Taylor"]
[]
[]
[]
[]
[]
[]
[]
[null,null,null,"Warning for model users: Due to substantial variability in the interventions available and heterogeneity across schools it is neither possible, nor judicious, for this model to provide ‘generalised’ results. It is recommended that the model is used to explore the potential economic and wellbeing implications so that each school or wider decision maker can evaluate its own most likely scenario. "]
[]
[]
[null,null,null,"Explanatory video on how to use the model"]
[null,null,null,"Model key:"]
[]
[null,null,null,"Blue background",null,null,null,"Indicates input cells. These can be changed as appropriate to your requirements."]
[]
[null,null,null,"Orange background",null,null,null,"Indicates input cells where placeholder data have been used. These should be updated as and when data become available. "]
[]
[null,null,null,"Red text",null,null,null,"Indicates a formula cell. These are dependent upon other cells and should not be changed. There are no password or protected sheets. "]
[]
[null,null,null,"Comments",null,null,null,"A red mark in the corner of a cell indicates a comment. To view the comment, hover the pointer over the cell. "]
[]
[]
[null,null,null,"Background to the model\n\nThe model objective is to inform the impact of interventions on a range of student outcomes following an update to NICE guideline for social, emotional and mental wellbeing in primary and secondary education\n\nThe updated guideline and model is for:\n• Teachers, school support staff and others working in schools with – or responsible for – children and young people \n• School leadership teams, including governors and leadership teams of multi-academy trusts \n• Practitioners with a health or social care remit (including public health, mental health and social workers) working in the NHS or local authorities \n• Commissioners and providers of interventions and services for child social, emotional and mental wellbeing\n• The wider public, private, voluntary and community sectors working with children and young people\n\nIntervention approaches include:\n• Universal: curriculum content and classroom-based interventions focused on social, emotional and mental wellbeing\n• Whole-school: an integrated approach that includes and goes beyond teaching and learning in the classroom to all aspects of the life of a school including culture, ethos and environment, as well as partnerships with parents or carers and families, outside agencies, and the wider community\n• Targeted: social or emotional support such as individual or small group interventions for areas such as self-esteem, resilience or coping skills for children and young people who need extra support in developing social and emotional skills\n• Transition: Support during periods of transition (for example developmental transitions such as puberty, life transitions such as family break-ups or bereavement, and educational transitions such as moving from primary to secondary school\n\nStudent outcomes studied include:\n• Emotional distress\n• Behavioural skills\n• Social and emotional skills\n• Self-esteem\n• Bullying perpetration\n\nThe model aims to calculate the number of students benefiting/worse-off following an intervention and the cost per outcome case\nThose working in healthcare may also be interested in the associated QALYs, therefore, an option to include utility values is present when using the societal perspective, determined on the model set up page\n\nFor greater detail on the model inputs and usability please refer to the model report: [insert link]"]

{"sheet":"Overview","index":2,"n_rows":37,"n_cols":6,"rows_kept":37,"cut":false,"hidden":true,"merged":[]}
[]
[]
[]
[]
[]
[]
[]
[]
[]
[]
[null,null,null,"Navigating the model"]
[]
[]
[]
[]
[]
[]
[]
[]
[]
[]
[]
[]
[]
[]
[]
[]
[]
[]
[]
[]
[]
[]
[]
[]
[]
[null,null,null,"Model overview",null,"Include decision problem, model structure, details on time horizon, cycle length (if applicable)"]

{"sheet":"Set Up","index":3,"n_rows":103,"n_cols":74,"rows_kept":103,"cut":false,"hidden":false,"merged":[[87,3,87,4]]}
[]
[]
[]
[]
[]
[]
[]
[]
[]
[]
[null,null,null,"Perspective:"]
[]
[null,null,null,"Approach:","Universal",null,"Total cost of intervention",{"$f":"IF('Intervention Cost'!D28=\"\",'Intervention Cost'!D24,'Intervention Cost'!D28)","v":0}]
[]
[null,null,null,"Intervention type:","Please select...",null,"Number of students",100]
[]
[null,null,null,"Outcome:","Please select..."]
[]
[]
[null,null,null,"Effectiveness",null,"Base case","User defined","Used in model"]
[null,null,null,{"$f":"IF(OR(E15 = \"Please select...\",E17 = \"Please select...\"), \"Please select using the dropdown menus\", CONCATENATE(\"Relative risk of developing \",F89))","v":"Please select using the dropdown menus"},null,{"$f":"_xlfn.IFNA(F90,\"\")","v":""},null,{"$f":" IF(G21=\"\",IF(OR(F21 = \"\", F21=\"No available evidence\"), 0,F21),G21)","v":0}]
[]
[]
[]
[]
[]
[]
[]
[]
[]
[]
[]
[]
[]
[]
[null,null,null,null,null,null,null,null,null,null,null,null,null,null,null,null,null,null,null,null,null,null,null,null,null,null,null,null,null,null,null,null,null,null,null,null,null,null,null,null,null,null,null,null,null,null,null,null,null,null,null,null,null,null,null,null,null,null,null,null,null,null,null,null,null,null,null,null,null,null,null,null,null,"cost per case"]
[null,null,null,null,null,null,null,null,null,null,null,null,null,null,null,null,null,null,null,null,null,null,null,null,null,null,null,null,null,null,null,null,null,null,null,null,null,null,null,null,null,null,null,null,null,null,null,null,null,null,null,null,null,null,null,null,null,null,null,null,null,null,null,null,null,null,null,null,null,null,null,"cost of intervention",null,{"$f":"Overall!E14","v":0}]
[null,null,null,null,null,null,null,null,null,null,null,null,null,null,null,null,null,null,null,null,null,null,null,null,null,null,null,null,null,null,null,null,null,null,null,null,null,null,null,null,null,null,null,null,null,null,null,null,null,null,null,null,null,null,null,null,null,null,null,null,null,null,null,null,null,null,null,null,null,null,null,null,500,0]
[null,null,null,null,null,null,null,null,null,null,null,null,null,null,null,null,null,null,null,null,null,null,null,null,null,null,null,null,null,null,null,null,null,null,null,null,null,null,null,null,null,null,null,null,null,null,null,null,null,null,null,null,null,null,null,null,null,null,null,null,null,null,null,null,null,null,null,null,null,null,null,null,1000,0]
[null,null,null,null,null,null,null,null,null,null,null,null,null,null,null,null,null,null,null,null,null,null,null,null,null,null,null,null,null,null,null,null,null,null,null,null,null,null,null,null,null,null,null,null,null,null,null,null,null,null,null,null,null,null,null,null,null,null,null,null,null,null,null,null,null,null,null,null,null,null,null,null,1500,0]
[null,null,null,null,null,null,null,null,null,null,null,null,null,null,null,null,null,null,null,null,null,null,null,null,null,null,null,null,null,null,null,null,null,null,null,null,null,null,null,null,null,null,null,null,null,null,null,null,null,null,null,null,null,null,null,null,null,null,null,null,null,null,null,null,null,null,null,null,null,null,null,null,2000,0]
[null,null,null,null,null,null,null,null,null,null,null,null,null,null,null,null,null,null,null,null,null,null,null,null,null,null,null,null,null,null,null,null,null,null,null,null,null,null,null,null,null,null,null,null,null,null,null,null,null,null,null,null,null,null,null,null,null,null,null,null,null,null,null,null,null,null,null,null,null,null,null,null,2500,0]
[null,null,null,null,null,null,null,null,null,null,null,null,null,null,null,null,null,null,null,null,null,null,null,null,null,null,null,null,null,null,null,null,null,null,null,null,null,null,null,null,null,null,null,null,null,null,null,null,null,null,null,null,null,null,null,null,null,null,null,null,null,null,null,null,null,null,null,null,null,null,null,null,3000,0]
[null,null,null,null,null,null,null,null,null,null,null,null,null,null,null,null,null,null,null,null,null,null,null,null,null,null,null,null,null,null,null,null,null,null,null,null,null,null,null,null,null,null,null,null,null,null,null,null,null,null,null,null,null,null,null,null,null,null,null,null,null,null,null,null,null,null,null,null,null,null,null,null,3500,0]
[null,null,null,null,null,null,null,null,null,null,null,null,null,null,null,null,null,null,null,null,null,null,null,null,null,null,null,null,null,null,null,null,null,null,null,null,null,null,null,null,null,null,null,null,null,null,null,null,null,null,null,null,null,null,null,null,null,null,null,null,null,null,null,null,null,null,null,null,null,null,null,null,4000,0]
[null,null,null,null,null,null,null,null,null,null,null,null,null,null,null,null,null,null,null,null,null,null,null,null,null,null,null,null,null,null,null,null,null,null,null,null,null,null,null,null,null,null,null,null,null,null,null,null,null,null,null,null,null,null,null,null,null,null,null,null,null,null,null,null,null,null,null,null,null,null,null,null,4500,0]
[null,null,null,null,null,null,null,null,null,null,null,null,null,null,null,null,null,null,null,null,null,null,null,null,null,null,null,null,null,null,null,null,null,null,null,null,null,null,null,null,null,null,null,null,null,null,null,null,null,null,null,null,null,null,null,null,null,null,null,null,null,null,null,null,null,null,null,null,null,null,null,null,5000,0]
[]
[null,null,null,null,null,null,null,null,null,null,null,null,null,null,null,null,null,null,null,null,null,null,null,null,null,null,null,null,null,null,null,null,null,null,null,null,null,null,null,null,null,null,null,null,null,null,null,null,null,null,null,null,null,null,null,null,null,null,null,null,null,null,null,null,null,null,null,null,null,null,null,"number of students",null,{"$f":"BV37","v":0}]
[null,null,null,null,null,null,null,null,null,null,null,null,null,null,null,null,null,null,null,null,null,null,null,null,null,null,null,null,null,null,null,null,null,null,null,null,null,null,null,null,null,null,null,null,null,null,null,null,null,null,null,null,null,null,null,null,null,null,null,null,null,null,null,null,null,null,null,null,null,null,null,null,250,0]
[null,null,null,null,null,null,null,null,null,null,null,null,null,null,null,null,null,null,null,null,null,null,null,null,null,null,null,null,null,null,null,null,null,null,null,null,null,null,null,null,null,null,null,null,null,null,null,null,null,null,null,null,null,null,null,null,null,null,null,null,null,null,null,null,null,null,null,null,null,null,null,null,500,0]
[null,null,null,null,null,null,null,null,null,null,null,null,null,null,null,null,null,null,null,null,null,null,null,null,null,null,null,null,null,null,null,null,null,null,null,null,null,null,null,null,null,null,null,null,null,null,null,null,null,null,null,null,null,null,null,null,null,null,null,null,null,null,null,null,null,null,null,null,null,null,null,null,750,0]
[null,null,null,null,null,null,null,null,null,null,null,null,null,null,null,null,null,null,null,null,null,null,null,null,null,null,null,null,null,null,null,null,null,null,null,null,null,null,null,null,null,null,null,null,null,null,null,null,null,null,null,null,null,null,null,null,null,null,null,null,null,null,null,null,null,null,null,null,null,null,null,null,1000,0]
[null,null,null,null,null,null,null,null,null,null,null,null,null,null,null,null,null,null,null,null,null,null,null,null,null,null,null,null,null,null,null,null,null,null,null,null,null,null,null,null,null,null,null,null,null,null,null,null,null,null,null,null,null,null,null,null,null,null,null,null,null,null,null,null,null,null,null,null,null,null,null,null,1250,0]
[null,null,null,null,null,null,null,null,null,null,null,null,null,null,null,null,null,null,null,null,null,null,null,null,null,null,null,null,null,null,null,null,null,null,null,null,null,null,null,null,null,null,null,null,null,null,null,null,null,null,null,null,null,null,null,null,null,null,null,null,null,null,null,null,null,null,null,null,null,null,null,null,1500,0]
[null,null,null,null,null,null,null,null,null,null,null,null,null,null,null,null,null,null,null,null,null,null,null,null,null,null,null,null,null,null,null,null,null,null,null,null,null,null,null,null,null,null,null,null,null,null,null,null,null,null,null,null,null,null,null,null,null,null,null,null,null,null,null,null,null,null,null,null,null,null,null,null,1750,0]
[null,null,null,null,null,null,null,null,null,null,null,null,null,null,null,null,null,null,null,null,null,null,null,null,null,null,null,null,null,null,null,null,null,null,null,null,null,null,null,null,null,null,null,null,null,null,null,null,null,null,null,null,null,null,null,null,null,null,null,null,null,null,null,null,null,null,null,null,null,null,null,null,2000,0]
[null,null,null,null,null,null,null,null,null,null,null,null,null,null,null,null,null,null,null,null,null,null,null,null,null,null,null,null,null,null,null,null,null,null,null,null,null,null,null,null,null,null,null,null,null,null,null,null,null,null,null,null,null,null,null,null,null,null,null,null,null,null,null,null,null,null,null,null,null,null,null,null,2250,0]
[]
[]
[]
[]
[null,null,null,null,null,null,null,null,null,null,null,null,null,null,null,null,null,null,null,null,null,null,null,null,null,null,null,null,null,null,null,null,null,null,null,null,null,null,null,null,null,null,null,null,null,null,null,null,null,null,null,null,null,null,null,null,null,null,null,null,null,null,null,null,null,null,null,null,null,null,null,null,null,"cost per case"]
[null,null,null,null,null,null,null,null,null,null,null,null,null,null,null,null,null,null,null,null,null,null,null,null,null,null,null,null,null,null,null,null,null,null,null,null,null,null,null,null,null,null,null,null,null,null,null,null,null,null,null,null,null,null,null,null,null,null,null,null,null,null,null,null,null,null,null,null,null,null,null,null,null,{"$f":"Overall!E14","v":0}]
[null,null,null,null,null,null,null,null,null,null,null,null,null,null,null,null,null,null,null,null,null,null,null,null,null,null,null,null,null,null,null,null,null,null,null,null,null,null,null,null,null,null,null,null,null,null,null,null,null,null,null,null,null,null,null,null,null,null,null,null,null,null,null,null,null,null,null,null,null,null,null,"RR",0.15,0]
[null,null,null,null,null,null,null,null,null,null,null,null,null,null,null,null,null,null,null,null,null,null,null,null,null,null,null,null,null,null,null,null,null,null,null,null,null,null,null,null,null,null,null,null,null,null,null,null,null,null,null,null,null,null,null,null,null,null,null,null,null,null,null,null,null,null,null,null,null,null,null,null,0.3,0]
[null,null,null,null,null,null,null,null,null,null,null,null,null,null,null,null,null,null,null,null,null,null,null,null,null,null,null,null,null,null,null,null,null,null,null,null,null,null,null,null,null,null,null,null,null,null,null,null,null,null,null,null,null,null,null,null,null,null,null,null,null,null,null,null,null,null,null,null,null,null,null,null,0.45,0]
[null,null,null,null,null,null,null,null,null,null,null,null,null,null,null,null,null,null,null,null,null,null,null,null,null,null,null,null,null,null,null,null,null,null,null,null,null,null,null,null,null,null,null,null,null,null,null,null,null,null,null,null,null,null,null,null,null,null,null,null,null,null,null,null,null,null,null,null,null,null,null,null,0.6,0]
[null,null,null,null,null,null,null,null,null,null,null,null,null,null,null,null,null,null,null,null,null,null,null,null,null,null,null,null,null,null,null,null,null,null,null,null,null,null,null,null,null,null,null,null,null,null,null,null,null,null,null,null,null,null,null,null,null,null,null,null,null,null,null,null,null,null,null,null,null,null,null,null,0.75,0]
[null,null,null,null,null,null,null,null,null,null,null,null,null,null,null,null,null,null,null,null,null,null,null,null,null,null,null,null,null,null,null,null,null,null,null,null,null,null,null,null,null,null,null,null,null,null,null,null,null,null,null,null,null,null,null,null,null,null,null,null,null,null,null,null,null,null,null,null,null,null,null,null,0.9,0]
[null,null,null,null,null,null,null,null,null,null,null,null,null,null,null,null,null,null,null,null,null,null,null,null,null,null,null,null,null,null,null,null,null,null,null,null,null,null,null,null,null,null,null,null,null,null,null,null,null,null,null,null,null,null,null,null,null,null,null,null,null,null,null,null,null,null,null,null,null,null,null,null,1.05,0]
[null,null,null,null,null,null,null,null,null,null,null,null,null,null,null,null,null,null,null,null,null,null,null,null,null,null,null,null,null,null,null,null,null,null,null,null,null,null,null,null,null,null,null,null,null,null,null,null,null,null,null,null,null,null,null,null,null,null,null,null,null,null,null,null,null,null,null,null,null,null,null,null,1.2,0]
[null,null,null,null,null,null,null,null,null,null,null,null,null,null,null,null,null,null,null,null,null,null,null,null,null,null,null,null,null,null,null,null,null,null,null,null,null,null,null,null,null,null,null,null,null,null,null,null,null,null,null,null,null,null,null,null,null,null,null,null,null,null,null,null,null,null,null,null,null,null,null,null,1.35,0]
[null,null,null,null,null,null,null,null,null,null,null,null,null,null,null,null,null,null,null,null,null,null,null,null,null,null,null,null,null,null,null,null,null,null,null,null,null,null,null,null,null,null,null,null,null,null,null,null,null,null,null,null,null,null,null,null,null,null,null,null,null,null,null,null,null,null,null,null,null,null,null,null,1.5,0]
[null,null,null,null,null,null,null,null,null,null,null,null,null,null,null,null,null,null,null,null,null,null,null,null,null,null,null,null,null,null,null,null,null,null,null,null,null,null,null,null,null,null,null,null,null,null,null,null,null,null,null,null,null,null,null,null,null,null,null,null,null,null,null,null,null,null,null,null,null,null,null,null,1.65,0]
[null,null,null,null,null,null,null,null,null,null,null,null,null,null,null,null,null,null,null,null,null,null,null,null,null,null,null,null,null,null,null,null,null,null,null,null,null,null,null,null,null,null,null,null,null,null,null,null,null,null,null,null,null,null,null,null,null,null,null,null,null,null,null,null,null,null,null,null,null,null,null,null,1.8,0]
[null,null,null,null,null,null,null,null,null,null,null,null,null,null,null,null,null,null,null,null,null,null,null,null,null,null,null,null,null,null,null,null,null,null,null,null,null,null,null,null,null,null,null,null,null,null,null,null,null,null,null,null,null,null,null,null,null,null,null,null,null,null,null,null,null,null,null,null,null,null,null,null,1.95,0]
[null,null,null,null,null,null,null,null,null,null,null,null,null,null,null,null,null,null,null,null,null,null,null,null,null,null,null,null,null,null,null,null,null,null,null,null,null,null,null,null,null,null,null,null,null,null,null,null,null,null,null,null,null,null,null,null,null,null,null,null,null,null,null,null,null,null,null,null,null,null,null,null,2.1,0]
[]
[]
[]
[]
[]
[]
[]
[]
[]
[null,null,null,"Perspective",null,"Relative Risk"]
[null,null,null,1,"Educational",{"$f":"LOWER(E17)","v":"please select..."}]
[null,null,null,null,"Societal",{"$f":"IF(E13=\"Universal\", VLOOKUP(E15,'RR tables'!B12:X36,'Model Inputs'!E115+3,FALSE),IF(E13=\"Whole_school\", VLOOKUP(E15,'RR tables'!B42:X43,'Model Inputs'!E115+3,FALSE),IF(E13=\"Targeted\", VLOOKUP(E15,'RR tables'!B49:X56,'Model Inputs'!E115+3,FALSE),IF(E13=\"Transitions\", VLOOKUP(E15,'RR tables'!B62:X62,'Model Inputs'!E115+3,FALSE)))))","v":{"$error":"#N/A"}}]
[]
[]
[]
[]
[]
[]
[]
[null,null,null,null,null,null,null,null,null,null,null,null,{"$f":"IFERROR(INDEX(#REF!,SMALL(IF($BE$127=$BG$116:$BG$122,ROW(#REF!)-102,\"\"),ROW()-103)),\"\")","v":""}]
[null,null,null,null,null,null,null,null,null,null,null,null,{"$f":"IFERROR(INDEX(#REF!,SMALL(IF($BE$127=$BG$116:$BG$122,ROW(#REF!)-102,\"\"),ROW()-103)),\"\")","v":""}]
[null,null,null,null,null,null,null,null,null,null,null,null,{"$f":"IFERROR(INDEX(#REF!,SMALL(IF($BE$127=$BG$116:$BG$122,ROW(#REF!)-102,\"\"),ROW()-103)),\"\")","v":""}]
[null,null,null,null,null,null,null,null,null,null,null,null,{"$f":"IFERROR(INDEX(#REF!,SMALL(IF($BE$127=$BG$116:$BG$122,ROW(#REF!)-102,\"\"),ROW()-103)),\"\")","v":""}]
[null,null,null,null,null,null,null,null,null,null,null,null,{"$f":"IFERROR(INDEX(#REF!,SMALL(IF($BE$127=$BG$116:$BG$122,ROW(#REF!)-102,\"\"),ROW()-103)),\"\")","v":""}]
[null,null,null,null,null,null,null,null,null,null,null,null,{"$f":"IFERROR(INDEX(#REF!,SMALL(IF($BE$117=$BG$116:$BG$122,ROW(#REF!)-43,\"\"),ROW()-44)),\"\")","v":""}]

{"sheet":"Model Inputs","index":4,"n_rows":305,"n_cols":106,"rows_kept":305,"cut":false,"hidden":false,"merged":[[289,5,293,5],[284,6,284,32],[286,5,288,5],[13,79,13,104],[15,78,17,78],[26,73,26,98],[31,78,35,78],[38,79,38,104],[40,78,42,78],[43,78,47,78],[51,79,51,104],[53,78,55,78],[56,78,60,78],[42,5,42,6]]}
[]
[]
[]
[]
[]
[]
[]
[]
[]
[]
[]
[]
[null,null,null,"Interventions",null,null,null,null,null,null,null,"Utility "]
[null,null,null,"Approaches","Universal","Whole_school","Targeted","Transitions","Outcomes","Column number on RR table sheet",null,"Inputs",null,null,"QALY Calculation",null,null,null,null,null,null,null,"FRIENDS for Life","CBT","FRIENDS","Zippy's Friends","PATHS","RAP","LARS & LISA","SPARX-R","Op Volle Kracht","AOP","Mindfulness","HeadStrong","MoodGYM","Pozik Bizi","E-Couch","E-GAD","MindOut","Coping Power Unviversal","Taking Action Program","ThisWayUp","ITPFSA","StrongKids","Yoga","Working Things Out","Uplifting out health and wellbeing",null,null,null,null,null,null,null,null,null,null,null,null,null,null,null,null,null,null,null,null,null,null,null,null,null,null,null,null,null,null,"Universal",null,"    Outcomes (RR)"]
[null,null,null,"Universal","FRIENDS_for_Life","Antibullying_with_curriculum","MH_group_specialist","Transition_between_schools",{"$f":"'RR tables'!E11","v":"Emotional distress"},1,null,"Monetary value per QALY",{"$f":"Utility!E12","v":20000},null,"Improvement?",{"$f":"IF(AND(M38>=1,G44=1),1,IF(AND(M38<1,G44=1),-1,IF(AND(M38>=1,G44=2),-1,IF(AND(M38<1, G44=2),1))))","v":{"$error":"#N/A"}},null,null,null,null,null,null,"Emotional distress","Emotional distress","Emotional distress","X - Emotional distress","X - Emotional distress","Emotional distress","Emotional distress","Emotional distress","Emotional distress","Emotional distress","Emotional distress","Emotional distress","Emotional distress","Emotional distress","Emotional distress","Emotional distress","Emotional distress","Emotional distress","Emotional distress","Emotional distress","Emotional distress","X - Emotional distress","X - Emotional distress","X - Emotional distress","X - Emotional distress",null,null,null,null,null,null,null,null,null,null,null,null,null,null,null,null,null,null,null,null,null,null,null,null,null,null,null,null,null,null,"Intervention type","Description","Emotional distress","Depression","Self-esteem","Empathy","Psychological problems","Emotional wellbeing","Wellbeing","Social and emotional skills","Cooperation","Social adjustment","Behavioural outcomes","Behavioural outcomes (difficulties)","Behavioural outcomes (prosocial)","Perpetration","Victimisation","Perpetration (primary)","Perpetration (secondary)","Victimisation (primary)","Victimisation (secondary)","Cyberbullying perpetration","Cyberbullying victimisation","Exclusion","Truancy","School attendance","School climate","Response"]
[null,null,null,"Whole_school","CBT","Antibullying_without_curriculum","MH_individual_specialist",null,{"$f":"'RR tables'!G11","v":"Behavioural skills"},3,null,"Discount value",{"$f":"Utility!E13","v":3.5000000000000003E-2},null,"Total QALYs",{"$f":"IF('Set Up'!D89=1,0,VLOOKUP('Model Inputs'!M17,'Model Inputs'!L20:P30,5,FALSE))*P15*M33","v":{"$error":"#N/A"}},null,null,null,null,null,null,"Behavioural skills","X - Behavioural skills","X - Behavioural skills","Behavioural skills","Behavioural skills","Behavioural skills","X - Behavioural skills","X - Behavioural skills","X - Behavioural skills","Behavioural skills","X - Behavioural skills","X - Behavioural skills","X - Behavioural skills","Behavioural skills","X - Behavioural skills","X - Behavioural skills","X - Behavioural skills","Behavioural skills","X - Behavioural skills","X - Behavioural skills","X - Behavioural skills","X - Behavioural skills","X - Behavioural skills","Behavioural skills","X - Behavioural skills",null,null,null,null,null,null,null,null,null,null,null,null,null,null,null,null,null,null,null,null,null,null,null,null,null,null,null,null,null,1,"MH group (specialist)","Offer individual or group support to children and young people who have been identified as needing additional social and emotional support and/or mental health support","No available evidence",0.51,"No available evidence","No available evidence","No available evidence","No available evidence","No available evidence","No available evidence","No available evidence","No available evidence","No available evidence","No available evidence","No available evidence","No available evidence","No available evidence","No available evidence","No available evidence","No available evidence","No available evidence","No available evidence","No available evidence","No available evidence","No available evidence","No available evidence","No available evidence",1.76]
[null,null,null,"Targeted","FRIENDS",null,"MH_group_school_staff",null,{"$f":"'RR tables'!I11","v":"Social and emotional skills"},5,null,"Length of benefit",{"$f":"Utility!D92","v":1},null,"QALY value",{"$f":"P16*M15","v":{"$error":"#N/A"}},null,null,null,null,null,null,"X - Social and emotional skills","X - Social and emotional skills","Social and emotional skills","X - Social and emotional skills","X - Social and emotional skills","Social and emotional skills","X - Social and emotional skills","X - Social and emotional skills","X - Social and emotional skills","X - Social and emotional skills","X - Social and emotional skills","X - Social and emotional skills","X - Social and emotional skills","X - Social and emotional skills","X - Social and emotional skills","X - Social and emotional skills","Social and emotional skills","X - Social and emotional skills","X - Social and emotional skills","X - Social and emotional skills","X - Social and emotional skills","Social and emotional skills","Social and emotional skills","X - Social and emotional skills","Social and emotional skills",null,null,null,null,null,null,null,null,null,null,null,null,null,null,null,null,null,null,null,null,null,null,null,null,null,null,null,null,null,2,"MD inidividual (specialist)",null,"No available evidence","No available evidence","No available evidence","No available evidence","No available evidence","No available evidence","No available evidence","No available evidence","No available evidence","No available evidence","No available evidence","No available evidence","No available evidence","No available evidence","No available evidence","No available evidence","No available evidence","No available evidence","No available evidence","No available evidence","No available evidence","No available evidence","No available evidence","No available evidence","No available evidence","No available evidence"]
[null,null,null,"Transitions","Zippys_Friends",null,"Computer_based_interventions",null,{"$f":"'RR tables'!K11","v":"Self-esteem"},7,null,"Utility value",{"$f":"Utility!K13","v":0},null,null,null,null,null,null,null,null,null,"X - Self-esteem","X - Self-esteem","X - Self-esteem","X - Self-esteem","X - Self-esteem","X - Self-esteem","X - Self-esteem","X - Self-esteem","X - Self-esteem","X - Self-esteem","X - Self-esteem","X - Self-esteem","X - Self-esteem","X - Self-esteem","X - Self-esteem","X - Self-esteem","X - Self-esteem","X - Self-esteem","X - Self-esteem","X - Self-esteem","X - Self-esteem","X - Self-esteem","X - Self-esteem","X - Self-esteem","X - Self-esteem",null,null,null,null,null,null,null,null,null,null,null,null,null,null,null,null,null,null,null,null,null,null,null,null,null,null,null,null,null,3,"MH group (school staff) ",null,"No available evidence",0.19,"No available evidence","No available evidence","No available evidence","No available evidence","No available evidence","No available evidence","No available evidence","No available evidence","No available evidence","No available evidence","No available evidence","No available evidence","No available evidence","No available evidence","No available evidence","No available evidence","No available evidence","No available evidence","No available evidence","No available evidence","No available evidence","No available evidence","No available evidence","No available evidence"]
[null,null,null,null,"PATHS",null,"SE_group_school_staff",null,{"$f":"'RR tables'!M11","v":"Prosocial behaviour skills"},9,null,null,null,null,null,null,null,null,null,null,null,null,"X - Prosocial behaviour skills","X - Prosocial behaviour skills","X - Prosocial behaviour skills","X - Prosocial behaviour skills","X - Prosocial behaviour skills","X - Prosocial behaviour skills","X - Prosocial behaviour skills","X - Prosocial behaviour skills","X - Prosocial behaviour skills","X - Prosocial behaviour skills","X - Prosocial behaviour skills","X - Prosocial behaviour skills","X - Prosocial behaviour skills","X - Prosocial behaviour skills","X - Prosocial behaviour skills","X - Prosocial behaviour skills","X - Prosocial behaviour skills","X - Prosocial behaviour skills","X - Prosocial behaviour skills","X - Prosocial behaviour skills","X - Prosocial behaviour skills","X - Prosocial behaviour skills","X - Prosocial behaviour skills","X - Prosocial behaviour skills","X - Prosocial behaviour skills",null,null,null,null,null,null,null,null,null,null,null,null,null,null,null,null,null,null,null,null,null,null,null,null,null,null,null,null,null,4,"Promote SEW skills","Offer a whole-school approach to support positive social, emotional, and mental wellbeing in primary and secondary education. ","No available evidence","No available evidence","No available evidence","No available evidence","No available evidence","No available evidence","No available evidence","No available evidence","No available evidence","No available evidence","No available evidence","No available evidence","No available evidence","No available evidence","No available evidence","No available evidence","No available evidence","No available evidence","No available evidence","No available evidence","No available evidence","No available evidence","No available evidence","No available evidence","No available evidence","No available evidence"]
[null,null,null,null,"RAP",null,"SE_group_specialist",null,{"$f":"'RR tables'!O11","v":"Bullying perpetration"},11,null,"Year","Utility (discounted)","Effect over time","Utility value","Cumulative utility",null,null,null,null,null,null,"X - Bullying perpetration","X - Bullying perpetration","X - Bullying perpetration","X - Bullying perpetration","X - Bullying perpetration","X - Bullying perpetration","X - Bullying perpetration","X - Bullying perpetration","X - Bullying perpetration","X - Bullying perpetration","X - Bullying perpetration","X - Bullying perpetration","X - Bullying perpetration","X - Bullying perpetration","X - Bullying perpetration","X - Bullying perpetration","X - Bullying perpetration","X - Bullying perpetration","X - Bullying perpetration","X - Bullying perpetration","X - Bullying perpetration","X - Bullying perpetration","X - Bullying perpetration","X - Bullying perpetration","X - Bullying perpetration",null,null,null,null,null,null,null,null,null,null,null,null,null,null,null,null,null,null,null,null,null,null,5,"Bullying (without parent involvement)",null,"No available evidence","No available evidence","No available evidence","No available evidence","No available evidence","No available evidence","No available evidence","No available evidence","No available evidence","No available evidence","No available evidence","No available evidence","No available evidence","No available evidence","No available evidence","No available evidence","No available evidence","No available evidence","No available evidence","No available evidence","No available evidence","No available evidence","No available evidence","No available evidence","No available evidence","No available evidence"]
[null,null,null,null,"LARS_and_LISA",null,"SE_individual_school_staff",null,{"$f":"'RR tables'!Q11","v":"Emotional distress - primary education"},13,null,1,{"$f":"M18","v":0},{"$f":"IF($M$17=1,1,Utility!F21)","v":1},{"$f":"M21*N21","v":0},{"$f":"O21","v":0},null,null,null,null,null,null,"X - Emotional distress - primary education ","X - Emotional distress - primary education ","X - Emotional distress - primary education ","X - Emotional distress - primary education ","X - Emotional distress - primary education ","X - Emotional distress - primary education ","X - Emotional distress - primary education ","X - Emotional distress - primary education ","X - Emotional distress - primary education ","X - Emotional distress - primary education ","X - Emotional distress - primary education ","X - Emotional distress - primary education ","X - Emotional distress - primary education ","X - Emotional distress - primary education ","X - Emotional distress - primary education ","X - Emotional distress - primary education ","X - Emotional distress - primary education ","X - Emotional distress - primary education ","X - Emotional distress - primary education ","X - Emotional distress - primary education ","X - Emotional distress - primary education ","X - Emotional distress - primary education ","X - Emotional distress - primary education ","X - Emotional distress - primary education ","X - Emotional distress - primary education ",null,null,null,null,null,null,null,null,null,null,null,null,null,null,null,null,null,null,null,null,null,null,null,6,"Bullying (with parent involvement)",null,"No available evidence","No available evidence","No available evidence","No available evidence","No available evidence","No available evidence","No available evidence","No available evidence","No available evidence","No available evidence","No available evidence","No available evidence","No available evidence","No available evidence","No available evidence","No available evidence","No available evidence","No available evidence","No available evidence","No available evidence","No available evidence","No available evidence","No available evidence","No available evidence","No available evidence","No available evidence"]
[null,null,null,null,"SPARX_R",null,"SE_individual_specialist_not_specified",null,{"$f":"'RR tables'!S11","v":"Emotional distress - secondary education"},15,null,2,{"$f":"$M$18/(1+$M$16)^(L22-1)","v":0},{"$f":"Utility!F22","v":0.7},{"$f":"M22*N22","v":0},{"$f":"SUM($O$21:O22)","v":0},null,null,null,null,null,null,"X - Emotional distress - secondary education ","X - Emotional distress - secondary education ","X - Emotional distress - secondary education ","X - Emotional distress - secondary education ","X - Emotional distress - secondary education ","X - Emotional distress - secondary education ","X - Emotional distress - secondary education ","X - Emotional distress - secondary education ","X - Emotional distress - secondary education ","X - Emotional distress - secondary education ","X - Emotional distress - secondary education ","X - Emotional distress - secondary education ","X - Emotional distress - secondary education ","X - Emotional distress - secondary education ","X - Emotional distress - secondary education ","X - Emotional distress - secondary education ","X - Emotional distress - secondary education ","X - Emotional distress - secondary education ","X - Emotional distress - secondary education ","X - Emotional distress - secondary education ","X - Emotional distress - secondary education ","X - Emotional distress - secondary education ","X - Emotional distress - secondary education ","X - Emotional distress - secondary education ","X - Emotional distress - secondary education ",null,null,null,null,null,null,null,null,null,null,null,null,null,null,null,null,null,null,null,null,null,null,null,7,"Bullying",null,"No available evidence","No available evidence","No available evidence","No available evidence","No available evidence","No available evidence","No available evidence","No available evidence","No available evidence","No available evidence","No available evidence","No available evidence","No available evidence","No available evidence","No available evidence","No available evidence","No available evidence","No available evidence","No available evidence","No available evidence","No available evidence",0.97,1.1100000000000001,"No available evidence","No available evidence","No available evidence"]
[null,null,null,null,"Op_Volle_Kracht",null,null,null,{"$f":"'RR tables'!U11","v":"Behavioural skills- primary education"},17,null,3,{"$f":"$M$18/(1+$M$16)^(L23-1)","v":0},{"$f":"Utility!F23","v":0.4},{"$f":"M23*N23","v":0},{"$f":"SUM($O$21:O23)","v":0},null,null,null,null,null,null,"X - Behavioural skills- primary education","X - Behavioural skills- primary education","X - Behavioural skills- primary education","X - Behavioural skills- primary education","X - Behavioural skills- primary education","X - Behavioural skills- primary education","X - Behavioural skills- primary education","X - Behavioural skills- primary education","X - Behavioural skills- primary education","X - Behavioural skills- primary education","X - Behavioural skills- primary education","X - Behavioural skills- primary education","X - Behavioural skills- primary education","X - Behavioural skills- primary education","X - Behavioural skills- primary education","X - Behavioural skills- primary education","X - Behavioural skills- primary education","X - Behavioural skills- primary education","X - Behavioural skills- primary education","X - Behavioural skills- primary education","X - Behavioural skills- primary education","X - Behavioural skills- primary education","X - Behavioural skills- primary education","X - Behavioural skills- primary education","X - Behavioural skills- primary education",null,null,null,null,null,null,null,null,null,null,null,null,null,null,null,null,null,null,null,null,null,null,null,8,"Bullying (curriculum + targeted)",null,"No available evidence","No available evidence","No available evidence","No available evidence","No available evidence","No available evidence","No available evidence","No available evidence","No available evidence","No available evidence","No available evidence","No available evidence","No available evidence","No available evidence","No available evidence","No available evidence","No available evidence","No available evidence","No available evidence","No available evidence","No available evidence","No available evidence","No available evidence","No available evidence","No available evidence","No available evidence"]
[null,null,null,null,"AOP",null,null,null,{"$f":"'RR tables'!W11","v":"Behavioural skills - secondary education"},19,null,4,0,{"$f":"Utility!F24","v":0.10000000000000009},0,{"$f":"SUM($O$21:O24)","v":0},null,null,null,null,null,null,"X - Behavioural skills - secondary education","X - Behavioural skills - secondary education","X - Behavioural skills - secondary education","X - Behavioural skills - secondary education","X - Behavioural skills - secondary education","X - Behavioural skills - secondary education","X - Behavioural skills - secondary education","X - Behavioural skills - secondary education","X - Behavioural skills - secondary education","X - Behavioural skills - secondary education","X - Behavioural skills - secondary education","X - Behavioural skills - secondary education","X - Behavioural skills - secondary education","X - Behavioural skills - secondary education","X - Behavioural skills - secondary education","X - Behavioural skills - secondary education","X - Behavioural skills - secondary education","X - Behavioural skills - secondary education","X - Behavioural skills - secondary education","X - Behavioural skills - secondary education","X - Behavioural skills - secondary education","X - Behavioural skills - secondary education","X - Behavioural skills - secondary education","X - Behavioural skills - secondary education","X - Behavioural skills - secondary education",null,null,null,null,null,null,null,null,null,null,null,null,null,null,null,null,null,null,null,null,null,null,null,9,"Transition between schools","Take account of the concerns of children undergoing transition\n","No available evidence","No available evidence","No available evidence","No available evidence","No available evidence","No available evidence","No available evidence","No available evidence","No available evidence","No available evidence","No available evidence","No available evidence","No available evidence","No available evidence","No available evidence","No available evidence","No available evidence","No available evidence","No available evidence","No available evidence","No available evidence","No available evidence","No available evidence","No available evidence","No available evidence","No available evidence"]
[null,null,null,null,"Mindfulness",null,null,null,null,null,null,5,0,{"$f":"Utility!F25","v":0},0,{"$f":"SUM($O$21:O25)","v":0}]
[null,null,null,null,"HeadStrong",null,null,null,null,null,null,6,0,{"$f":"Utility!F26","v":0},0,{"$f":"SUM($O$21:O26)","v":0}]
[null,null,null,null,"MoodGYM",null,null,null,null,null,null,7,0,{"$f":"Utility!F27","v":0},0,{"$f":"SUM($O$21:O27)","v":0},null,null,null,null,null,null,"Antibullying with curriculum","Antibullying without curriculum",null,null,null,null,null,null,null,null,null,null,null,null,null,null,null,null,null,null,null,null,null,null,null,null,null,null,null,null,null,null,null,null,null,null,null,null,null,null,null,null,null,null,null,null,null,null,null,"WSA",null,"    Outcomes (RR)"]
[null,null,null,null,"Pozik Bizi",null,null,null,null,null,null,8,0,{"$f":"Utility!F28","v":0},0,{"$f":"SUM($O$21:O28)","v":0},null,null,null,null,null,null,"X - Emotional distress","X - Emotional distress",null,null,null,null,null,null,null,null,null,null,null,null,null,null,null,null,null,null,null,null,null,null,null,null,null,null,null,null,null,null,null,null,null,null,null,null,null,null,null,null,null,null,null,null,null,null,null,"Intervention type","Description","Emotional distress","Depression","Self-esteem","Empathy","Psychological problems","Emotional wellbeing","Wellbeing","Social and emotional skills","Cooperation","Social adjustment","Behavioural outcomes","Behavioural outcomes (difficulties)","Behavioural outcomes (prosocial)","Perpetration","Victimisation","Perpetration (primary)","Perpetration (secondary)","Victimisation (primary)","Victimisation (secondary)","Cyberbullying perpetration","Cyberbullying victimisation","Exclusion","Truancy","School attendance","School climate","Response"]
[null,null,null,null,"E_Couch",null,null,null,null,null,null,9,0,{"$f":"Utility!F29","v":0},0,{"$f":"SUM($O$21:O29)","v":0},null,null,null,null,null,null,"Behavioural skills","Behavioural skills",null,null,null,null,null,null,null,null,null,null,null,null,null,null,null,null,null,null,null,null,null,null,null,null,null,null,null,null,null,null,null,null,null,null,null,null,null,null,null,null,null,null,null,null,null,null,1,"MH group (specialist)","Offer individual or group support to children and young people who have been identified as needing additional social and emotional support and/or mental health support","No available evidence",0.51,"No available evidence","No available evidence","No available evidence","No available evidence","No available evidence","No available evidence","No available evidence","No available evidence","No available evidence","No available evidence","No available evidence","No available evidence","No available evidence","No available evidence","No available evidence","No available evidence","No available evidence","No available evidence","No available evidence","No available evidence","No available evidence","No available evidence","No available evidence",1.76]
[null,null,null,null,"E_GAD",null,null,null,null,null,null,10,0,{"$f":"Utility!F30","v":0},0,{"$f":"SUM($O$21:O30)","v":0},null,null,null,null,null,null,"Social and emotional skills","X - Social and emotional skills",null,null,null,null,null,null,null,null,null,null,null,null,null,null,null,null,null,null,null,null,null,null,null,null,null,null,null,null,null,null,null,null,null,null,null,null,null,null,null,null,null,null,null,null,null,null,2,"MD inidividual (specialist)",null,"No available evidence","No available evidence","No available evidence","No available evidence","No available evidence","No available evidence","No available evidence","No available evidence","No available evidence","No available evidence","No available evidence","No available evidence","No available evidence","No available evidence","No available evidence","No available evidence","No available evidence","No available evidence","No available evidence","No available evidence","No available evidence","No available evidence","No available evidence","No available evidence","No available evidence","No available evidence"]
[null,null,null,null,"MindOut",null,null,null,null,null,null,null,null,null,null,null,null,null,null,null,null,null,"X - Self-esteem","X - Self-esteem",null,null,null,null,null,null,null,null,null,null,null,null,null,null,null,null,null,null,null,null,null,null,null,null,null,null,null,null,null,null,null,null,null,null,null,null,null,null,null,null,null,null,null,null,null,null,null,null,null,null,null,null,null,3,"MH group (school staff) ",null,"No available evidence",0.19,"No available evidence","No available evidence","No available evidence","No available evidence","No available evidence","No available evidence","No available evidence","No available evidence","No available evidence","No available evidence","No available evidence","No available evidence","No available evidence","No available evidence","No available evidence","No available evidence","No available evidence","No available evidence","No available evidence","No available evidence","No available evidence","No available evidence","No available evidence","No available evidence"]
[null,null,null,null,"Coping_Power_Unviversal",null,null,null,null,null,null,"Effectiveness",null,null,null,null,null,null,null,null,null,null,"X - Prosocial behaviour skills","X - Prosocial behaviour skills",null,null,null,null,null,null,null,null,null,null,null,null,null,null,null,null,null,null,null,null,null,null,null,null,null,null,null,null,null,null,null,null,null,null,null,null,null,null,null,null,null,null,null,null,null,null,null,null,null,null,null,null,4,"Promote SEW skills","Offer a whole-school approach to support positive social, emotional, and mental wellbeing in primary and secondary education. ","No available evidence","No available evidence","No available evidence","No available evidence","No available evidence","No available evidence","No available evidence","No available evidence","No available evidence","No available evidence","No available evidence","No available evidence","No available evidence","No available evidence","No available evidence","No available evidence","No available evidence","No available evidence","No available evidence","No available evidence","No available evidence","No available evidence","No available evidence","No available evidence","No available evidence","No available evidence"]
[null,null,null,null,"Taking_Action_Program",null,null,null,null,null,null,"Students effected",{"$f":"IF(M38>2,M37,IF(M38=0, 0, M37*(ABS(1-M38))))","v":0},null,null,null,null,null,null,null,null,null,"X - Bullying perpetration","X - Bullying perpetration",null,null,null,null,null,null,null,null,null,null,null,null,null,null,null,null,null,null,null,null,null,null,null,null,null,null,null,null,null,null,null,null,null,null,null,null,null,null,null,null,null,null,null,null,null,null,null,null,null,null,null,null,5,"Bullying (without parent involvement)",null,"No available evidence","No available evidence","No available evidence","No available evidence","No available evidence","No available evidence","No available evidence","No available evidence","No available evidence","No available evidence","No available evidence","No available evidence","No available evidence","No available evidence","No available evidence","No available evidence","No available evidence","No available evidence","No available evidence","No available evidence","No available evidence","No available evidence","No available evidence","No available evidence","No available evidence","No available evidence"]
[null,null,null,null,"ThisWayUp",null,null,null,null,null,null,null,null,null,null,null,null,null,null,null,null,null,"X - Emotional distress - primary education ","X - Emotional distress - primary education ",null,null,null,null,null,null,null,null,null,null,null,null,null,null,null,null,null,null,null,null,null,null,null,null,null,null,null,null,null,null,null,null,null,null,null,null,null,null,null,null,null,null,null,null,null,null,null,null,null,null,null,null,6,"Bullying (with parent involvement)",null,"No available evidence","No available evidence","No available evidence","No available evidence","No available evidence","No available evidence","No available evidence","No available evidence","No available evidence","No available evidence","No available evidence","No available evidence","No available evidence","No available evidence","No available evidence","No available evidence","No available evidence","No available evidence","No available evidence","No available evidence","No available evidence","No available evidence","No available evidence","No available evidence","No available evidence","No available evidence"]
[null,null,null,null,"ITPFSA",null,null,null,null,null,null,"Set up",null,null,null,null,null,null,null,null,null,null,"X - Emotional distress - secondary education ","X - Emotional distress - secondary education ",null,null,null,null,null,null,null,null,null,null,null,null,null,null,null,null,null,null,null,null,null,null,null,null,null,null,null,null,null,null,null,null,null,null,null,null,null,null,null,null,null,null,null,null,null,null,null,null,null,null,null,null,7,"Bullying",null,"No available evidence","No available evidence","No available evidence","No available evidence","No available evidence","No available evidence","No available evidence","No available evidence","No available evidence","No available evidence","No available evidence","No available evidence","No available evidence","No available evidence","No available evidence","No available evidence","No available evidence","No available evidence","No available evidence","No available evidence","No available evidence",0.97,1.1100000000000001,"No available evidence","No available evidence","No available evidence"]
[null,null,null,null,"StrongKids",null,null,null,null,null,null,"Intervention cost",{"$f":"-'Set Up'!H13","v":0},null,null,null,null,null,null,null,null,null,"X - Behavioural skills- primary education","X - Behavioural skills- primary education",null,null,null,null,null,null,null,null,null,null,null,null,null,null,null,null,null,null,null,null,null,null,null,null,null,null,null,null,null,null,null,null,null,null,null,null,null,null,null,null,null,null,null,null,null,null,null,null,null,null,null,null,8,"Bullying (curriculum + targeted)",null,"No available evidence","No available evidence","No available evidence","No available evidence","No available evidence","No available evidence","No available evidence","No available evidence","No available evidence","No available evidence","No available evidence","No available evidence","No available evidence","No available evidence","No available evidence","No available evidence","No available evidence","No available evidence","No available evidence","No available evidence","No available evidence","No available evidence","No available evidence","No available evidence","No available evidence","No available evidence"]
[null,null,null,null,"Yoga",null,null,null,null,null,null,"Number of students",{"$f":"'Set Up'!H15","v":100},null,null,null,null,null,null,null,null,null,"X - Behavioural skills - secondary education","X - Behavioural skills - secondary education",null,null,null,null,null,null,null,null,null,null,null,null,null,null,null,null,null,null,null,null,null,null,null,null,null,null,null,null,null,null,null,null,null,null,null,null,null,null,null,null,null,null,null,null,null,null,null,null,null,null,null,null,9,"Transition between schools","Take account of the concerns of children undergoing transition\n","No available evidence","No available evidence","No available evidence","No available evidence","No available evidence","No available evidence","No available evidence","No available evidence","No available evidence","No available evidence","No available evidence","No available evidence","No available evidence","No available evidence","No available evidence","No available evidence","No available evidence","No available evidence","No available evidence","No available evidence","No available evidence","No available evidence","No available evidence","No available evidence","No available evidence","No available evidence"]
[null,null,null,null,"Working_Things_Out",null,null,null,null,null,null,"RR",{"$f":"'Set Up'!H21","v":0}]
[null,null,null,null,"Uplifting_out_health_and_wellbeing",null,null,null,null,null,null,"Outcome selected ",{"$f":"LOWER('Set Up'!E17)","v":"please select..."},null,null,null,null,null,null,null,null,null,null,null,null,null,null,null,null,null,null,null,null,null,null,null,null,null,null,null,null,null,null,null,null,null,null,null,null,null,null,null,null,null,null,null,null,null,null,null,null,null,null,null,null,null,null,null,null,null,null,null,null,null,null,null,null,"Targeted",null,"    Outcomes (RR)"]
[null,null,null,null,null,null,null,null,null,null,null,null,null,null,null,null,null,null,null,null,null,null,"MH group (specialist)","MH individual (specialist)","MH group (school staff)","Computer-based interventions","SE group (school staff)","SE group (specialist)","SE individual (school staff)","SE individual (specialist not specified)",null,null,null,null,null,null,null,null,null,null,null,null,null,null,null,null,null,null,null,null,null,null,null,null,null,null,null,null,null,null,null,null,null,null,null,null,null,null,null,null,null,null,null,null,null,null,null,"Intervention type","Description","Emotional distress","Depression","Self-esteem","Empathy","Psychological problems","Emotional wellbeing","Wellbeing","Social and emotional skills","Cooperation","Social adjustment","Behavioural outcomes","Behavioural outcomes (difficulties)","Behavioural outcomes (prosocial)","Perpetration","Victimisation","Perpetration (primary)","Perpetration (secondary)","Victimisation (primary)","Victimisation (secondary)","Cyberbullying perpetration","Cyberbullying victimisation","Exclusion","Truancy","School attendance","School climate","Response"]
[null,null,null,null,null,null,null,null,null,null,null,null,null,null,null,null,null,null,null,null,null,null,"Emotional distress","Emotional distress","Emotional distress","Emotional distress","X - Emotional distress","X - Emotional distress","X - Emotional distress","X - Emotional distress",null,null,null,null,null,null,null,null,null,null,null,null,null,null,null,null,null,null,null,null,null,null,null,null,null,null,null,null,null,null,null,null,null,null,null,null,null,null,null,null,null,null,null,null,null,null,1,"MH group (specialist)","Offer individual or group support to children and young people who have been identified as needing additional social and emotional support and/or mental health support","No available evidence",0.51,"No available evidence","No available evidence","No available evidence","No available evidence","No available evidence","No available evidence","No available evidence","No available evidence","No available evidence","No available evidence","No available evidence","No available evidence","No available evidence","No available evidence","No available evidence","No available evidence","No available evidence","No available evidence","No available evidence","No available evidence","No available evidence","No available evidence","No available evidence",1.76]
[null,null,null,null,null,null,null,null,null,null,null,null,null,null,null,null,null,null,null,null,null,null,"Behavioural skills","Behavioural skills","X - Behavioural skills","X - Behavioural skills","Behavioural skills","Behavioural skills","Behavioural skills","Behavioural skills",null,null,null,null,null,null,null,null,null,null,null,null,null,null,null,null,null,null,null,null,null,null,null,null,null,null,null,null,null,null,null,null,null,null,null,null,null,null,null,null,null,null,null,null,null,null,2,"MD inidividual (specialist)",null,"No available evidence","No available evidence","No available evidence","No available evidence","No available evidence","No available evidence","No available evidence","No available evidence","No available evidence","No available evidence","No available evidence","No available evidence","No available evidence","No available evidence","No available evidence","No available evidence","No available evidence","No available evidence","No available evidence","No available evidence","No available evidence","No available evidence","No available evidence","No available evidence","No available evidence","No available evidence"]
[null,null,null,"if RR>1 and x = good, benefit",null," outcome: good =1, bad = 2",null,null,null,null,null,null,null,null,null,null,null,null,null,null,null,null,"X - Social and emotional skills","X - Social and emotional skills","X - Social and emotional skills","X - Social and emotional skills","X - Social and emotional skills","X - Social and emotional skills","X - Social and emotional skills","X - Social and emotional skills",null,null,null,null,null,null,null,null,null,null,null,null,null,null,null,null,null,null,null,null,null,null,null,null,null,null,null,null,null,null,null,null,null,null,null,null,null,null,null,null,null,null,null,null,null,null,3,"MH group (school staff) ",null,"No available evidence",0.19,"No available evidence","No available evidence","No available evidence","No available evidence","No available evidence","No available evidence","No available evidence","No available evidence","No available evidence","No available evidence","No available evidence","No available evidence","No available evidence","No available evidence","No available evidence","No available evidence","No available evidence","No available evidence","No available evidence","No available evidence","No available evidence","No available evidence","No available evidence","No available evidence"]
[null,null,null,"if RR<1 and x = good, worse off",null,"x =",{"$f":"VLOOKUP(M39,F45:G54,2,FALSE)","v":{"$error":"#N/A"}},null,null,null,null,null,null,null,null,null,null,null,null,null,null,null,"X - Self-esteem","Self-esteem","X - Self-esteem","X - Self-esteem","X - Self-esteem","X - Self-esteem","X - Self-esteem","X - Self-esteem",null,null,null,null,null,null,null,null,null,null,null,null,null,null,null,null,null,null,null,null,null,null,null,null,null,null,null,null,null,null,null,null,null,null,null,null,null,null,null,null,null,null,null,null,null,null,4,"Promote SEW skills","Offer a whole-school approach to support positive social, emotional, and mental wellbeing in primary and secondary education. ","No available evidence","No available evidence","No available evidence","No available evidence","No available evidence","No available evidence","No available evidence","No available evidence","No available evidence","No available evidence","No available evidence","No available evidence","No available evidence","No available evidence","No available evidence","No available evidence","No available evidence","No available evidence","No available evidence","No available evidence","No available evidence","No available evidence","No available evidence","No available evidence","No available evidence","No available evidence"]
[null,null,null,"if RR>1 and x = bad, worse off",null,"emotional distress",2,null,null,null,null,null,null,null,null,null,null,null,null,null,null,null,"X - Prosocial behaviour skills","Prosocial behaviour skills","X - Prosocial behaviour skills","X - Prosocial behaviour skills","X - Prosocial behaviour skills","X - Prosocial behaviour skills","X - Prosocial behaviour skills","X - Prosocial behaviour skills",null,null,null,null,null,null,null,null,null,null,null,null,null,null,null,null,null,null,null,null,null,null,null,null,null,null,null,null,null,null,null,null,null,null,null,null,null,null,null,null,null,null,null,null,null,null,5,"Bullying (without parent involvement)",null,"No available evidence","No available evidence","No available evidence","No available evidence","No available evidence","No available evidence","No available evidence","No available evidence","No available evidence","No available evidence","No available evidence","No available evidence","No available evidence","No available evidence","No available evidence","No available evidence","No available evidence","No available evidence","No available evidence","No available evidence","No available evidence","No available evidence","No available evidence","No available evidence","No available evidence","No available evidence"]
[null,null,null,"if RR<1 and x = bad, benefit",null,"behavioural skills",1,null,null,null,null,null,null,null,null,null,null,null,null,null,null,null,"X - Bullying perpetration","X - Bullying perpetration","X - Bullying perpetration","X - Bullying perpetration","X - Bullying perpetration","X - Bullying perpetration","X - Bullying perpetration","X - Bullying perpetration",null,null,null,null,null,null,null,null,null,null,null,null,null,null,null,null,null,null,null,null,null,null,null,null,null,null,null,null,null,null,null,null,null,null,null,null,null,null,null,null,null,null,null,null,null,null,6,"Bullying (with parent involvement)",null,"No available evidence","No available evidence","No available evidence","No available evidence","No available evidence","No available evidence","No available evidence","No available evidence","No available evidence","No available evidence","No available evidence","No available evidence","No available evidence","No available evidence","No available evidence","No available evidence","No available evidence","No available evidence","No available evidence","No available evidence","No available evidence","No available evidence","No available evidence","No available evidence","No available evidence","No available evidence"]
[null,null,null,null,null,"social and emotional skills",1,null,null,null,null,null,null,null,null,null,null,null,null,null,null,null,"X - Emotional distress - primary education ","X - Emotional distress - primary education ","Emotional distress - primary education","X - Emotional distress - primary education ","X - Emotional distress - primary education ","X - Emotional distress - primary education ","X - Emotional distress - primary education ","X - Emotional distress - primary education ",null,null,null,null,null,null,null,null,null,null,null,null,null,null,null,null,null,null,null,null,null,null,null,null,null,null,null,null,null,null,null,null,null,null,null,null,null,null,null,null,null,null,null,null,null,null,7,"Bullying",null,"No available evidence","No available evidence","No available evidence","No available evidence","No available evidence","No available evidence","No available evidence","No available evidence","No available evidence","No available evidence","No available evidence","No available evidence","No available evidence","No available evidence","No available evidence","No available evidence","No available evidence","No available evidence","No available evidence","No available evidence","No available evidence",0.97,1.1100000000000001,"No available evidence","No available evidence","No available evidence"]
[null,null,null,null,null,"self-esteem",1,null,null,null,null,null,null,null,null,null,null,null,null,null,null,null,"X - Emotional distress - secondary education ","X - Emotional distress - secondary education ","Emotional distress - secondary education","X - Emotional distress - secondary education ","X - Emotional distress - secondary education ","X - Emotional distress - secondary education ","X - Emotional distress - secondary education ","X - Emotional distress - secondary education ",null,null,null,null,null,null,null,null,null,null,null,null,null,null,null,null,null,null,null,null,null,null,null,null,null,null,null,null,null,null,null,null,null,null,null,null,null,null,null,null,null,null,null,null,null,null,8,"Bullying (curriculum + targeted)",null,"No available evidence","No available evidence","No available evidence","No available evidence","No available evidence","No available evidence","No available evidence","No available evidence","No available evidence","No available evidence","No available evidence","No available evidence","No available evidence","No available evidence","No available evidence","No available evidence","No available evidence","No available evidence","No available evidence","No available evidence","No available evidence","No available evidence","No available evidence","No available evidence","No available evidence","No available evidence"]
[null,null,null,null,null,"prosocial behaviour skills",1,null,null,null,null,null,null,null,null,null,null,null,null,null,null,null,"X - Behavioural skills- primary education","X - Behavioural skills- primary education","X - Behavioural skills- primary education","X - Behavioural skills- primary education","X - Behavioural skills- primary education","Behavioural skills - primary education","X - Behavioural skills- primary education","X - Behavioural skills- primary education",null,null,null,null,null,null,null,null,null,null,null,null,null,null,null,null,null,null,null,null,null,null,null,null,null,null,null,null,null,null,null,null,null,null,null,null,null,null,null,null,null,null,null,null,null,null,9,"Transition between schools","Take account of the concerns of children undergoing transition\n","No available evidence","No available evidence","No available evidence","No available evidence","No available evidence","No available evidence","No available evidence","No available evidence","No available evidence","No available evidence","No available evidence","No available evidence","No available evidence","No available evidence","No available evidence","No available evidence","No available evidence","No available evidence","No available evidence","No available evidence","No available evidence","No available evidence","No available evidence","No available evidence","No available evidence","No available evidence"]
[null,null,null,null,null,"bullying perpetration",2,null,null,null,null,null,null,null,null,null,null,null,null,null,null,null,"X - Behavioural skills - secondary education","X - Behavioural skills - secondary education","X - Behavioural skills - secondary education","X - Behavioural skills - secondary education","X - Behavioural skills - secondary education","Behavioural skills - secondary education","X - Behavioural skills - secondary education","X - Behavioural skills - secondary education"]
[null,null,null,null,null,"emotional distress - primary education",2]
[null,null,null,null,null,"emotional distress - secondary education",2,null,null,null,null,null,null,null,null,null,null,null,null,null,null,null,null,null,null,null,null,null,null,null,null,null,null,null,null,null,null,null,null,null,null,null,null,null,null,null,null,null,null,null,null,null,null,null,null,null,null,null,null,null,null,null,null,null,null,null,null,null,null,null,null,null,null,null,null,null,null,"Transitions",null,"    Outcomes (RR)"]
[null,null,null,null,null,"behavioural skills- primary education",1,null,null,null,null,null,null,null,null,null,null,null,null,null,null,null,"Transition between schools",null,null,null,null,null,null,null,null,null,null,null,null,null,null,null,null,null,null,null,null,null,null,null,null,null,null,null,null,null,null,null,null,null,null,null,null,null,null,null,null,null,null,null,null,null,null,null,null,null,null,null,null,null,null,"Intervention type","Description","Emotional distress","Depression","Self-esteem","Empathy","Psychological problems","Emotional wellbeing","Wellbeing","Social and emotional skills","Cooperation","Social adjustment","Behavioural outcomes","Behavioural outcomes (difficulties)","Behavioural outcomes (prosocial)","Perpetration","Victimisation","Perpetration (primary)","Perpetration (secondary)","Victimisation (primary)","Victimisation (secondary)","Cyberbullying perpetration","Cyberbullying victimisation","Exclusion","Truancy","School attendance","School climate","Response"]
[null,null,null,null,null,"behavioural skills - secondary education",1,null,null,null,null,null,null,null,null,null,null,null,null,null,null,null,"Emotional distress",null,null,null,null,null,null,null,null,null,null,null,null,null,null,null,null,null,null,null,null,null,null,null,null,null,null,null,null,null,null,null,null,null,null,null,null,null,null,null,null,null,null,null,null,null,null,null,null,null,null,null,null,null,1,"MH group (specialist)","Offer individual or group support to children and young people who have been identified as needing additional social and emotional support and/or mental health support","No available evidence",0.51,"No available evidence","No available evidence","No available evidence","No available evidence","No available evidence","No available evidence","No available evidence","No available evidence","No available evidence","No available evidence","No available evidence","No available evidence","No available evidence","No available evidence","No available evidence","No available evidence","No available evidence","No available evidence","No available evidence","No available evidence","No available evidence","No available evidence","No available evidence",1.76]
[null,null,null,null,null,null,null,null,null,null,null,null,null,null,null,null,null,null,null,null,null,null,"Behavioural skills",null,null,null,null,null,null,null,null,null,null,null,null,null,null,null,null,null,null,null,null,null,null,null,null,null,null,null,null,null,null,null,null,null,null,null,null,null,null,null,null,null,null,null,null,null,null,null,null,null,null,null,null,null,2,"MD inidividual (specialist)",null,"No available evidence","No available evidence","No available evidence","No available evidence","No available evidence","No available evidence","No available evidence","No available evidence","No available evidence","No available evidence","No available evidence","No available evidence","No available evidence","No available evidence","No available evidence","No available evidence","No available evidence","No available evidence","No available evidence","No available evidence","No available evidence","No available evidence","No available evidence","No available evidence","No available evidence","No available evidence"]
[null,null,null,null,null,null,null,null,null,null,null,null,null,null,null,null,null,null,null,null,null,null,"X - Social and emotional skills",null,null,null,null,null,null,null,null,null,null,null,null,null,null,null,null,null,null,null,null,null,null,null,null,null,null,null,null,null,null,null,null,null,null,null,null,null,null,null,null,null,null,null,null,null,null,null,null,null,null,null,null,null,3,"MH group (school staff) ",null,"No available evidence",0.19,"No available evidence","No available evidence","No available evidence","No available evidence","No available evidence","No available evidence","No available evidence","No available evidence","No available evidence","No available evidence","No available evidence","No available evidence","No available evidence","No available evidence","No available evidence","No available evidence","No available evidence","No available evidence","No available evidence","No available evidence","No available evidence","No available evidence","No available evidence","No available evidence"]
[null,null,null,null,null,null,null,null,null,null,null,null,null,null,null,null,null,null,null,null,null,null,"X - Self-esteem",null,null,null,null,null,null,null,null,null,null,null,null,null,null,null,null,null,null,null,null,null,null,null,null,null,null,null,null,null,null,null,null,null,null,null,null,null,null,null,null,null,null,null,null,null,null,null,null,null,null,null,null,null,4,"Promote SEW skills","Offer a whole-school approach to support positive social, emotional, and mental wellbeing in primary and secondary education. ","No available evidence","No available evidence","No available evidence","No available evidence","No available evidence","No available evidence","No available evidence","No available evidence","No available evidence","No available evidence","No available evidence","No available evidence","No available evidence","No available evidence","No available evidence","No available evidence","No available evidence","No available evidence","No available evidence","No available evidence","No available evidence","No available evidence","No available evidence","No available evidence","No available evidence","No available evidence"]
[null,null,null,null,null,"net monetary benefit",null,null,null,"nmb",null,null,null,"nmb",null,null,null,null,"cost per case",null,null,null,"X - Prosocial behaviour skills",null,null,null,null,null,null,null,null,null,null,null,null,null,null,null,null,null,null,null,null,null,null,null,null,null,null,null,null,null,null,null,null,null,null,null,null,null,null,null,null,null,null,null,null,null,null,null,null,null,null,null,null,null,5,"Bullying (without parent involvement)",null,"No available evidence","No available evidence","No available evidence","No available evidence","No available evidence","No available evidence","No available evidence","No available evidence","No available evidence","No available evidence","No available evidence","No available evidence","No available evidence","No available evidence","No available evidence","No available evidence","No available evidence","No available evidence","No available evidence","No available evidence","No available evidence","No available evidence","No available evidence","No available evidence","No available evidence","No available evidence"]
[null,null,null,null,null,{"$f":"Overall!E20","v":{"$error":"#N/A"}},null,null,null,{"$f":"Overall!E20","v":{"$error":"#N/A"}},null,null,null,{"$f":"J59","v":{"$error":"#N/A"}},null,null,null,null,{"$f":"N59","v":{"$error":"#N/A"}},null,null,null,"Bullying perpetration",null,null,null,null,null,null,null,null,null,null,null,null,null,null,null,null,null,null,null,null,null,null,null,null,null,null,null,null,null,null,null,null,null,null,null,null,null,null,null,null,null,null,null,null,null,null,null,null,null,null,null,null,null,6,"Bullying (with parent involvement)",null,"No available evidence","No available evidence","No available evidence","No available evidence","No available evidence","No available evidence","No available evidence","No available evidence","No available evidence","No available evidence","No available evidence","No available evidence","No available evidence","No available evidence","No available evidence","No available evidence","No available evidence","No available evidence","No available evidence","No available evidence","No available evidence","No available evidence","No available evidence","No available evidence","No available evidence","No available evidence"]
[null,null,null,"cost of intervention",-1000,{"$error":"#N/A"},null,"number of students",50,{"$error":"#N/A"},null,"RR",0.15,{"$error":"#N/A"},null,null,"utility",2.5000000000000001E-2,{"$error":"#N/A"},null,null,null,"X - Emotional distress - primary education ",null,null,null,null,null,null,null,null,null,null,null,null,null,null,null,null,null,null,null,null,null,null,null,null,null,null,null,null,null,null,null,null,null,null,null,null,null,null,null,null,null,null,null,null,null,null,null,null,null,null,null,null,null,7,"Bullying",null,"No available evidence","No available evidence","No available evidence","No available evidence","No available evidence","No available evidence","No available evidence","No available evidence","No available evidence","No available evidence","No available evidence","No available evidence","No available evidence","No available evidence","No available evidence","No available evidence","No available evidence","No available evidence","No available evidence","No available evidence","No available evidence",0.97,1.1100000000000001,"No available evidence","No available evidence","No available evidence"]
[null,null,null,null,-5000,{"$error":"#N/A"},null,null,100,{"$error":"#N/A"},null,null,0.3,{"$error":"#N/A"},null,null,null,0.05,{"$error":"#N/A"},null,null,null,"X - Emotional distress - secondary education ",null,null,null,null,null,null,null,null,null,null,null,null,null,null,null,null,null,null,null,null,null,null,null,null,null,null,null,null,null,null,null,null,null,null,null,null,null,null,null,null,null,null,null,null,null,null,null,null,null,null,null,null,null,8,"Bullying (curriculum + targeted)",null,"No available evidence","No available evidence","No available evidence","No available evidence","No available evidence","No available evidence","No available evidence","No available evidence","No available evidence","No available evidence","No available evidence","No available evidence","No available evidence","No available evidence","No available evidence","No available evidence","No available evidence","No available evidence","No available evidence","No available evidence","No available evidence","No available evidence","No available evidence","No available evidence","No available evidence","No available evidence"]
[null,null,null,null,-10000,{"$error":"#N/A"},null,null,150,{"$error":"#N/A"},null,null,0.45,{"$error":"#N/A"},null,null,null,7.4999999999999997E-2,{"$error":"#N/A"},null,null,null,"X - Behavioural skills- primary education",null,null,null,null,null,null,null,null,null,null,null,null,null,null,null,null,null,null,null,null,null,null,null,null,null,null,null,null,null,null,null,null,null,null,null,null,null,null,null,null,null,null,null,null,null,null,null,null,null,null,null,null,null,9,"Transition between schools","Take account of the concerns of children undergoing transition\n","No available evidence","No available evidence","No available evidence","No available evidence","No available evidence","No available evidence","No available evidence","No available evidence","No available evidence","No available evidence","No available evidence","No available evidence","No available evidence","No available evidence","No available evidence","No available evidence","No available evidence","No available evidence","No available evidence","No available evidence","No available evidence","No available evidence","No available evidence","No available evidence","No available evidence","No available evidence"]
[null,null,null,null,-15000,{"$error":"#N/A"},null,null,200,{"$error":"#N/A"},null,null,0.6,{"$error":"#N/A"},null,null,null,0.1,{"$error":"#N/A"},null,null,null,"X - Behavioural skills - secondary education"]
[null,null,null,null,-20000,{"$error":"#N/A"},null,null,250,{"$error":"#N/A"},null,null,0.75,{"$error":"#N/A"},null,null,null,0.125,{"$error":"#N/A"}]
[null,null,null,null,-25000,{"$error":"#N/A"},null,null,300,{"$error":"#N/A"},null,null,0.9,{"$error":"#N/A"},null,null,null,0.15,{"$error":"#N/A"}]
[null,null,null,null,-30000,{"$error":"#N/A"},null,null,350,{"$error":"#N/A"},null,null,1.05,{"$error":"#N/A"},null,null,null,0.17499999999999999,{"$error":"#N/A"}]
[null,null,null,null,-35000,{"$error":"#N/A"},null,null,400,{"$error":"#N/A"},null,null,1.2,{"$error":"#N/A"},null,null,null,0.2,{"$error":"#N/A"}]
[null,null,null,null,-40000,{"$error":"#N/A"},null,null,450,{"$error":"#N/A"},null,null,1.35,{"$error":"#N/A"},null,null,null,0.22500000000000001,{"$error":"#N/A"}]
[null,null,null,null,-45000,{"$error":"#N/A"},null,null,null,null,null,null,1.5,{"$error":"#N/A"},null,null,null,0.25,{"$error":"#N/A"}]
[null,null,null,null,null,null,null,null,null,null,null,null,1.65,{"$error":"#N/A"},null,null,null,0.27500000000000002,{"$error":"#N/A"}]
[null,null,null,null,null,null,null,null,null,null,null,null,1.8,{"$error":"#N/A"},null,null,null,0.3,{"$error":"#N/A"}]
[null,null,null,null,null,null,null,null,null,null,null,null,1.95,{"$error":"#N/A"}]
[null,null,null,null,null,null,null,null,null,null,null,null,2.1,{"$error":"#N/A"}]
[]
[]
[]
[]
[]
[]
[]
[]
[]
[]
[]
[]
[]
[]
[]
[null,null,null,null,null,"cost per case"]
[null,null,null,null,null,{"$f":"Overall!E14","v":0},null,null,null,{"$f":"F89","v":"cost per case"}]
[null,null,null,"cost of intervention",-1000,0,null,null,null,{"$f":"F90","v":0},null,null,null,null,{"$f":"J90","v":"cost per case"}]
[null,null,null,null,-5000,0,null,"number of students",50,0,null,null,null,null,{"$f":"J91","v":0}]
[null,null,null,null,-10000,0,null,null,100,0,null,null,"RR",0.15,0]
[null,null,null,null,-15000,0,null,null,150,0,null,null,null,0.3,0]
[null,null,null,null,-20000,0,null,null,200,0,null,null,null,0.45,0]
[null,null,null,null,-25000,0,null,null,250,0,null,null,null,0.6,0]
[null,null,null,null,-30000,0,null,null,300,0,null,null,null,0.75,0]
[null,null,null,null,-35000,0,null,null,350,0,null,null,null,0.9,0]
[null,null,null,null,-40000,0,null,null,400,0,null,null,null,1.05,0]
[null,null,null,null,-45000,0,null,null,450,0,null,null,null,1.2,0]
[null,null,null,null,null,null,null,null,null,null,null,null,null,1.35,0]
[null,null,null,null,null,null,null,null,null,null,null,null,null,1.5,0]
[null,null,null,null,null,null,null,null,null,null,null,null,null,1.65,0]
[null,null,null,null,null,null,null,null,null,null,null,null,null,1.8,0]
[null,null,null,null,null,null,null,null,null,null,null,null,null,1.95,0]
[null,null,null,null,null,null,null,null,null,null,null,null,null,2.1,0]
[]
[]
[]
[]
[]
[]
[]
[]
[null,null,null,null,{"$f":"VLOOKUP('Set Up'!E17,'Model Inputs'!I15:J24,2,FALSE)","v":{"$error":"#N/A"}}]
[]
[]
[]
[]
[]
[]
[]
[]
[]
[]
[]
[]
[]
[]
[]
[]
[]
[]
[]
[]
[]
[]
[]
[]
[]
[]
[]
[null,null,null,{"$f":"'Set Up'!BB114","v":0},null,{"$f":"'Set Up'!BD114","v":0},null,{"$f":"'Set Up'!#REF!","v":{"$error":"#REF!"}}]
[null,null,null,"Select approach",null,"Select intervention type",null,"Select outcome"]
[null,null,null,"Universal",1,{"$f":"'Set Up'!BD116","v":0},1,{"$f":"'Set Up'!#REF!","v":{"$error":"#REF!"}}]
[null,null,null,"Whole school",2,{"$f":"'Set Up'!BD117","v":0},2,{"$f":"'Set Up'!#REF!","v":{"$error":"#REF!"}}]
[null,null,null,"Targeted",3,{"$f":"'Set Up'!BD118","v":0},3,{"$f":"'Set Up'!#REF!","v":{"$error":"#REF!"}}]
[null,null,null,"Transitions",4,{"$f":"'Set Up'!BD119","v":0},4,{"$f":"'Set Up'!#REF!","v":{"$error":"#REF!"}}]
[null,null,null,null,5,{"$f":"'Set Up'!BD120","v":0},5,{"$f":"'Set Up'!#REF!","v":{"$error":"#REF!"}}]
[null,null,null,null,6,{"$f":"'Set Up'!BD121","v":0},6,{"$f":"'Set Up'!#REF!","v":{"$error":"#REF!"}}]
[null,null,null,null,7,{"$f":"'Set Up'!BD122","v":0},7,{"$f":"'Set Up'!#REF!","v":{"$error":"#REF!"}}]
[null,null,null,null,8,{"$f":"'Set Up'!BD123","v":0},8,{"$f":"'Set Up'!#REF!","v":{"$error":"#REF!"}}]
[null,null,null,null,9,{"$f":"'Set Up'!BD124","v":0},9,{"$f":"'Set Up'!#REF!","v":{"$error":"#REF!"}}]
[null,null,null,null,10,{"$f":"'Set Up'!BD125","v":0},10,{"$f":"'Set Up'!#REF!","v":{"$error":"#REF!"}}]
[null,null,null,null,null,null,11,{"$f":"'Set Up'!#REF!","v":{"$error":"#REF!"}}]
[null,null,null,null,null,null,12,{"$f":"'Set Up'!#REF!","v":{"$error":"#REF!"}}]
[null,null,null,null,null,null,13,{"$f":"'Set Up'!#REF!","v":{"$error":"#REF!"}}]
[null,null,null,null,null,null,14,{"$f":"'Set Up'!#REF!","v":{"$error":"#REF!"}}]
[null,null,null,null,null,null,15,{"$f":"'Set Up'!#REF!","v":{"$error":"#REF!"}}]
[null,null,null,null,null,null,16,{"$f":"'Set Up'!#REF!","v":{"$error":"#REF!"}}]
[null,null,null,null,null,null,17,{"$f":"'Set Up'!#REF!","v":{"$error":"#REF!"}}]
[null,null,null,null,null,null,18,{"$f":"'Set Up'!#REF!","v":{"$error":"#REF!"}}]
[null,null,null,null,null,null,19,{"$f":"'Set Up'!#REF!","v":{"$error":"#REF!"}}]
[null,null,null,null,null,null,20,{"$f":"'Set Up'!#REF!","v":{"$error":"#REF!"}}]
[null,null,null,null,null,null,21,{"$f":"'Set Up'!#REF!","v":{"$error":"#REF!"}}]
[null,null,null,null,null,null,22,{"$f":"'Set Up'!#REF!","v":{"$error":"#REF!"}}]
[null,null,null,null,null,null,23,{"$f":"'Set Up'!#REF!","v":{"$error":"#REF!"}}]
[null,null,null,null,null,null,24,{"$f":"'Set Up'!#REF!","v":{"$error":"#REF!"}}]
[null,null,null,null,null,null,25,{"$f":"'Set Up'!#REF!","v":{"$error":"#REF!"}}]
[null,null,null,null,null,null,26,{"$f":"'Set Up'!#REF!","v":{"$error":"#REF!"}}]
[null,null,null,null,null,{"$f":"'Set Up'!#REF!","v":{"$error":"#REF!"}},27,{"$f":"'Set Up'!#REF!","v":{"$error":"#REF!"}}]
[null,null,null,null,null,{"$f":"'Set Up'!#REF!","v":{"$error":"#REF!"}},28,{"$f":"'Set Up'!#REF!","v":{"$error":"#REF!"}}]
[]
[]
[]
[]
[]
[]
[]
[]
[]
[]
[]
[]
[]
[]
[]
[]
[null,null,null,"Universal",null,"    Outcomes (RR)"]
[null,null,null,"Intervention type","Description",{"$f":"'Set Up'!D196","v":0},"Depression",{"$f":"H220","v":"Low self-esteem"},"Empathy","Psychological problems","Emotional wellbeing","Wellbeing","Social and emotional difficulties","Cooperation","Social adjustment","Behavioural difficulties","Behavioural outcomes (difficulties)","Behavioural outcomes (prosocial)","Perpetration","Victimisation","Perpetration (primary)","Perpetration (secondary)","Victimisation (primary)","Victimisation (secondary)","Cyberbullying perpetration","Cyberbullying victimisation","Exclusion","Truancy","School attendance","School climate","Response","Prosocial behaviour difficulties","Emotional distress - primary education ","Emotional distress - secondary education ","Behavioural difficulties - primary education","Behavioural difficulties - secondary education"]
[null,null,null,{"$f":"'Set Up'!H144","v":0},null,1,"No available evidence","No available evidence","No available evidence","No available evidence","No available evidence","No available evidence","No available evidence","No available evidence","No available evidence",0.87,"No available evidence","No available evidence","No available evidence","No available evidence","No available evidence","No available evidence","No available evidence","No available evidence","No available evidence","No available evidence","No available evidence","No available evidence","No available evidence","No available evidence","No available evidence","No available evidence","No available evidence","No available evidence","No available evidence","No available evidence"]
[null,null,null,{"$f":"'Set Up'!H145","v":0},null,1.1299999999999999,null,null,"No available evidence","No available evidence","No available evidence","No available evidence",null,"No available evidence","No available evidence","No available evidence","No available evidence","No available evidence",null,null,"No available evidence","No available evidence","No available evidence","No available evidence","No available evidence","No available evidence","No available evidence","No available evidence","No available evidence","No available evidence","No available evidence"]
[null,null,null,{"$f":"'Set Up'!H146","v":0},null,1.01,null,null,"No available evidence","No available evidence","No available evidence","No available evidence",1,"No available evidence","No available evidence",null,"No available evidence","No available evidence",null,null,"No available evidence","No available evidence","No available evidence","No available evidence","No available evidence","No available evidence","No available evidence","No available evidence","No available evidence","No available evidence","No available evidence"]
[null,null,null,{"$f":"'Set Up'!H147","v":0},null,"No available evidence",null,null,"No available evidence","No available evidence","No available evidence","No available evidence","No available evidence","No available evidence","No available evidence",1,"No available evidence","No available evidence",null,null,"No available evidence","No available evidence","No available evidence","No available evidence","No available evidence","No available evidence","No available evidence","No available evidence","No available evidence","No available evidence","No available evidence"]
[null,null,null,{"$f":"'Set Up'!H148","v":0},null,"No available evidence",null,null,"No available evidence","No available evidence","No available evidence","No available evidence",null,"No available evidence","No available evidence",1.04,"No available evidence","No available evidence",null,null,"No available evidence","No available evidence","No available evidence","No available evidence","No available evidence","No available evidence","No available evidence","No available evidence","No available evidence","No available evidence","No available evidence"]
[null,null,null,{"$f":"'Set Up'!H149","v":0},null,0.89,null,null,"No available evidence","No available evidence","No available evidence","No available evidence",0.94,"No available evidence","No available evidence",1.0900000000000001,"No available evidence","No available evidence",null,null,"No available evidence","No available evidence","No available evidence","No available evidence","No available evidence","No available evidence","No available evidence","No available evidence","No available evidence","No available evidence","No available evidence"]
[null,null,null,{"$f":"'Set Up'!H150","v":0},null,1.01,null,null,"No available evidence","No available evidence","No available evidence","No available evidence","No available evidence","No available evidence","No available evidence","No available evidence","No available evidence","No available evidence",null,null,"No available evidence","No available evidence","No available evidence","No available evidence","No available evidence","No available evidence",null,null,"No available evidence","No available evidence","No available evidence"]
[null,null,null,{"$f":"'Set Up'!H151","v":0},null,1.24,null,null,"No available evidence","No available evidence","No available evidence","No available evidence",null,"No available evidence","No available evidence",null,"No available evidence","No available evidence",null,null,"No available evidence","No available evidence","No available evidence","No available evidence","No available evidence","No available evidence","No available evidence","No available evidence","No available evidence","No available evidence","No available evidence"]
[null,null,null,{"$f":"'Set Up'!H152","v":0},null,0.94,null,null,"No available evidence","No available evidence","No available evidence","No available evidence",null,"No available evidence","No available evidence",null,"No available evidence","No available evidence",null,null,"No available evidence","No available evidence","No available evidence","No available evidence","No available evidence","No available evidence","No available evidence","No available evidence","No available evidence","No available evidence","No available evidence"]
[null,null,null,{"$f":"'Set Up'!H153","v":0},null,1.06,null,null,null,null,null,null,null,null,null,1.02]
[null,null,null,{"$f":"'Set Up'!H154","v":0},null,1.0900000000000001,null,null,null,null,null,null,null,null,null,"No available evidence"]
[null,null,null,{"$f":"'Set Up'!H155","v":0},null,1.07]
[null,null,null,{"$f":"'Set Up'!H156","v":0},null,2.0499999999999998,null,null,null,null,null,null,null,"No available evidence","No available evidence",null,"No available evidence","No available evidence"]
[null,null,null,{"$f":"'Set Up'!H157","v":0},null,1.19,null,null,null,null,null,null,null,null,null,1.1599999999999999]
[null,null,null,{"$f":"'Set Up'!H158","v":0},null,0.96,null,null,null,null,null,null,null,"No available evidence","No available evidence","No available evidence","No available evidence","No available evidence"]
[null,null,null,{"$f":"'Set Up'!H159","v":0},null,1.08,null,null,null,null,null,null,null,"No available evidence","No available evidence",null,"No available evidence","No available evidence"]
[null,null,null,{"$f":"'Set Up'!H160","v":0},null,1.38,null,null,null,null,null,null,1.08]
[null,null,null,{"$f":"'Set Up'!H161","v":0},null,1.33,null,null,"No available evidence","No available evidence","No available evidence","No available evidence","No available evidence",null,null,1.2]
[null,null,null,{"$f":"'Set Up'!H162","v":0},null,0.98,null,null,null,null,null,null,null,"No available evidence","No available evidence","No available evidence","No available evidence","No available evidence"]
[null,null,null,{"$f":"'Set Up'!H163","v":0},null,1.19]
[null,null,null,{"$f":"'Set Up'!H164","v":0},null,1.05]
[null,null,null,{"$f":"'Set Up'!H165","v":0},null,"No available evidence",null,null,null,null,null,null,1.44]
[null,null,null,{"$f":"'Set Up'!H166","v":0},null,null,null,null,null,null,null,null,0.95]
[null,null,null,{"$f":"'Set Up'!H167","v":0},null,null,null,null,"No available evidence","No available evidence","No available evidence","No available evidence","No available evidence",null,null,0.97]
[null,null,null,{"$f":"'Set Up'!H168","v":0},null,null,null,null,null,null,null,null,1.06,null,null,"No available evidence","No available evidence","No available evidence"]
[]
[]
[]
[null,null,null,"Whole-school",null,"    Outcomes (RR)"]
[null,null,null,"Intervention type","Description","Emotional distress","Depression",{"$f":"H230","v":"Low self-esteem"},"Empathy","Psychological problems","Emotional wellbeing","Wellbeing",{"$f":"M190","v":"Social and emotional difficulties"},"Cooperation","Social adjustment",{"$f":"'Set Up'!D195","v":0},"Behavioural outcomes (difficulties)","Behavioural outcomes (prosocial)","Perpetration","Victimisation","Perpetration (primary)","Perpetration (secondary)","Victimisation (primary)","Victimisation (secondary)","Cyberbullying perpetration","Cyberbullying victimisation","Exclusion","Truancy","School attendance","School climate","Response",{"$f":"AF190","v":"Prosocial behaviour difficulties"},"Emotional distress - primary education ","Emotional distress - secondary education ","Behavioural outcomes - primary education","Behavioural outcomes - secondary education",{"$f":"'Set Up'!U176","v":0}]
[null,null,null,{"$f":"'Set Up'!H169","v":0},"Offer a whole-school approach to support positive social, emotional, and mental wellbeing in primary and secondary education. ","No available evidence","No available evidence","No available evidence","No available evidence","No available evidence","No available evidence","No available evidence",1.17,"No available evidence","No available evidence",0.91,"No available evidence","No available evidence","No available evidence","No available evidence","No available evidence","No available evidence","No available evidence","No available evidence","No available evidence","No available evidence","No available evidence","No available evidence","No available evidence","No available evidence","No available evidence","No available evidence","No available evidence","No available evidence","No available evidence","No available evidence","No available evidence"]
[null,null,null,{"$f":"'Set Up'!H170","v":0},null,null,null,null,"No available evidence","No available evidence","No available evidence","No available evidence","No available evidence","No available evidence","No available evidence",1,"No available evidence","No available evidence"]
[]
[]
[]
[]
[]
[]
[null,null,null,"Targeted",null,"    Outcomes (RR)"]
[null,null,null,"Intervention type","Description","Emotional distress","Depression",{"$f":"H247","v":"Low self-esteem"},"Empathy","Psychological problems","Emotional wellbeing","Wellbeing",{"$f":"M190","v":"Social and emotional difficulties"},"Cooperation","Social adjustment",{"$f":"'Set Up'!D195","v":0},"Behavioural outcomes (difficulties)","Behavioural outcomes (prosocial)","Perpetration","Victimisation","Perpetration (primary)","Perpetration (secondary)","Victimisation (primary)","Victimisation (secondary)","Cyberbullying perpetration","Cyberbullying victimisation","Exclusion","Truancy","School attendance","School climate","Response",{"$f":"AF220","v":"Prosocial behaviour difficulties"},"Emotional distress - primary education ","Emotional distress - secondary education ","Behavioural outcomes - primary education","Behavioural outcomes - secondary education"]
[null,null,null,"MH group (specialist)","Offer individual or group support to children and young people who have been identified as needing additional social and emotional support and/or mental health support",1.1599999999999999,"No available evidence","No available evidence","No available evidence","No available evidence","No available evidence","No available evidence","No available evidence","No available evidence","No available evidence",1.08,"No available evidence","No available evidence","No available evidence","No available evidence","No available evidence","No available evidence","No available evidence","No available evidence","No available evidence","No available evidence","No available evidence","No available evidence","No available evidence","No available evidence","No available evidence","No available evidence","No available evidence","No available evidence","No available evidence","No available evidence"]
[null,null,null,"MH individual (specialist)",null,1.61,"No available evidence",1.43,"No available evidence","No available evidence","No available evidence","No available evidence",null,"No available evidence","No available evidence",1.66,"No available evidence","No available evidence",null,null,"No available evidence","No available evidence","No available evidence","No available evidence","No available evidence","No available evidence","No available evidence","No available evidence","No available evidence","No available evidence","No available evidence",1.18]
[null,null,null,"MH group (school staff)",null,0.97,"No available evidence","No available evidence","No available evidence","No available evidence","No available evidence","No available evidence",null,"No available evidence","No available evidence","No available evidence","No available evidence","No available evidence",null,null,"No available evidence","No available evidence","No available evidence","No available evidence","No available evidence","No available evidence","No available evidence","No available evidence","No available evidence","No available evidence","No available evidence","No available evidence",1.01,0.88]
[null,null,null,"Computer-based interventions",null,2.5,"No available evidence",null,"No available evidence","No available evidence","No available evidence","No available evidence",null,"No available evidence","No available evidence",null,"No available evidence","No available evidence",null,null,"No available evidence","No available evidence","No available evidence","No available evidence","No available evidence","No available evidence","No available evidence","No available evidence","No available evidence","No available evidence","No available evidence",null,"No available evidence","No available evidence"]
[null,null,null,{"$f":"'Set Up'!G233","v":0},null,"No available evidence","No available evidence",null,null,null,null,null,null,null,null,1.49,null,null,null,null,"No available evidence","No available evidence","No available evidence","No available evidence","No available evidence","No available evidence","No available evidence","No available evidence","No available evidence","No available evidence","No available evidence"]
[null,null,null,{"$f":"'Set Up'!G234","v":0},null,null,null,null,null,null,null,null,null,null,null,1.1100000000000001,null,null,null,null,"No available evidence","No available evidence","No available evidence","No available evidence","No available evidence","No available evidence","No available evidence","No available evidence","No available evidence","No available evidence","No available evidence",null,null,null,1.08,1.5]
[null,null,null,{"$f":"'Set Up'!G237","v":0},null,null,null,null,null,null,null,null,null,null,null,1.86,null,null,null,null,"No available evidence","No available evidence","No available evidence","No available evidence","No available evidence","No available evidence","No available evidence","No available evidence","No available evidence","No available evidence","No available evidence",null,null,null,"No available evidence","No available evidence"]
[null,null,null,{"$f":"'Set Up'!G238","v":0},null,null,null,null,null,null,null,null,null,null,null,3.77,null,null,null,null,"No available evidence","No available evidence","No available evidence","No available evidence","No available evidence","No available evidence","No available evidence","No available evidence","No available evidence","No available evidence","No available evidence"]
[]
[]
[]
[]
[]
[]
[]
[null,null,null,"Transitions",null,"    Outcomes (RR)"]
[null,null,null,"Intervention type","Description","Emotional distress","Depression","Low self-esteem","Empathy","Psychological problems","Emotional wellbeing","Wellbeing",{"$f":"M230","v":"Social and emotional difficulties"},"Cooperation","Social adjustment",{"$f":"'Set Up'!D195","v":0},"Behavioural outcomes (difficulties)","Behavioural outcomes (prosocial)","Perpetration","Victimisation","Perpetration (primary)","Perpetration (secondary)","Victimisation (primary)","Victimisation (secondary)","Cyberbullying perpetration","Cyberbullying victimisation","Exclusion","Truancy","School attendance","School climate","Response",{"$f":"AF230","v":"Prosocial behaviour difficulties"},"Emotional distress - primary education ","Emotional distress - secondary education ","Behavioural outcomes - primary education","Behavioural outcomes - secondary education",{"$f":"AK220","v":0}]
[null,null,null,"Transition between schools","Take account of the concerns of children undergoing transition\n",1.02,"No available evidence","No available evidence","No available evidence","No available evidence","No available evidence","No available evidence","No available evidence","No available evidence","No available evidence",1.28,"No available evidence","No available evidence","No available evidence","No available evidence","No available evidence","No available evidence","No available evidence","No available evidence","No available evidence","No available evidence","No available evidence","No available evidence","No available evidence","No available evidence","No available evidence","No available evidence","No available evidence","No available evidence","No available evidence","No available evidence",0.98]
[null,null,null,null,"Intervention type",null,"Intervention type",null,"Intervention type",null,"Intervention type"]
[null,null,null,1,"MH group (specialist)",4,"Promote SEW skills",null,"MH group (specialist)",9,"Transition between schools"]
[null,null,null,2,"MD inidividual (specialist)",5,"Bullying (without parent involvement)",1,"MD inidividual (specialist)",10,"[User defined]"]
[null,null,null,3,"MH group (school staff) ",6,"Bullying (with parent involvement)",2,"MH group (school staff) "]
[null,null,null,4,"Promote SEW skills",7,"Bullying",10,"[User defined]"]
[null,null,null,5,"Bullying (without parent involvement)",8,"Bullying (curriculum + targeted)"]
[null,null,null,6,"Bullying (with parent involvement)",10,"[User defined]"]
[null,null,null,7,"Bullying"]
[null,null,null,8,"Bullying (curriculum + targeted)"]
[null,null,null,9,"Transition between schools"]
[null,null,null,10,"[User defined]"]
[]
[]
[]
[]
[]
[null,null,null,"ID"]
[null,null,null,1]
[null,null,null,2]
[null,null,null,3]
[null,null,null,4]
[null,null,null,5]
[null,null,null,6]
[null,null,null,7]
[null,null,null,8]
[null,null,null,9]
[null,null,null,10]
[]
[]
[]
[]
[null,null,null,null,null,null,null,null,null,null,null,null,null,null,null,null,null,null,null,null,null,null,null,null,null,null,null,null,null,null,null,null,null,"SUMMARY"]
[null,null,null,null,null,null,null,null,null,null,null,null,null,null,null,null,null,null,null,null,null,null,null,null,null,null,null,null,null,null,null,null,null,"● Reduce emotional distress by 0.33\n● Increase depression diagnosis by 0.51\n● Decrease social adjustment by 0.34\n●Decrease behavioural outcomes by 0.1\n● Increase response by 1.76\n● Quality of life 0.82"]
[null,null,null,null,null,null,null,null,null,null,null,null,null,null,null,null,null,null,null,null,null,null,null,null,null,null,null,null,null,null,null,null,null,"● Reduce emotional distress by 0.71\n● Increase self-esteem by 0.57\n● Decrease behavioural outcomes (difficulties) by 0.6\n● Increase behavioural outcomes (prosocial) by 0.39"]
[null,null,null,null,null,null,null,null,null,null,null,null,null,null,null,null,null,null,null,null,null,null,null,null,null,null,null,null,null,null,null,null,null,"● Reduce emotional distress by 0.01\n● Increase depression diagnosis by 0.19\n● Decrease behavioural outcomes by 0.16"]
[null,null,null,null,null,null,null,null,null,null,null,null,null,null,null,null,null,null,null,null,null,null,null,null,null,null,null,null,null,null,null,null,null,"● Decrease empathy by 0.02\n● Decrease cooperation by 0.01\n● No effect on behavioural outcomes (difficulties)\n● Increase behavioural outcomes (prosocial) by 0.25"]
[null,null,null,null,null,null,"Outcomes",null,null,null,null,null,null,null,null,null,null,null,null,null,null,null,null,null,null,null,null,null,null,null,null,null,null,"● Increase bullying perpetration by 0.02\n● Decrease bullying victimisation by 0.12\n● Decrease cyberbullying perpetration by 0.06\n● Decrease cyberbullying victimisation by 0.06\n● Increase school climate by 0.36"]
[null,null,null,null,"Intervention type","Description","emotional distress","depression diagnosis","self-esteem","empathy","psychological problems","emotional wellbeing","wellbeing","social and emotional skills","cooperation","social adjustment","behavioural outcomes","behavioural outcomes (difficulties)","behavioural outcomes (prosocial)","perpetration","victimisation","perpetration (primary)","perpetration (secondary)","victimisation (primary)","victimisation (secondary)","cyberbullying perpetration","cyberbullying victimisation","exclusion","truancy","school attendance","school climate","response","quality of life","● Decrease bullying perpetration by 0.28\n● Decrease bullying victimisation by 0.22\n● Decrease cyberbullying perpetration by 0.07\n● Decrease cyberbullying victimisation by 0.06\n● Increase school climate by 0.19"]
[null,null,null,null,"MH group (specialist)","Offer individual or group support to children and young people who have been identified as needing additional social and emotional support and/or mental health support","Reduce emotional distress by 0.33","Increase depression diagnosis by 0.51",null,null,null,null,null,null,null,"Decrease social adjustment by 0.34","Decrease behavioural outcomes by 0.1",null,null,null,null,null,null,null,null,null,null,null,null,null,null,"Increase response by 1.76","Quality of life 0.82","● Increase psychological problems by 0.04\n● Increase emotional wellbeing by 0.03\n● Increase exclusion by 0.97\n● Increase truancy by 1.11\n● Quality of life reduction of 0.17"]
[null,null,null,null,"MD inidividual (specialist)",null,"Reduce emotional distress by 0.71",null,"Increase self-esteem by 0.57",null,null,null,null,null,null,null,null,"Decrease behavioural outcomes (difficulties) by 0.6","Increase behavioural outcomes (prosocial) by 0.39",null,null,null,null,null,null,null,null,null,null,null,null,null,null,"● Increase wellbeing by 0.15\n● Decrease bullying perpetration (primary) by 0.13\n● Decrease bullying perpetration (secondary) by 0.1\n● Decrease bullying victimisation (primary) by 0.18\n● Decrease bullying victimisation (secondary) by 0.08\n"]
[null,null,null,null,"MH group (school staff) ",null,"Reduce emotional distress by 0.01","Increase depression diagnosis by 0.19",null,null,null,null,null,null,null,null,"Decrease behavioural outcomes by 0.16",null,null,null,null,null,null,null,null,null,null,null,null,null,null,null,null,"● Reduce emotional distress by 0.19\n● Increase social and emotional skills by 0.26\n● Increase behavioural outcomes by 0.49\n● No effect on bullying perpetration \n● No effect on bullying victimisation\n● Increase behavioural outcomes (prosocial) by 0.77\n● Decrease school attendance by 0.14"]
[null,null,null,null,"Promote SEW skills","Offer a whole-school approach to support positive social, emotional, and mental wellbeing in primary and secondary education. ",null,null,null,"Decrease empathy by 0.02",null,null,null,null,"Decrease cooperation by 0.01",null,null,"Decrease behavioural outcomes (difficulties) by 0","Increase behavioural outcomes (prosocial) by 0.25",null,null,null,null,null,null,null,null,null,null,null,null,null,null,{"$f":"CONCATENATE(IF(G296=\"\", \"\", CONCATENATE(G296, CHAR(10))), IF(H296=\"\", \"\", CONCATENATE(H296, CHAR(10))), IF(I296=\"\", \"\", CONCATENATE(I296, CHAR(10))), IF(J296=\"\", \"\", CONCATENATE(J296, CHAR(10))), IF(K296=\"\", \"\", CONCATENATE(K296, CHAR(10))), IF(L296=\"\", \"\", CONCATENATE(L296, CHAR(10))),  IF(M296=\"\", \"\", CONCATENATE(M296, CHAR(10))), IF(N296=\"\", \"\", CONCATENATE(N296, CHAR(10))),  IF(O296=\"\", \"\", CONCATENATE(O296, CHAR(10))), IF(P296=\"\", \"\", CONCATENATE(P296, CHAR(10))),  IF(Q296=\"\", \"\", CONCATENATE(Q296, CHAR(10))), IF(R296=\"\", \"\", CONCATENATE(R296, CHAR(10))), IF(S296=\"\", \"\", CONCATENATE(S296, CHAR(10))), IF(T296=\"\", \"\", CONCATENATE(T296, CHAR(10))), IF(U296=\"\", \"\", CONCATENATE(U296, CHAR(10))), IF(V296=\"\", \"\", CONCATENATE(V296, CHAR(10))), IF(W296=\"\", \"\", CONCATENATE(W296, CHAR(10))), IF(X296=\"\", \"\", CONCATENATE(X296, CHAR(10))), IF(Y296=\"\", \"\", CONCATENATE(Y296, CHAR(10))), IF(Z296=\"\", \"\", CONCATENATE(Z296, CHAR(10))), IF(AA296=\"\", \"\", CONCATENATE(AA296, CHAR(10))), IF(AB296=\"\", \"\", CONCATENATE(AB296, CHAR(10))), IF(AC296=\"\", \"\", CONCATENATE(AC296, CHAR(10))), IF(AD296=\"\", \"\", CONCATENATE(AD296, CHAR(10))), IF(AE296=\"\", \"\", CONCATENATE(AE296, CHAR(10))), IF(AF296=\"\", \"\", CONCATENATE(AF296, CHAR(10))), IF(AG296=\"\", \"\", CONCATENATE(AG296, CHAR(10))))","v":{"$error":"#REF!"}}]
[null,null,null,null,"Bullying (without parent involvement)",null,null,null,null,null,null,null,null,null,null,null,null,null,null,"Increase bullying perpetration by 0.02","Decrease bullying victimisation by 0.12",null,null,null,null,"Decrease cyberbullying perpetration by 0.06","Decrease cyberbullying victimisation by 0.06",null,null,null,"Increase school climate by 0.36"]
[null,null,null,null,"Bullying (with parent involvement)",null,null,null,null,null,null,null,null,null,null,null,null,null,null,"Decrease bullying perpetration by 0.28","Decrease bullying victimisation by 0.22",null,null,null,null,"Decrease cyberbullying perpetration by 0.07","Decrease cyberbullying victimisation by 0.06",null,null,null,"Increase school climate by 0.19"]
[null,null,null,null,"Bullying",null,null,null,null,null,"Increase psychological problems by 0.04","Increase emotional wellbeing by 0.03",null,null,null,null,null,null,null,null,null,null,null,null,null,null,null,"Increase exclusion by 0.97","Increase truancy by 1.11",null,null,null,"Quality of life reduction by 0.17"]
[null,null,null,null,"Bullying (curriculum + targeted)",null,null,null,null,null,null,null,"Increase wellbeing by 0.15",null,null,null,null,null,null,null,null,"Decrease bullying perpetration (primary) by 0.13","Decrease bullying perpetration (secondary) by 0.1","Decrease bullying victimisation (primary) by 0.18","Decrease bullying victimisation (secondary) by 0.08"]
[null,null,null,null,"Transition between schools","Take account of the concerns of children undergoing transition\n","Reduce emotional distress by 0.19",null,null,null,null,null,null,"Increase social and emotional skills by 0.26",null,null,"Increase behavioural outcomes by 0.49",null,"Increase behavioural outcomes (prosocial) by 0.77","No effect on bullying perpetration ","No effect on bullying victimisation",null,null,null,null,null,null,null,null,"Decrease school attendance by 0.14",null,null,null,null,"utility"]
[null,null,null,null,"User defined",null,{"$f":"IF(#REF!=\"\",\"\",CONCATENATE(IF(#REF!>0, \"● Improve \", \"● Reduce \"),G$286, \" by \", ABS(#REF!)))","v":{"$error":"#REF!"}},{"$f":"IF(#REF!=\"\",\"\",CONCATENATE(IF(#REF!>0, \"● Improve \", \"● Reduce \"),H$286, \" by \", ABS(#REF!)))","v":{"$error":"#REF!"}},{"$f":"IF(#REF!=\"\",\"\",CONCATENATE(IF(#REF!>0, \"● Improve \", \"● Reduce \"),I$286, \" by \", ABS(#REF!)))","v":{"$error":"#REF!"}},{"$f":"IF(#REF!=\"\",\"\",CONCATENATE(IF(#REF!>0, \"● Improve \", \"● Reduce \"),J$286, \" by \", ABS(#REF!)))","v":{"$error":"#REF!"}},{"$f":"IF(#REF!=\"\",\"\",CONCATENATE(IF(#REF!>0, \"● Improve \", \"● Reduce \"),K$286, \" by \", ABS(#REF!)))","v":{"$error":"#REF!"}},{"$f":"IF(#REF!=\"\",\"\",CONCATENATE(IF(#REF!>0, \"● Improve \", \"● Reduce \"),L$286, \" by \", ABS(#REF!)))","v":{"$error":"#REF!"}},{"$f":"IF(#REF!=\"\",\"\",CONCATENATE(IF(#REF!>0, \"● Improve \", \"● Reduce \"),M$286, \" by \", ABS(#REF!)))","v":{"$error":"#REF!"}},{"$f":"IF(#REF!=\"\",\"\",CONCATENATE(IF(#REF!>0, \"● Improve \", \"● Reduce \"),N$286, \" by \", ABS(#REF!)))","v":{"$error":"#REF!"}},{"$f":"IF(#REF!=\"\",\"\",CONCATENATE(IF(#REF!>0, \"● Improve \", \"● Reduce \"),O$286, \" by \", ABS(#REF!)))","v":{"$error":"#REF!"}},{"$f":"IF(#REF!=\"\",\"\",CONCATENATE(IF(#REF!>0, \"● Improve \", \"● Reduce \"),P$286, \" by \", ABS(#REF!)))","v":{"$error":"#REF!"}},{"$f":"IF(#REF!=\"\",\"\",CONCATENATE(IF(#REF!>0, \"● Improve \", \"● Reduce \"),Q$286, \" by \", ABS(#REF!)))","v":{"$error":"#REF!"}},{"$f":"IF(#REF!=\"\",\"\",CONCATENATE(IF(#REF!>0, \"● Improve \", \"● Reduce \"),R$286, \" by \", ABS(#REF!)))","v":{"$error":"#REF!"}},{"$f":"IF(#REF!=\"\",\"\",CONCATENATE(IF(#REF!>0, \"● Improve \", \"● Reduce \"),S$286, \" by \", ABS(#REF!)))","v":{"$error":"#REF!"}},{"$f":"IF(#REF!=\"\",\"\",CONCATENATE(IF(#REF!>0, \"● Improve \", \"● Reduce \"),T$286, \" by \", ABS(#REF!)))","v":{"$error":"#REF!"}},{"$f":"IF(#REF!=\"\",\"\",CONCATENATE(IF(#REF!>0, \"● Improve \", \"● Reduce \"),U$286, \" by \", ABS(#REF!)))","v":{"$error":"#REF!"}},{"$f":"IF(#REF!=\"\",\"\",CONCATENATE(IF(#REF!>0, \"● Improve \", \"● Reduce \"),V$286, \" by \", ABS(#REF!)))","v":{"$error":"#REF!"}},{"$f":"IF(#REF!=\"\",\"\",CONCATENATE(IF(#REF!>0, \"● Improve \", \"● Reduce \"),W$286, \" by \", ABS(#REF!)))","v":{"$error":"#REF!"}},{"$f":"IF(#REF!=\"\",\"\",CONCATENATE(IF(#REF!>0, \"● Improve \", \"● Reduce \"),X$286, \" by \", ABS(#REF!)))","v":{"$error":"#REF!"}},{"$f":"IF(#REF!=\"\",\"\",CONCATENATE(IF(#REF!>0, \"● Improve \", \"● Reduce \"),Y$286, \" by \", ABS(#REF!)))","v":{"$error":"#REF!"}},{"$f":"IF(#REF!=\"\",\"\",CONCATENATE(IF(#REF!>0, \"● Improve \", \"● Reduce \"),Z$286, \" by \", ABS(#REF!)))","v":{"$error":"#REF!"}},{"$f":"IF(#REF!=\"\",\"\",CONCATENATE(IF(#REF!>0, \"● Improve \", \"● Reduce \"),AA$286, \" by \", ABS(#REF!)))","v":{"$error":"#REF!"}},{"$f":"IF(#REF!=\"\",\"\",CONCATENATE(IF(#REF!>0, \"● Improve \", \"● Reduce \"),AB$286, \" by \", ABS(#REF!)))","v":{"$error":"#REF!"}},{"$f":"IF(#REF!=\"\",\"\",CONCATENATE(IF(#REF!>0, \"● Improve \", \"● Reduce \"),AC$286, \" by \", ABS(#REF!)))","v":{"$error":"#REF!"}},{"$f":"IF(#REF!=\"\",\"\",CONCATENATE(IF(#REF!>0, \"● Improve \", \"● Reduce \"),AD$286, \" by \", ABS(#REF!)))","v":{"$error":"#REF!"}},{"$f":"IF(#REF!=\"\",\"\",CONCATENATE(IF(#REF!>0, \"● Improve \", \"● Reduce \"),AE$286, \" by \", ABS(#REF!)))","v":{"$error":"#REF!"}},{"$f":"IF(#REF!=\"\",\"\",CONCATENATE(IF(#REF!>0, \"● Improve \", \"● Reduce \"),AF$286, \" by \", ABS(#REF!)))","v":{"$error":"#REF!"}},{"$f":"IF(#REF!=\"\",\"\",CONCATENATE(IF(#REF!>0, \"● Improve \", \"● Reduce \"),AG$286, \" by \", ABS(#REF!)))","v":{"$error":"#REF!"}},null,{"$f":"#REF!","v":{"$error":"#REF!"}}]
[null,null,null,null,null,null,null,null,null,null,null,null,null,null,null,null,null,null,null,null,null,null,null,null,null,null,null,null,null,null,null,null,null,null,{"$f":"#REF!","v":{"$error":"#REF!"}}]
[null,null,null,null,null,null,null,null,null,null,null,null,null,null,null,null,null,null,null,null,null,null,null,null,null,null,null,null,null,null,null,null,null,null,{"$f":"#REF!","v":{"$error":"#REF!"}}]
[null,null,null,null,null,null,null,null,null,null,null,null,null,null,null,null,null,null,null,null,null,null,null,null,null,null,null,null,null,null,null,null,null,null,{"$f":"#REF!","v":{"$error":"#REF!"}}]
[null,null,null,null,null,null,null,null,null,null,null,null,null,null,null,null,null,null,null,null,null,null,null,null,null,null,null,null,null,null,null,null,null,null,{"$f":"#REF!","v":{"$error":"#REF!"}}]
[null,null,null,null,null,null,null,null,null,null,null,null,null,null,null,null,null,null,null,null,null,null,null,null,null,null,null,null,null,null,null,null,null,null,{"$f":"#REF!","v":{"$error":"#REF!"}}]
[null,null,null,null,null,null,null,null,null,null,null,null,null,null,null,null,null,null,null,null,null,null,null,null,null,null,null,null,null,null,null,null,null,null,{"$f":"#REF!","v":{"$error":"#REF!"}}]
[null,null,null,null,null,null,null,null,null,null,null,null,null,null,null,null,null,null,null,null,null,null,null,null,null,null,null,null,null,null,null,null,null,null,{"$f":"#REF!","v":{"$error":"#REF!"}}]
[null,null,null,null,null,null,null,null,null,null,null,null,null,null,null,null,null,null,null,null,null,null,null,null,null,null,null,null,null,null,null,null,null,null,{"$f":"#REF!","v":{"$error":"#REF!"}}]
[null,null,null,null,null,null,null,null,null,null,null,null,null,null,null,null,null,null,null,null,null,null,null,null,null,null,null,null,null,null,null,null,null,null,{"$f":"#REF!","v":{"$error":"#REF!"}}]

{"sheet":"Intervention Cost","index":5,"n_rows":28,"n_cols":8,"rows_kept":28,"cut":false,"hidden":false,"merged":[]}
[]
[]
[]
[]
[]
[]
[]
[]
[null,null,"Total cost of intervention breakdown"]
[]
[null,null,"Staff breakdown","Number of staff required","Hours dedicated to intervention","Hourly rate","Travel costs","Total"]
[null,null,"[Health leaders]",null,null,null,null,{"$f":"((E12*F12)*D12)+G12","v":0}]
[null,null,"[Teachers]",null,null,null,null,{"$f":"((E13*F13)*D13)+G13","v":0}]
[null,null,"[Teaching assistants]",null,null,null,null,0]
[null,null,null,null,null,null,null,0]
[]
[null,null,"Resources","Number required","Cost per resource","Total"]
[null,null,"[leader manual]",null,null,{"$f":"D18*E18","v":0}]
[null,null,"[booklets for students]",null,null,{"$f":"D19*E19","v":0}]
[null,null,null,null,null,{"$f":"D20*E20","v":0}]
[null,null,null,null,null,0]
[]
[]
[null,null,"Total (using table)",{"$f":"SUM(H12:H15,F18:F21)","v":0}]
[]
[null,null,"or"]
[]
[null,null,"Total (user defined)",0]

{"sheet":"RR tables","index":6,"n_rows":62,"n_cols":24,"rows_kept":62,"cut":false,"hidden":false,"merged":[[59,4,59,23],[41,2,42,2],[48,2,55,2],[9,4,9,23],[39,4,39,23],[46,4,46,23],[11,2,35,2]]}
[]
[]
[]
[]
[]
[]
[]
[]
[]
[null,"Universal approach",null,null,"    Outcomes (RR)"]
[null,"Intervention type","Description","Setting","Emotional distress","CI","Behavioural skills","CI","Social and emotional skills","CI","Self-esteem","CI","Prosocial behaviour skills","CI","Bullying perpetration","CI","Emotional distress - primary education","CI","Emotional distress - secondary education","CI","Behavioural skills- primary education","CI","Behavioural skills - secondary education","CI"]
[null,{"$f":"'Model Inputs'!E15","v":"FRIENDS_for_Life"},"Offer ‘social and emotional skills-based’ lessons as part of the curriculum",null,1,"[0.99, 1.01]",0.87,"[0.76, 0.99]","No available evidence",null,"No available evidence",null,"No available evidence",null,"No available evidence",null,"No available evidence",null,"No available evidence",null,"No available evidence",null,"No available evidence"]
[null,{"$f":"'Model Inputs'!E16","v":"CBT"},null,null,1.1299999999999999,"[0.92, 1.39]","No available evidence",null,"No available evidence",null,"No available evidence",null,"No available evidence",null,"No available evidence",null,"No available evidence",null,"No available evidence",null,"No available evidence",null,"No available evidence"]
[null,{"$f":"'Model Inputs'!E17","v":"FRIENDS"},null,null,1.01,"[0.92, 1.10]","No available evidence",null,1,"[0.95, 1.07]","No available evidence",null,"No available evidence",null,"No available evidence",null,"No available evidence",null,"No available evidence",null,"No available evidence",null,"No available evidence"]
[null,{"$f":"'Model Inputs'!E18","v":"Zippys_Friends"},null,null,"No available evidence",null,1,"[0.99,1.01]","No available evidence",null,"No available evidence",null,"No available evidence",null,"No available evidence",null,"No available evidence",null,"No available evidence",null,"No available evidence",null,"No available evidence"]
[null,{"$f":"'Model Inputs'!E19","v":"PATHS"},null,null,"No available evidence",null,1.04,"[0.92, 1.19]","No available evidence",null,"No available evidence",null,"No available evidence",null,"No available evidence",null,"No available evidence",null,"No available evidence",null,"No available evidence",null,"No available evidence"]
[null,{"$f":"'Model Inputs'!E20","v":"RAP"},null,null,0.89,"[0.84, 0.94]",1.0900000000000001,"[0.90,1.33]",0.94,"[0.83, 1.07]","No available evidence",null,"No available evidence",null,"No available evidence",null,"No available evidence",null,"No available evidence",null,"No available evidence",null,"No available evidence"]
[null,{"$f":"'Model Inputs'!E21","v":"LARS_and_LISA"},null,null,1.01,"[0.92, 1.12]","No available evidence",null,"No available evidence",null,"No available evidence",null,"No available evidence",null,"No available evidence",null,"No available evidence",null,"No available evidence",null,"No available evidence",null,"No available evidence"]
[null,{"$f":"'Model Inputs'!E22","v":"SPARX_R"},null,null,1.24,"[0.72, 2.13]","No available evidence",null,"No available evidence",null,"No available evidence",null,"No available evidence",null,"No available evidence",null,"No available evidence",null,"No available evidence",null,"No available evidence",null,"No available evidence"]
[null,{"$f":"'Model Inputs'!E23","v":"Op_Volle_Kracht"},null,null,0.94,"[0.89, 1.00]","No available evidence",null,"No available evidence",null,"No available evidence",null,"No available evidence",null,"No available evidence",null,"No available evidence",null,"No available evidence",null,"No available evidence",null,"No available evidence"]
[null,{"$f":"'Model Inputs'!E24","v":"AOP"},null,null,1.06,"[0.91, 1.23]",1.02,"[0.99, 1.05]","No available evidence",null,"No available evidence",null,"No available evidence",null,"No available evidence",null,"No available evidence",null,"No available evidence",null,"No available evidence",null,"No available evidence"]
[null,{"$f":"'Model Inputs'!E25","v":"Mindfulness"},null,null,1.0900000000000001,"[1.00, 1.19]","No available evidence",null,"No available evidence",null,"No available evidence",null,"No available evidence",null,"No available evidence",null,"No available evidence",null,"No available evidence",null,"No available evidence",null,"No available evidence"]
[null,{"$f":"'Model Inputs'!E26","v":"HeadStrong"},null,null,1.07,"[0.86, 1.34]","No available evidence",null,"No available evidence",null,"No available evidence",null,"No available evidence",null,"No available evidence",null,"No available evidence",null,"No available evidence",null,"No available evidence",null,"No available evidence"]
[null,{"$f":"'Model Inputs'!E27","v":"MoodGYM"},null,null,2.0499999999999998,"[1.32, 3.16]","No available evidence",null,"No available evidence",null,"No available evidence",null,"No available evidence",null,"No available evidence",null,"No available evidence",null,"No available evidence",null,"No available evidence",null,"No available evidence"]
[null,{"$f":"'Model Inputs'!E28","v":"Pozik Bizi"},null,null,1.19,"[0.73, 1.93]",1.1599999999999999,"[1.02, 1.32]","No available evidence",null,"No available evidence",null,"No available evidence",null,"No available evidence",null,"No available evidence",null,"No available evidence",null,"No available evidence",null,"No available evidence"]
[null,{"$f":"'Model Inputs'!E29","v":"E_Couch"},null,null,0.96,"[0.72, 1.28]","No available evidence",null,"No available evidence",null,"No available evidence",null,"No available evidence",null,"No available evidence",null,"No available evidence",null,"No available evidence",null,"No available evidence",null,"No available evidence"]
[null,{"$f":"'Model Inputs'!E30","v":"E_GAD"},null,null,1.08,"[0.84, 1.38]","No available evidence",null,"No available evidence",null,"No available evidence",null,"No available evidence",null,"No available evidence",null,"No available evidence",null,"No available evidence",null,"No available evidence",null,"No available evidence"]
[null,{"$f":"'Model Inputs'!E31","v":"MindOut"},null,null,1.38,"[0.99, 1.92]","No available evidence",null,1.08,"[0.84, 1.38]","No available evidence",null,"No available evidence",null,"No available evidence",null,"No available evidence",null,"No available evidence",null,"No available evidence",null,"No available evidence"]
[null,{"$f":"'Model Inputs'!E32","v":"Coping_Power_Unviversal"},null,null,1.33,"[1.23, 1.44]",1.2,"[1.08, 1.33]","No available evidence",null,"No available evidence",null,"No available evidence",null,"No available evidence",null,"No available evidence",null,"No available evidence",null,"No available evidence",null,"No available evidence"]
[null,{"$f":"'Model Inputs'!E33","v":"Taking_Action_Program"},null,null,0.98,"[0.89, 1.08]","No available evidence",null,"No available evidence",null,"No available evidence",null,"No available evidence",null,"No available evidence",null,"No available evidence",null,"No available evidence",null,"No available evidence",null,"No available evidence"]
[null,{"$f":"'Model Inputs'!E34","v":"ThisWayUp"},null,null,1.19,"[0.89, 1.59]","No available evidence",null,"No available evidence",null,"No available evidence",null,"No available evidence",null,"No available evidence",null,"No available evidence",null,"No available evidence",null,"No available evidence",null,"No available evidence"]
[null,{"$f":"'Model Inputs'!E35","v":"ITPFSA"},null,null,1.05,"[0.98, 1.12]","No available evidence",null,"No available evidence",null,"No available evidence",null,"No available evidence",null,"No available evidence",null,"No available evidence",null,"No available evidence",null,"No available evidence",null,"No available evidence"]
[null,{"$f":"'Model Inputs'!E36","v":"StrongKids"},null,null,"No available evidence",null,"No available evidence",null,1.44,"[0.54, 3.86]","No available evidence",null,"No available evidence",null,"No available evidence",null,"No available evidence",null,"No available evidence",null,"No available evidence",null,"No available evidence"]
[null,{"$f":"'Model Inputs'!E37","v":"Yoga"},null,null,"No available evidence",null,"No available evidence",null,0.95,"[0.74, 1.22]","No available evidence",null,"No available evidence",null,"No available evidence",null,"No available evidence",null,"No available evidence",null,"No available evidence",null,"No available evidence"]
[null,{"$f":"'Model Inputs'!E38","v":"Working_Things_Out"},null,null,"No available evidence",null,0.97,"[0.88, 1.07]","No available evidence",null,"No available evidence",null,"No available evidence",null,"No available evidence",null,"No available evidence",null,"No available evidence",null,"No available evidence",null,"No available evidence"]
[null,{"$f":"'Model Inputs'!E39","v":"Uplifting_out_health_and_wellbeing"},null,null,"No available evidence",null,"No available evidence",null,1.06,"[0.81, 1.40]","No available evidence",null,"No available evidence",null,"No available evidence",null,"No available evidence",null,"No available evidence",null,"No available evidence",null,"No available evidence"]
[]
[]
[]
[null,"Whole-school approach",null,null,"    Outcomes (RR)"]
[null,"Intervention type","Description","Setting","Emotional distress","CI",{"$f":"G11","v":"Behavioural skills"},"CI",{"$f":"I11","v":"Social and emotional skills"},"CI",{"$f":"K11","v":"Self-esteem"},"CI",{"$f":"M11","v":"Prosocial behaviour skills"},"CI","Bullying perpetration","CI","Emotional distress - primary education ","CI","Emotional distress - secondary education ","CI",{"$f":"U11","v":"Behavioural skills- primary education"},"CI",{"$f":"W11","v":"Behavioural skills - secondary education"},"CI"]
[null,{"$f":"'Model Inputs'!F15","v":"Antibullying_with_curriculum"},"Offer a whole-school approach to support positive social, emotional, and mental wellbeing in primary and secondary education. ",null,"No available evidence",null,0.91,"[0.87, 0.95]",1.17,"[0.86, 1.59]","No available evidence",null,"No available evidence",null,"No available evidence",null,"No available evidence",null,"No available evidence",null,"No available evidence",null,"No available evidence"]
[null,{"$f":"'Model Inputs'!F16","v":"Antibullying_without_curriculum"},null,null,"No available evidence",null,1,"[1.00,1.00]","No available evidence",null,"No available evidence",null,"No available evidence",null,"No available evidence",null,"No available evidence",null,"No available evidence",null,"No available evidence",null,"No available evidence"]
[]
[]
[]
[null,"Targeted approach",null,null,"    Outcomes (RR)"]
[null,"Intervention type","Description","Setting","Emotional distress","CI",{"$f":"G41","v":"Behavioural skills"},"CI",{"$f":"I41","v":"Social and emotional skills"},"CI",{"$f":"K41","v":"Self-esteem"},"CI",{"$f":"M41","v":"Prosocial behaviour skills"},"CI","Bullying perpetration","CI","Emotional distress - primary education ","CI","Emotional distress - secondary education ","CI",{"$f":"U41","v":"Behavioural skills- primary education"},"CI",{"$f":"W41","v":"Behavioural skills - secondary education"},"CI"]
[null,{"$f":"'Model Inputs'!G15","v":"MH_group_specialist"},"Offer individual or group support to children and young people who have been identified as needing additional social and emotional support and/or mental health support",null,1.1599999999999999,"[1.00, 1.36]",1.08,"[0.93, 1,26]","No available evidence",null,"No available evidence",null,"No available evidence",null,"No available evidence",null,"No available evidence",null,"No available evidence",null,"No available evidence",null,"No available evidence"]
[null,{"$f":"'Model Inputs'!G16","v":"MH_individual_specialist"},null,null,1.61,"[1.18, 2.20]",1.66,"[1.10, 2.50]","No available evidence",null,1.43,"[1.07, 1.91]",1.18,"[1.01,1.37]","No available evidence",null,"No available evidence",null,"No available evidence",null,"No available evidence",null,"No available evidence"]
[null,{"$f":"'Model Inputs'!G17","v":"MH_group_school_staff"},null,null,0.97,"[0.78, 1.21]","No available evidence",null,"No available evidence",null,"No available evidence",null,"No available evidence",null,"No available evidence",null,1.01,"[0.73, 1.41]",0.88,"[0.61, 1.27]","No available evidence",null,"No available evidence"]
[null,{"$f":"'Model Inputs'!G18","v":"Computer_based_interventions"},null,null,2.5,"[1.33, 4.70]","No available evidence",null,"No available evidence",null,"No available evidence",null,"No available evidence",null,"No available evidence",null,"No available evidence",null,"No available evidence",null,"No available evidence",null,"No available evidence"]
[null,{"$f":"'Model Inputs'!G19","v":"SE_group_school_staff"},null,null,"No available evidence",null,1.49,"[0.95, 2.36]","No available evidence",null,"No available evidence",null,"No available evidence",null,"No available evidence",null,"No available evidence",null,"No available evidence",null,"No available evidence",null,"No available evidence"]
[null,{"$f":"'Model Inputs'!G20","v":"SE_group_specialist"},null,null,"No available evidence",null,1.1100000000000001,"[0.77, 1.59]","No available evidence",null,"No available evidence",null,"No available evidence",null,"No available evidence",null,"No available evidence",null,"No available evidence",null,1.08,"[0.74, 1.58]",1.5,"[0.41, 5.45]"]
[null,{"$f":"'Model Inputs'!G21","v":"SE_individual_school_staff"},null,null,"No available evidence",null,1.86,"[0.33, 10.49]","No available evidence",null,"No available evidence",null,"No available evidence",null,"No available evidence",null,"No available evidence",null,"No available evidence",null,"No available evidence",null,"No available evidence"]
[null,{"$f":"'Model Inputs'!G22","v":"SE_individual_specialist_not_specified"},null,null,"No available evidence",null,3.77,"[0.95, 14.96]","No available evidence",null,"No available evidence",null,"No available evidence",null,"No available evidence",null,"No available evidence",null,"No available evidence",null,"No available evidence",null,"No available evidence"]
[]
[]
[]
[null,"Transitions-based approach",null,null,"    Outcomes (RR)"]
[null,"Intervention type","Description","Setting","Emotional distress","CI",{"$f":"G48","v":"Behavioural skills"},"CI",{"$f":"I48","v":"Social and emotional skills"},"CI",{"$f":"K48","v":"Self-esteem"},"CI",{"$f":"M48","v":"Prosocial behaviour skills"},"CI",{"$f":"O48","v":"Bullying perpetration"},"CI","Emotional distress - primary education ","CI","Emotional distress - secondary education ","CI",{"$f":"U48","v":"Behavioural skills- primary education"},"CI",{"$f":"W48","v":"Behavioural skills - secondary education"},"CI"]
[null,{"$f":"'Model Inputs'!H15","v":"Transition_between_schools"},"Take account of the concerns of children undergoing transition\n",null,1.02,"[0.96, 1.09]",1.28,"[0.71, 2.31]","No available evidence",null,"No available evidence",null,"No available evidence",null,0.98,"[0.91, 1.05]","No available evidence",null,"No available evidence",null,"No available evidence",null,"No available evidence"]

{"sheet":"Additional Monetary Impact","index":7,"n_rows":22,"n_cols":8,"rows_kept":22,"cut":false,"hidden":false,"merged":[[14,3,14,4],[13,3,13,4],[21,3,21,6],[18,3,18,4],[15,3,15,4],[19,3,19,4]]}
[]
[]
[]
[]
[]
[]
[]
[]
[]
[]
[]
[]
[null,null,null,"Additional monetary values - Educational Setting",null,"Base case","User defined","Used in model"]
[null,null,null,"[placeholder]",null,null,null,{"$f":"IF(G14=\"\",F14,G14)","v":0}]
[null,null,null,"[placeholder]",null,null,null,{"$f":"IF(G15=\"\",F15,G15)","v":0}]
[null,null,null,"[placeholder]",null,null,null,{"$f":"IF(G16=\"\",F16,G16)","v":0}]
[null,null,null,"Additional monetary values - Societal (Other Sectors)",null,"Base case","User defined","Used in model"]
[null,null,null,"[placeholder]",null,null,null,{"$f":"IF(G18=\"\",F18,G18)","v":0}]
[null,null,null,"[placeholder]",null,null,null,{"$f":"IF(G19=\"\",F19,G19)","v":0}]
[null,null,null,"[placeholder]",null,null,null,{"$f":"IF(G20=\"\",F20,G20)","v":0}]
[]
[null,null,null,"Total",null,null,null,{"$f":"SUM(H14:H16,H18:H20)","v":0}]

{"sheet":"Utility","index":8,"n_rows":102,"n_cols":74,"rows_kept":102,"cut":false,"hidden":false,"merged":[[16,3,16,5],[15,3,15,5],[18,3,18,5],[10,8,10,13],[12,6,12,7],[17,4,17,5],[17,6,18,9]]}
[]
[]
[]
[]
[]
[]
[]
[]
[]
[]
[]
[null,null,null,"Monetary equivalent per QALY",20000,null,"Utility ",null,"Base case","User defined","Used in model"]
[null,null,null,"Discount value",3.5000000000000003E-2,null,{"$f":"CONCATENATE(\"Utility equivalent of a student living without \",'Model Inputs'!M39,\"\")","v":"Utility equivalent of a student living without please select..."},null,null,0,{"$f":"IF(J13=\"\",ABS(I13),ABS(J13))","v":0}]
[null,null,null,"Expected length of benefit (years)"]
[]
[null,null,null,"Utility effect over time"]
[null,null,null,"Fixed"]
[null,null,null,"Fixed reduction in annual effect ",0.3,null,"Model user can define effect % in each year manually or choose a fixed utility reduction over time. When a fixed reduction value is entered this will be used in the model"]
[null,null,null,"Varying"]
[null,null,null,"Year","User defined","Used in model"]
[null,null,null,1,1,{"$f":"IF($E$18=\"\",E21,1)","v":1}]
[null,null,null,2,1,{"$f":"IF($E$18=\"\",E22,IF($F$21*(1-$E$18*D21)<0, 0, $F$21*(1-$E$18*D21)))","v":0.7}]
[null,null,null,3,1,0.4]
[null,null,null,4,1,0.10000000000000009]
[null,null,null,5,1,0]
[null,null,null,6,1,0]
[null,null,null,7,1,0]
[null,null,null,8,1,0]
[null,null,null,9,1,0]
[null,null,null,10,1,0]
[]
[]
[]
[]
[]
[null,null,null,null,null,null,null,null,null,null,null,null,null,null,null,null,null,null,null,null,null,null,null,null,null,null,null,null,null,null,null,null,null,null,null,null,null,null,null,null,null,null,null,null,null,null,null,null,null,null,null,null,null,null,null,null,null,null,null,null,null,null,null,null,null,null,null,null,null,null,null,null,null,"cost per case averted"]
[null,null,null,null,null,null,null,null,null,null,null,null,null,null,null,null,null,null,null,null,null,null,null,null,null,null,null,null,null,null,null,null,null,null,null,null,null,null,null,null,null,null,null,null,null,null,null,null,null,null,null,null,null,null,null,null,null,null,null,null,null,null,null,null,null,null,null,null,null,null,null,"time",null,{"$f":"Overall!E14","v":0}]
[null,null,null,null,null,null,null,null,null,null,null,null,null,null,null,null,null,null,null,null,null,null,null,null,null,null,null,null,null,null,null,null,null,null,null,null,null,null,null,null,null,null,null,null,null,null,null,null,null,null,null,null,null,null,null,null,null,null,null,null,null,null,null,null,null,null,null,null,null,null,null,null,1,0]
[null,null,null,null,null,null,null,null,null,null,null,null,null,null,null,null,null,null,null,null,null,null,null,null,null,null,null,null,null,null,null,null,null,null,null,null,null,null,null,null,null,null,null,null,null,null,null,null,null,null,null,null,null,null,null,null,null,null,null,null,null,null,null,null,null,null,null,null,null,null,null,null,2,0]
[null,null,null,null,null,null,null,null,null,null,null,null,null,null,null,null,null,null,null,null,null,null,null,null,null,null,null,null,null,null,null,null,null,null,null,null,null,null,null,null,null,null,null,null,null,null,null,null,null,null,null,null,null,null,null,null,null,null,null,null,null,null,null,null,null,null,null,null,null,null,null,null,3,0]
[null,null,null,null,null,null,null,null,null,null,null,null,null,null,null,null,null,null,null,null,null,null,null,null,null,null,null,null,null,null,null,null,null,null,null,null,null,null,null,null,null,null,null,null,null,null,null,null,null,null,null,null,null,null,null,null,null,null,null,null,null,null,null,null,null,null,null,null,null,null,null,null,4,0]
[null,null,null,null,null,null,null,null,null,null,null,null,null,null,null,null,null,null,null,null,null,null,null,null,null,null,null,null,null,null,null,null,null,null,null,null,null,null,null,null,null,null,null,null,null,null,null,null,null,null,null,null,null,null,null,null,null,null,null,null,null,null,null,null,null,null,null,null,null,null,null,null,5,0]
[null,null,null,null,null,null,null,null,null,null,null,null,null,null,null,null,null,null,null,null,null,null,null,null,null,null,null,null,null,null,null,null,null,null,null,null,null,null,null,null,null,null,null,null,null,null,null,null,null,null,null,null,null,null,null,null,null,null,null,null,null,null,null,null,null,null,null,null,null,null,null,null,6,0]
[null,null,null,null,null,null,null,null,null,null,null,null,null,null,null,null,null,null,null,null,null,null,null,null,null,null,null,null,null,null,null,null,null,null,null,null,null,null,null,null,null,null,null,null,null,null,null,null,null,null,null,null,null,null,null,null,null,null,null,null,null,null,null,null,null,null,null,null,null,null,null,null,7,0]
[null,null,null,null,null,null,null,null,null,null,null,null,null,null,null,null,null,null,null,null,null,null,null,null,null,null,null,null,null,null,null,null,null,null,null,null,null,null,null,null,null,null,null,null,null,null,null,null,null,null,null,null,null,null,null,null,null,null,null,null,null,null,null,null,null,null,null,null,null,null,null,null,8,0]
[null,null,null,null,null,null,null,null,null,null,null,null,null,null,null,null,null,null,null,null,null,null,null,null,null,null,null,null,null,null,null,null,null,null,null,null,null,null,null,null,null,null,null,null,null,null,null,null,null,null,null,null,null,null,null,null,null,null,null,null,null,null,null,null,null,null,null,null,null,null,null,null,9,0]
[null,null,null,null,null,null,null,null,null,null,null,null,null,null,null,null,null,null,null,null,null,null,null,null,null,null,null,null,null,null,null,null,null,null,null,null,null,null,null,null,null,null,null,null,null,null,null,null,null,null,null,null,null,null,null,null,null,null,null,null,null,null,null,null,null,null,null,null,null,null,null,null,10,0]
[]
[]
[null,null,null,null,null,null,null,null,null,null,null,null,null,null,null,null,null,null,null,null,null,null,null,null,null,null,null,null,null,null,null,null,null,null,null,null,null,null,null,null,null,null,null,null,null,null,null,null,null,null,null,null,null,null,null,null,null,null,null,null,null,null,null,null,null,null,null,null,null,null,null,null,null,{"$f":"BV36","v":"cost per case averted"}]
[null,null,null,null,null,null,null,null,null,null,null,null,null,null,null,null,null,null,null,null,null,null,null,null,null,null,null,null,null,null,null,null,null,null,null,null,null,null,null,null,null,null,null,null,null,null,null,null,null,null,null,null,null,null,null,null,null,null,null,null,null,null,null,null,null,null,null,null,null,null,null,"utility",null,{"$f":"BV37","v":0}]
[null,null,null,null,null,null,null,null,null,null,null,null,null,null,null,null,null,null,null,null,null,null,null,null,null,null,null,null,null,null,null,null,null,null,null,null,null,null,null,null,null,null,null,null,null,null,null,null,null,null,null,null,null,null,null,null,null,null,null,null,null,null,null,null,null,null,null,null,null,null,null,null,2.5000000000000001E-2,0]
[null,null,null,null,null,null,null,null,null,null,null,null,null,null,null,null,null,null,null,null,null,null,null,null,null,null,null,null,null,null,null,null,null,null,null,null,null,null,null,null,null,null,null,null,null,null,null,null,null,null,null,null,null,null,null,null,null,null,null,null,null,null,null,null,null,null,null,null,null,null,null,null,0.05,0]
[null,null,null,null,null,null,null,null,null,null,null,null,null,null,null,null,null,null,null,null,null,null,null,null,null,null,null,null,null,null,null,null,null,null,null,null,null,null,null,null,null,null,null,null,null,null,null,null,null,null,null,null,null,null,null,null,null,null,null,null,null,null,null,null,null,null,null,null,null,null,null,null,7.4999999999999997E-2,0]
[null,null,null,null,null,null,null,null,null,null,null,null,null,null,null,null,null,null,null,null,null,null,null,null,null,null,null,null,null,null,null,null,null,null,null,null,null,null,null,null,null,null,null,null,null,null,null,null,null,null,null,null,null,null,null,null,null,null,null,null,null,null,null,null,null,null,null,null,null,null,null,null,0.1,0]
[null,null,null,null,null,null,null,null,null,null,null,null,null,null,null,null,null,null,null,null,null,null,null,null,null,null,null,null,null,null,null,null,null,null,null,null,null,null,null,null,null,null,null,null,null,null,null,null,null,null,null,null,null,null,null,null,null,null,null,null,null,null,null,null,null,null,null,null,null,null,null,null,0.125,0]
[null,null,null,null,null,null,null,null,null,null,null,null,null,null,null,null,null,null,null,null,null,null,null,null,null,null,null,null,null,null,null,null,null,null,null,null,null,null,null,null,null,null,null,null,null,null,null,null,null,null,null,null,null,null,null,null,null,null,null,null,null,null,null,null,null,null,null,null,null,null,null,null,0.15,0]
[null,null,null,null,null,null,null,null,null,null,null,null,null,null,null,null,null,null,null,null,null,null,null,null,null,null,null,null,null,null,null,null,null,null,null,null,null,null,null,null,null,null,null,null,null,null,null,null,null,null,null,null,null,null,null,null,null,null,null,null,null,null,null,null,null,null,null,null,null,null,null,null,0.17499999999999999,0]
[null,null,null,null,null,null,null,null,null,null,null,null,null,null,null,null,null,null,null,null,null,null,null,null,null,null,null,null,null,null,null,null,null,null,null,null,null,null,null,null,null,null,null,null,null,null,null,null,null,null,null,null,null,null,null,null,null,null,null,null,null,null,null,null,null,null,null,null,null,null,null,null,0.2,0]
[null,null,null,null,null,null,null,null,null,null,null,null,null,null,null,null,null,null,null,null,null,null,null,null,null,null,null,null,null,null,null,null,null,null,null,null,null,null,null,null,null,null,null,null,null,null,null,null,null,null,null,null,null,null,null,null,null,null,null,null,null,null,null,null,null,null,null,null,null,null,null,null,0.22500000000000001,0]
[null,null,null,null,null,null,null,null,null,null,null,null,null,null,null,null,null,null,null,null,null,null,null,null,null,null,null,null,null,null,null,null,null,null,null,null,null,null,null,null,null,null,null,null,null,null,null,null,null,null,null,null,null,null,null,null,null,null,null,null,null,null,null,null,null,null,null,null,null,null,null,null,0.25,0]
[null,null,null,null,null,null,null,null,null,null,null,null,null,null,null,null,null,null,null,null,null,null,null,null,null,null,null,null,null,null,null,null,null,null,null,null,null,null,null,null,null,null,null,null,null,null,null,null,null,null,null,null,null,null,null,null,null,null,null,null,null,null,null,null,null,null,null,null,null,null,null,null,0.27500000000000002,0]
[null,null,null,null,null,null,null,null,null,null,null,null,null,null,null,null,null,null,null,null,null,null,null,null,null,null,null,null,null,null,null,null,null,null,null,null,null,null,null,null,null,null,null,null,null,null,null,null,null,null,null,null,null,null,null,null,null,null,null,null,null,null,null,null,null,null,null,null,null,null,null,null,0.3,0]
[]
[]
[]
[]
[]
[]
[]
[]
[]
[]
[]
[]
[]
[]
[]
[]
[]
[]
[]
[]
[]
[]
[]
[]
[]
[]
[]
[null,null,null,"Time horizon (years)"]
[null,null,null,1]
[null,null,null,1]
[null,null,null,2]
[null,null,null,3]
[null,null,null,4]
[null,null,null,5]
[null,null,null,6]
[null,null,null,7]
[null,null,null,8]
[null,null,null,9]
[null,null,null,10]

{"sheet":"MENU1B5","index":9,"n_rows":0,"n_cols":0,"rows_kept":0,"cut":false,"hidden":true,"merged":[]}

{"sheet":"MENU1B6","index":10,"n_rows":0,"n_cols":0,"rows_kept":0,"cut":false,"hidden":true,"merged":[]}

{"sheet":"MENU1B7","index":11,"n_rows":0,"n_cols":0,"rows_kept":0,"cut":false,"hidden":true,"merged":[]}

{"sheet":"MENU1B8","index":12,"n_rows":0,"n_cols":0,"rows_kept":0,"cut":false,"hidden":true,"merged":[]}

{"sheet":"Utility reference","index":13,"n_rows":30,"n_cols":15,"rows_kept":30,"cut":false,"hidden":false,"merged":[[9,12,9,17]]}
[]
[]
[]
[]
[]
[]
[]
[]
[]
[null,null,null,null,null,null,null,null,null,null,null,null,{"$f":"CONCATENATE(\"To determine the utility equivalent of a student living without \",'Model Inputs'!M39)","v":"To determine the utility equivalent of a student living without please select..."}]
[]
[null,null,null,null,null,null,null,null,null,null,null,null,"Baseline utility score under 25",0.94]
[]
[null,null,null,null,null,null,null,null,null,null,null,null,"Condition","Utility score","From condition to baseline"]
[null,null,null,null,null,null,null,null,null,null,null,null,"Full health",1]
[]
[null,null,null,null,null,null,null,null,null,null,null,null,"Early stage cancer",0.8,{"$f":"($N$12-N17)","v":0.1399999999999999}]
[null,null,null,null,null,null,null,null,null,null,null,null,"Attention-deficit hyperactivity disorder (childhood)",0.79800000000000004,{"$f":"($N$12-N18)","v":0.1419999999999999}]
[null,null,null,null,null,null,null,null,null,null,null,null,"Stress related and somatoform disorders (childhood)",0.70099999999999996,{"$f":"($N$12-N19)","v":0.23899999999999999}]
[]
[null,null,null,null,null,null,null,null,null,null,null,null,"Youth anxiety disorder (childhood)",0.62,{"$f":"($N$12-N21)","v":0.31999999999999995}]
[null,null,null,null,null,null,null,null,null,null,null,null,"Substance use disorders (childhood)",0.60099999999999998,{"$f":"($N$12-N22)","v":0.33899999999999997}]
[null,null,null,null,null,null,null,null,null,null,null,null,"Late stage cancer",0.6,{"$f":"($N$12-N23)","v":0.33999999999999997}]
[null,null,null,null,null,null,null,null,null,null,null,null,"Eating disorders (childhood)",0.56699999999999995,{"$f":"($N$12-N24)","v":0.373}]
[]
[null,null,null,null,null,null,null,null,null,null,null,null,"Severe depression",0.4,{"$f":"($N$12-N26)","v":0.53999999999999992}]
[null,null,null,null,null,null,null,null,null,null,null,null,"Very severe rheumatoid arthritis",0.3,{"$f":"($N$12-N27)","v":0.6399999999999999}]
[]
[]
[null,null,null,null,null,null,null,null,null,null,null,null,"Dead",0,{"$f":"($N$12-N30)","v":0.94}]

{"sheet":"Overall","index":14,"n_rows":25,"n_cols":5,"rows_kept":25,"cut":false,"hidden":false,"merged":[[15,3,15,4],[15,62,15,64],[14,62,14,64],[21,3,21,4],[11,3,11,4]]}
[]
[]
[]
[]
[]
[]
[]
[]
[]
[]
[]
[null,null,null,"Student outcomes:"]
[null,null,null,{"$f":"IF('Model Inputs'!P15=1,CONCATENATE(\"Number of students seeing improvement regarding \", 'Model Inputs'!M39), CONCATENATE(\"Number of students with worsening \", 'Model Inputs'!M39))","v":{"$error":"#N/A"}},{"$f":"ROUND('Model Inputs'!M33,0)","v":0}]
[null,null,null,{"$f":"IF('Model Inputs'!P15=1, CONCATENATE(\"Cost per case of \", 'Model Inputs'!M39, \" improvement\"), CONCATENATE(\"Cost per case of \", 'Model Inputs'!M39, \" worsen\"))","v":{"$error":"#N/A"}},{"$f":"ABS((IF(E13=0,0,((E17+E18)/E13))))","v":0}]
[]
[null,null,null,"Overall:"]
[null,null,null,"Intervention cost",{"$f":"'Model Inputs'!M36","v":0}]
[null,null,null,"Additional monetary impact",{"$f":"-'Additional Monetary Impact'!H22","v":0}]
[null,null,null,{"$f":"\"Monetary QALY value\"","v":"Monetary QALY value"},{"$f":"'Model Inputs'!P17","v":{"$error":"#N/A"}}]
[null,null,null,{"$f":"IF('Set Up'!D89=1, \"Total Cost\", \"Net benefit\")","v":"Total Cost"},{"$f":"SUM(E17:E19)","v":{"$error":"#N/A"}}]
[]
[null,null,null,"Additional monetary values include:"]
[null,null,null,{"$f":"IF('Additional Monetary Impact'!D14= \"[placeholder]\",\"\",'Additional Monetary Impact'!D14)","v":""}]
[null,null,null,{"$f":"IF('Additional Monetary Impact'!D15= \"[placeholder]\",\"\",'Additional Monetary Impact'!D15)","v":""}]
[null,null,null,{"$f":"IF(AND(D23=\"\",D24=\"\"), \"No additional monetary values have been included\", \"\")","v":"No additional monetary values have been included"}]

{"sheet":"Per student","index":15,"n_rows":24,"n_cols":5,"rows_kept":24,"cut":false,"hidden":false,"merged":[[20,3,20,4],[14,3,14,4],[11,3,11,4]]}
[]
[]
[]
[]
[]
[]
[]
[]
[]
[]
[]
[null,null,null,"Student outcomes:"]
[null,null,null,{"$f":"IF('Model Inputs'!P15=1,\"Likelihood of a student benefiting from the intervention\", \"Likelihood of a student worse-off following the intervention\")","v":{"$error":"#N/A"}},{"$f":"'Model Inputs'!M33/'Model Inputs'!M37","v":0}]
[]
[null,null,null,"Per student:"]
[null,null,null,"Intervention cost",{"$f":"'Model Inputs'!M36/'Model Inputs'!M37","v":0}]
[null,null,null,"Additional monetary impact",{"$f":"-'Additional Monetary Impact'!H22/'Model Inputs'!M37","v":0}]
[null,null,null,{"$f":" \"Monetary QALY value of cases added\"","v":"Monetary QALY value of cases added"},{"$f":"'Model Inputs'!P17/'Model Inputs'!M37","v":{"$error":"#N/A"}}]
[null,null,null,{"$f":"IF('Set Up'!D89=1, \"Total Cost\", \"Net benefit\")","v":"Total Cost"},{"$f":"SUM(E16:E18)","v":{"$error":"#N/A"}}]
[]
[null,null,null,"Additional monetary values include:"]
[null,null,null,{"$f":"IF('Additional Monetary Impact'!D14= \"[placeholder]\",\"\",'Additional Monetary Impact'!D14)","v":""}]
[null,null,null,{"$f":"IF('Additional Monetary Impact'!D15= \"[placeholder]\",\"\",'Additional Monetary Impact'!D15)","v":""}]
[null,null,null,{"$f":"IF(AND(D22=\"\",D23=\"\"), \"No additional monetary values have been included\", \"\")","v":"No additional monetary values have been included"}]

{"sheet":"MENU2B3","index":16,"n_rows":0,"n_cols":0,"rows_kept":0,"cut":false,"hidden":true,"merged":[]}

{"sheet":"MENU2B4","index":17,"n_rows":0,"n_cols":0,"rows_kept":0,"cut":false,"hidden":true,"merged":[]}

{"sheet":"MENU2B5","index":18,"n_rows":0,"n_cols":0,"rows_kept":0,"cut":false,"hidden":true,"merged":[]}

{"sheet":"MENU2B6","index":19,"n_rows":0,"n_cols":0,"rows_kept":0,"cut":false,"hidden":true,"merged":[]}

{"sheet":"MENU2B7","index":20,"n_rows":0,"n_cols":0,"rows_kept":0,"cut":false,"hidden":true,"merged":[]}

{"sheet":"MENU2B8","index":21,"n_rows":0,"n_cols":0,"rows_kept":0,"cut":false,"hidden":true,"merged":[]}

{"sheet":"MENU3B1","index":22,"n_rows":0,"n_cols":0,"rows_kept":0,"cut":false,"hidden":true,"merged":[]}

{"sheet":"MENU3B2","index":23,"n_rows":0,"n_cols":0,"rows_kept":0,"cut":false,"hidden":true,"merged":[]}

{"sheet":"MENU3B3","index":24,"n_rows":0,"n_cols":0,"rows_kept":0,"cut":false,"hidden":true,"merged":[]}

{"sheet":"MENU3B4","index":25,"n_rows":0,"n_cols":0,"rows_kept":0,"cut":false,"hidden":true,"merged":[]}

{"sheet":"MENU3B5","index":26,"n_rows":0,"n_cols":0,"rows_kept":0,"cut":false,"hidden":true,"merged":[]}

{"sheet":"MENU3B6","index":27,"n_rows":0,"n_cols":0,"rows_kept":0,"cut":false,"hidden":true,"merged":[]}

{"sheet":"MENU3B7","index":28,"n_rows":0,"n_cols":0,"rows_kept":0,"cut":false,"hidden":true,"merged":[]}

{"sheet":"MENU3B8","index":29,"n_rows":0,"n_cols":0,"rows_kept":0,"cut":false,"hidden":true,"merged":[]}

{"sheet":"MENU4B1","index":30,"n_rows":0,"n_cols":0,"rows_kept":0,"cut":false,"hidden":true,"merged":[]}

{"sheet":"MENU4B2","index":31,"n_rows":0,"n_cols":0,"rows_kept":0,"cut":false,"hidden":true,"merged":[]}

{"sheet":"MENU4B3","index":32,"n_rows":0,"n_cols":0,"rows_kept":0,"cut":false,"hidden":true,"merged":[]}

{"sheet":"MENU4B4","index":33,"n_rows":0,"n_cols":0,"rows_kept":0,"cut":false,"hidden":true,"merged":[]}

{"sheet":"MENU4B5","index":34,"n_rows":0,"n_cols":0,"rows_kept":0,"cut":false,"hidden":true,"merged":[]}

{"sheet":"MENU4B6","index":35,"n_rows":0,"n_cols":0,"rows_kept":0,"cut":false,"hidden":true,"merged":[]}

{"sheet":"MENU4B7","index":36,"n_rows":0,"n_cols":0,"rows_kept":0,"cut":false,"hidden":true,"merged":[]}

{"sheet":"MENU4B8","index":37,"n_rows":0,"n_cols":0,"rows_kept":0,"cut":false,"hidden":true,"merged":[]}

{"sheet":"MENU5B1","index":38,"n_rows":0,"n_cols":0,"rows_kept":0,"cut":false,"hidden":true,"merged":[]}

{"sheet":"MENU5B2","index":39,"n_rows":0,"n_cols":0,"rows_kept":0,"cut":false,"hidden":true,"merged":[]}

{"sheet":"MENU5B3","index":40,"n_rows":0,"n_cols":0,"rows_kept":0,"cut":false,"hidden":true,"merged":[]}

{"sheet":"MENU5B4","index":41,"n_rows":0,"n_cols":0,"rows_kept":0,"cut":false,"hidden":true,"merged":[]}

{"sheet":"MENU5B5","index":42,"n_rows":0,"n_cols":0,"rows_kept":0,"cut":false,"hidden":true,"merged":[]}

{"sheet":"MENU5B6","index":43,"n_rows":0,"n_cols":0,"rows_kept":0,"cut":false,"hidden":true,"merged":[]}

{"sheet":"MENU5B7","index":44,"n_rows":0,"n_cols":0,"rows_kept":0,"cut":false,"hidden":true,"merged":[]}

{"sheet":"MENU5B8","index":45,"n_rows":0,"n_cols":0,"rows_kept":0,"cut":false,"hidden":true,"merged":[]}

{"sheet":"MENU6B1","index":46,"n_rows":0,"n_cols":0,"rows_kept":0,"cut":false,"hidden":true,"merged":[]}

{"sheet":"MENU6B2","index":47,"n_rows":0,"n_cols":0,"rows_kept":0,"cut":false,"hidden":true,"merged":[]}

{"sheet":"MENU6B3","index":48,"n_rows":0,"n_cols":0,"rows_kept":0,"cut":false,"hidden":true,"merged":[]}

{"sheet":"MENU6B4","index":49,"n_rows":0,"n_cols":0,"rows_kept":0,"cut":false,"hidden":true,"merged":[]}

{"sheet":"MENU6B5","index":50,"n_rows":0,"n_cols":0,"rows_kept":0,"cut":false,"hidden":true,"merged":[]}

{"sheet":"MENU6B6","index":51,"n_rows":0,"n_cols":0,"rows_kept":0,"cut":false,"hidden":true,"merged":[]}

{"sheet":"MENU6B7","index":52,"n_rows":0,"n_cols":0,"rows_kept":0,"cut":false,"hidden":true,"merged":[]}

{"sheet":"MENU6B8","index":53,"n_rows":0,"n_cols":0,"rows_kept":0,"cut":false,"hidden":true,"merged":[]}

{"sheet":"Sensitivity Analysis","index":54,"n_rows":18,"n_cols":74,"rows_kept":18,"cut":false,"hidden":false,"merged":[]}
[]
[]
[]
[]
[]
[]
[]
[]
[]
[]
[null,null,null,"Perspective:",{"$f":"IF('Set Up'!D89=2, \"Societal\", \"Educational\")","v":"Educational"}]
[null,null,null,null,null,null,null,null,null,null,null,null,null,null,null,null,null,null,null,null,null,null,null,null,null,null,null,null,null,null,null,null,null,null,null,null,null,null,null,null,null,null,null,null,null,null,null,null,null,null,null,null,null,null,null,null,null,null,null,null,null,null,null,null,null,null,null,null,null,{"$f":"IF(E13=BU14,1,IF(E13=BU15,2,IF(E13=BU16,3,IF(E13=BV17,4))))","v":false}]
[null,null,null,"Variable selected:","Utility size given to bullying perpetration",null,null,null,null,null,null,null,null,null,null,null,null,null,null,null,null,null,null,null,null,null,null,null,null,null,null,null,null,null,null,null,null,null,null,null,null,null,null,null,null,null,null,null,null,null,null,null,null,null,null,null,null,null,null,null,null,null,null,null,null,null,null,null,null,null,null,null,"Educational","Societal"]
[null,null,null,null,null,null,null,null,null,null,null,null,null,null,null,null,null,null,null,null,null,null,null,null,null,null,null,null,null,null,null,null,null,null,null,null,null,null,null,null,null,null,null,null,null,null,null,null,null,null,null,null,null,null,null,null,null,null,null,null,null,null,null,null,null,null,null,null,null,null,null,null,"Intervention cost","Intervention cost"]
[null,null,null,null,null,null,null,null,null,null,null,null,null,null,null,null,null,null,null,null,null,null,null,null,null,null,null,null,null,null,null,null,null,null,null,null,null,null,null,null,null,null,null,null,null,null,null,null,null,null,null,null,null,null,null,null,null,null,null,null,null,null,null,null,null,null,null,null,null,null,null,null,"Number of students","Number of students"]
[null,null,null,null,null,null,null,null,null,null,null,null,null,null,null,null,null,null,null,null,null,null,null,null,null,null,null,null,null,null,null,null,null,null,null,null,null,null,null,null,null,null,null,null,null,null,null,null,null,null,null,null,null,null,null,null,null,null,null,null,null,null,null,null,null,null,null,null,null,null,null,null,"Intervention effectiveness - RR","Intervention effectiveness - RR"]
[null,null,null,null,null,null,null,null,null,null,null,null,null,null,null,null,null,null,null,null,null,null,null,null,null,null,null,null,null,null,null,null,null,null,null,null,null,null,null,null,null,null,null,null,null,null,null,null,null,null,null,null,null,null,null,null,null,null,null,null,null,null,null,null,null,null,null,null,null,null,null,null,null,{"$f":"CONCATENATE(\"Utility size given to \", 'Model Inputs'!M39)","v":"Utility size given to please select..."}]
[null,null,null,null,null,null,null,null,null,null,null,null,null,null,null,null,null,null,null,null,null,null,null,null,null,null,null,null,null,null,null,null,null,null,null,null,null,null,null,null,null,null,null,null,null,null,null,null,null,null,null,null,null,null,null,null,null,null,null,null,null,null,null,null,null,null,null,null,null,{"$f":"IF(AND(BR12=1,E11=BU13),1,IF(AND(BR12=2,E11=BU13),2,IF(AND(BR12=3,E11=BU13),3,IF(AND(BR12=1,E11=BV13),4,IF(AND(BR12=2,E11=BV13),5,IF(AND(BR12=3,E11=BV13),6,IF(AND(BR12=4,E11=BV13),7)))))))","v":false}]

{"sheet":"Templates","index":55,"n_rows":1134,"n_cols":28,"rows_kept":1134,"cut":false,"hidden":false,"merged":[[49,3,49,13],[51,0,61,1],[117,17,117,19],[118,17,118,19],[119,17,119,19],[81,2,81,3],[81,4,81,5],[120,17,120,19],[113,17,113,19],[114,17,114,19],[115,17,115,19],[116,17,116,19]]}
[]
["Graphs"]
[]
[]
[null,null,null,null,null,null,null,null,null,null,"Cost breakdown"]
[]
[null,null,null,null,null,null,null,null,null,null,null,null,null,null,null,null,null,null,null,null,null,null,null,null,"Tornado diagram"]
[]
[]
[]
[]
[]
[]
[]
[]
[]
[]
[]
[]
[]
[]
[]
[]
[]
[]
[]
[]
[]
[]
[]
[]
[]
[]
[null,null,null,null,null,null,null,null,null,null,"CEAC"]
[null,null,null,null,null,null,null,null,null,null,"Survival analysis"]
[null,null,null,null,null,null,null,null,null,null,null,null,null,null,null,null,null,null,null,null,null,null,"CEAC multiple treatments"]
[null,null,null,null,null,null,null,null,null,null,null,null,null,null,null,null,null,null,null,null,null,null,"Graph to show number of different events over time"]
[null,null,null,null,null,null,null,null,null,null,null,null,null,null,null,null,null,null,null,null,null,null,"Economically justifiable price at different thresholds"]
[null,null,null,null,null,null,null,null,null,null,null,null,null,null,null,null,null,null,null,null,null,null,"Survival analysis"]
[]
[]
[]
[]
[]
[]
[]
[]
[]
[]
[null,null,null,"%  in testing scenario"]
[null,null,null,0,0.1,0.2,0.3,0.4,0.5,0.6,0.7,0.8,0.9,1]
["%  in universal scenario",null,0,25359121.580862999,10535138.959918499,-4288843.6610261202,-19112826.28197068,-33936808.902915299,-48760791.523859859,-63584774.144804358,-78408756.765748978,-93232739.386693478,-108056722.0076381,-122880704.6285826]
[null,null,0.1,40183104.201807499,25359121.580862999,10535138.95991838,-4288843.6610261798,-19112826.281970799,-33936808.902915359,-48760791.523859859,-63584774.144804478,-78408756.765748978,-93232739.386693597,-108056722.0076381]
[null,null,0.2,55007086.822752103,40183104.201807618,25359121.580862999,10535138.959918439,-4288843.6610261798,-19112826.281970739,-33936808.902915239,-48760791.523859859,-63584774.144804358,-78408756.765748978,-93232739.386693478]
[null,null,0.3,69831069.443696618,55007086.822752118,40183104.201807499,25359121.580862939,10535138.95991832,-4288843.6610262394,-19112826.281970739,-33936808.902915359,-48760791.523859859,-63584774.144804478,-78408756.765748978,"Two-way sensitivity analysis"]
[null,null,0.4,84655052.064641237,69831069.443696737,55007086.822752118,40183104.201807559,25359121.580862939,10535138.95991838,-4288843.6610261202,-19112826.281970739,-33936808.902915239,-48760791.523859859,-63584774.144804358,null,null,null,null,null,null,null,null,null,null,null,null,null,"CE plane"]
[null,null,0.5,99479034.685585797,84655052.064641297,69831069.443696678,55007086.822752118,40183104.201807499,25359121.580862939,10535138.959918439,-4288843.6610261798,-19112826.28197068,-33936808.902915299,-48760791.523859799]
[null,null,0.6,114303017.30653036,99479034.685585856,84655052.064641237,69831069.443696678,55007086.822752059,40183104.201807499,25359121.580862999,10535138.95991838,-4288843.6610261202,-19112826.281970739,-33936808.902915239]
[null,null,0.7,129126999.92747498,114303017.30653048,99479034.685585856,84655052.064641297,69831069.443696678,55007086.822752118,40183104.201807618,25359121.580862999,10535138.959918499,-4288843.6610261202,-19112826.28197062]
[null,null,0.8,143950982.54841948,129126999.92747498,114303017.30653036,99479034.685585797,84655052.064641178,69831069.443696618,55007086.822752118,40183104.201807499,25359121.580862999,10535138.95991838,-4288843.6610261202]
[null,null,0.9,158774965.16936404,143950982.54841954,129126999.92747492,114303017.30653036,99479034.685585737,84655052.064641178,69831069.443696678,55007086.822752059,40183104.201807559,25359121.580862939,10535138.959918439]
[null,null,1,173598947.79030859,158774965.16936409,143950982.54841948,129126999.92747492,114303017.3065303,99479034.685585737,84655052.064641237,69831069.443696618,55007086.822752118,40183104.201807499,25359121.580862999]
[]
[]
[]
[]
[]
[]
["Buttons"]
[]
[]
[]
[]
[]
[]
[]
[]
[]
[]
["Tables"]
[]
[null,null,"Treatment ",null,"Comparator"]
[null,null,"Health state 1","Health state 2","Health state 1","Health state 2"]
[null,"Item 1",2000,200,1248,761]
[null,"Item 2",3000,156,1543,456]
[null,"Item 3",4000,579,9425,125]
[null,"Total",{"$f":"SUM(C84:C86)","v":9000},{"$f":"SUM(D84:D86)","v":935},{"$f":"SUM(E84:E86)","v":12216},{"$f":"SUM(F84:F86)","v":1342}]
[]
[null,null,"Health state 1"]
[null,"Item 1",2000]
[null,"Item 2",3000]
[null,"Item 3",4000,"Standard error","Alpha","Beta","Value used in model"]
[null,"Total",{"$f":"SUM(C90:C92)","v":9000},{"$f":"C93*0.1","v":900},{"$f":"IFERROR((C93^2)/(D93^2),\"\")","v":100},{"$f":"IFERROR((D93^2)/C93,\"\")","v":90},9000]
[]
[]
[]
[]
[]
[]
[]
[]
[]
[]
[]
[]
[]
[]
[]
[]
[]
[]
[null,null,null,null,null,null,null,null,null,null,null,null,null,null,null,null,null,null,null,null,19000]
[null,null,null,null,200,null,null,"Treatment","Comparator",null,null,20,40,60,80,100,null,"Parameter",null,null,"Low value","High value",null,"CEAC"]
[null,null,null,null,300,null,"Cost X",30,80,null,0.01,250000,220000,600000,700000,900000,null,"Parameter 1 (low 54; high 80)",null,null,50000,-10000,null,null,1]
[null,null,null,null,400,null,"Cost X",10,30,null,0.1,250000,220000,600000,700000,900000,null,"Parameter 2 (low 0.5; high 1.5)",null,null,40000,-5000,null,10000,0.6,0.4]
[null,null,null,null,500,null,"Cost X",50,10,null,0.2,250000,220000,600000,700000,900000,null,"Parameter 3 (low 0.5; high 1.5)",null,null,-2000,30000,null,20000,1,0]
[null,null,null,null,600,null,"Cost X",60,85,null,0.30000000000000004,250000,220000,600000,700000,900000,null,"Parameter 4 (low £0; high £200)",null,null,10,20000,null,30000,1,0]
[null,null,null,null,700,null,"Cost X",10,60,null,0.4,250000,220000,600000,700000,900000,null,"Parameter 5 (low 0.5; high 0.9)",null,null,25000,5000,null,40000,1,0]
[null,null,null,null,800,null,"Cost X",80,30,null,0.5,250000,220000,600000,700000,900000,null,"Parameter 6 (low 0.2; high 0.75)",null,null,7000,21000,null,50000,1,0]
[null,null,null,null,900,null,"Cost X",70,20,null,0.6,250000,220000,600000,700000,900000,null,"Parameter 7 (low 0%; high 20%)",null,null,20000,10000,null,60000,1,0]
[null,null,null,null,1000,null,"Cost X",20,40,null,0.7,250000,220000,600000,700000,900000,null,"Parameter 8 (low 0%; high 20%)",null,null,20000,15000,null,70000,1,0]
[null,null,null,null,1100,null,null,null,null,null,0.79999999999999993,250000,220000,600000,700000,900000,null,null,null,null,null,null,null,80000,1,0]
[null,null,null,null,500,null,null,null,null,null,0.89999999999999991,250000,220000,600000,700000,900000,null,"Threshold",0,20000,null,null,null,90000,1,0]
[null,null,null,null,null,null,null,null,null,null,1,250000,220000,600000,700000,900000,null,null,0,0,null,null,null,100000,1,0]
[]
[]
[]
[]
[]
[]
[]
[]
[]
[null,null,null,null,null,null,null,null,null,null,null,null,null,null,null,null,null,null,"Incremental Cost","Incremental QALYs",null,"Base Case",-19993.509454344643,2.115430705831403]
[null,null,null,null,null,null,null,null,null,null,null,null,null,null,null,null,null,null,-22409.469352333523,2.6057556435635867,null,null,-39987.018908689286]
[null,null,null,null,null,null,null,null,null,null,null,null,null,null,null,null,null,null,-37530.807682270301,2.2858735078193075,null,"Threshold Line",-80000,-4]
[null,null,null,null,null,null,null,null,null,null,null,null,null,null,null,null,null,null,-32633.186679448729,1.4766264034119985,null,null,0,0]
[null,null,null,null,null,null,null,null,null,null,null,null,null,null,null,null,null,null,-12391.989095126861,2.1714242279641329,null,null,80000,4]
[null,null,null,null,null,null,null,null,null,null,null,null,null,null,null,null,null,null,2959.9623753306842,1.9224463354663386]
[null,null,null,null,null,null,null,null,null,null,null,null,null,null,null,null,null,null,-21360.319428607661,1.8432017794609421]
[null,null,null,null,null,null,null,null,null,null,null,null,null,null,null,null,null,null,7979.898411992348,2.6641348623629724]
[null,null,null,null,null,null,null,null,null,null,null,null,null,null,null,null,null,null,-11070.796486924326,2.1737482640713002]
[null,null,null,null,null,null,null,null,null,null,null,null,null,null,null,null,null,null,2779.684239151873,2.786882257402691]
[null,null,null,null,null,null,null,null,null,null,null,null,null,null,null,null,null,null,-20186.9696971956,2.1864029608067455]
[null,null,null,null,null,null,null,null,null,null,null,null,null,null,null,null,null,null,-14356.999294591864,2.0161807496861255]
[null,null,null,null,null,null,null,null,null,null,null,null,null,null,null,null,null,null,-9409.2175032592932,1.8538177196281693]
[null,null,null,null,null,null,null,null,null,null,null,null,null,null,null,null,null,null,-25943.106222739065,2.344041559826807]
[null,null,null,null,null,null,null,null,null,null,null,null,null,null,null,null,null,null,-1102.7689123594264,2.7229447423949744]
[null,null,null,null,null,null,null,null,null,null,null,null,null,null,null,null,null,null,-10840.169887736782,2.0657952935228678]
[null,null,null,null,null,null,null,null,null,null,null,null,null,null,null,null,null,null,-10279.7722782274,2.048565990014843]
[null,null,null,null,null,null,null,null,null,null,null,null,null,null,null,null,null,null,-37.404297561821295,2.486570490282594]
[null,null,null,null,null,null,null,null,null,null,null,null,null,null,null,null,null,null,-24177.920440583097,2.5291975791953814]
[null,null,null,null,null,null,null,null,null,null,null,null,null,null,null,null,null,null,5895.3011932125519,2.0790722268167006]
[null,null,null,null,null,null,null,null,null,null,null,null,null,null,null,null,null,null,-40435.570299212384,2.1771597309389246]
[null,null,null,null,null,null,null,null,null,null,null,null,null,null,null,null,null,null,-53214.47438528655,1.4730552420135368]
[null,null,null,null,null,null,null,null,null,null,null,null,null,null,null,null,null,null,-38445.248115574926,1.8749045830331621]
[null,null,null,null,null,null,null,null,null,null,null,null,null,null,null,null,null,null,-27546.4115968726,2.2589655880859709]
[null,null,null,null,null,null,null,null,null,null,null,null,null,null,null,null,null,null,-31864.479764374431,2.6029892278210953]
[null,null,null,null,null,null,null,null,null,null,null,null,null,null,null,null,null,null,-45607.206600135221,2.4197995832947603]
[null,null,null,null,null,null,null,null,null,null,null,null,null,null,null,null,null,null,-37374.808918917915,1.9368460196691326]
[null,null,null,null,null,null,null,null,null,null,null,null,null,null,null,null,null,null,-16091.762540955875,2.0557857518454337]
[null,null,null,null,null,null,null,null,null,null,null,null,null,null,null,null,null,null,-46757.06050459532,2.011188127186164]
[null,null,null,null,null,null,null,null,null,null,null,null,null,null,null,null,null,null,-18527.990050192362,1.3992432200380684]
[null,null,null,null,null,null,null,null,null,null,null,null,null,null,null,null,null,null,-8277.2011597190358,1.8925484671383521]
[null,null,null,null,null,null,null,null,null,null,null,null,null,null,null,null,null,null,-16158.039680119069,2.2045419995321032]
[null,null,null,null,null,null,null,null,null,null,null,null,null,null,null,null,null,null,-21015.362387792979,2.0438341348679021]
[null,null,null,null,null,null,null,null,null,null,null,null,null,null,null,null,null,null,-63706.865024983417,1.3361536945676655]
[null,null,null,null,null,null,null,null,null,null,null,null,null,null,null,null,null,null,1118.2049702908334,1.7145823540795626]
[null,null,null,null,null,null,null,null,null,null,null,null,null,null,null,null,null,null,-3621.1763504603859,2.0494674890023017]
[null,null,null,null,null,null,null,null,null,null,null,null,null,null,null,null,null,null,16112.486169135969,1.9186875318999634]
[null,null,null,null,null,null,null,null,null,null,null,null,null,null,null,null,null,null,-9611.5294971781623,2.2441802934324215]
[null,null,null,null,null,null,null,null,null,null,null,null,null,null,null,null,null,null,-2214.3586991715565,1.9770537799838106]
[null,null,null,null,null,null,null,null,null,null,null,null,null,null,null,null,null,null,-9989.2760787708685,1.8240602473957481]
[null,null,null,null,null,null,null,null,null,null,null,null,null,null,null,null,null,null,-163.84879435102448,2.1074976890413715]
[null,null,null,null,null,null,null,null,null,null,null,null,null,null,null,null,null,null,-12757.49897874469,1.9190946057638056]
[null,null,null,null,null,null,null,null,null,null,null,null,null,null,null,null,null,null,-4557.6703422836072,1.4598653425566206]
[null,null,null,null,null,null,null,null,null,null,null,null,null,null,null,null,null,null,-11242.76818706962,1.6327587721825143]
[null,null,null,null,null,null,null,null,null,null,null,null,null,null,null,null,null,null,-8237.8987906388429,2.0046462543986729]
[null,null,null,null,null,null,null,null,null,null,null,null,null,null,null,null,null,null,-18571.332351757701,2.1262095114883115]
[null,null,null,null,null,null,null,null,null,null,null,null,null,null,null,null,null,null,-39324.935116125576,2.7479467300597133]
[null,null,null,null,null,null,null,null,null,null,null,null,null,null,null,null,null,null,-7804.6594732931189,1.8403957968052005]
[null,null,null,null,null,null,null,null,null,null,null,null,null,null,null,null,null,null,-13810.108870054624,1.8009362359869177]
[null,null,null,null,null,null,null,null,null,null,null,null,null,null,null,null,null,null,-55987.979305123743,2.8998976905896336]
[null,null,null,null,null,null,null,null,null,null,null,null,null,null,null,null,null,null,-22520.322824026669,1.713453105143548]
[null,null,null,null,null,null,null,null,null,null,null,null,null,null,null,null,null,null,-17535.267969823952,2.5083679584862426]
[null,null,null,null,null,null,null,null,null,null,null,null,null,null,null,null,null,null,154.44644310856165,2.2421930022337304]
[null,null,null,null,null,null,null,null,null,null,null,null,null,null,null,null,null,null,-2544.9098754264414,1.8361801456890396]
[null,null,null,null,null,null,null,null,null,null,null,null,null,null,null,null,null,null,-6461.1862229529652,1.5810998534140697]
[null,null,null,null,null,null,null,null,null,null,null,null,null,null,null,null,null,null,-57059.846938832576,2.492105744524387]
[null,null,null,null,null,null,null,null,null,null,null,null,null,null,null,null,null,null,-19262.8431750296,2.0232366031064837]
[null,null,null,null,null,null,null,null,null,null,null,null,null,null,null,null,null,null,-9895.2706817828075,1.9300111619427955]
[null,null,null,null,null,null,null,null,null,null,null,null,null,null,null,null,null,null,-13889.314354906513,2.1797529116291749]
[null,null,null,null,null,null,null,null,null,null,null,null,null,null,null,null,null,null,3636.4403878174162,1.8130159729962791]
[null,null,null,null,null,null,null,null,null,null,null,null,null,null,null,null,null,null,-48036.118153212767,2.0626833800350046]
[null,null,null,null,null,null,null,null,null,null,null,null,null,null,null,null,null,null,-11929.065101907112,2.7188605882238477]
[null,null,null,null,null,null,null,null,null,null,null,null,null,null,null,null,null,null,-48623.212274673351,2.6349077860849421]
[null,null,null,null,null,null,null,null,null,null,null,null,null,null,null,null,null,null,-63770.030116204754,2.5350071832716168]
[null,null,null,null,null,null,null,null,null,null,null,null,null,null,null,null,null,null,14173.569683915077,1.8026409064089757]
[null,null,null,null,null,null,null,null,null,null,null,null,null,null,null,null,null,null,-25989.990362911907,1.8936260245729399]
[null,null,null,null,null,null,null,null,null,null,null,null,null,null,null,null,null,null,-17625.318490723173,1.6678676280087981]
[null,null,null,null,null,null,null,null,null,null,null,null,null,null,null,null,null,null,-32030.402341616558,2.3982368500340714]
[null,null,null,null,null,null,null,null,null,null,null,null,null,null,null,null,null,null,-23579.068431886961,1.942771380479333]
[null,null,null,null,null,null,null,null,null,null,null,null,null,null,null,null,null,null,-12238.083792342361,2.2109181718405431]
[null,null,null,null,null,null,null,null,null,null,null,null,null,null,null,null,null,null,-14073.171493786796,1.6856240712282204]
[null,null,null,null,null,null,null,null,null,null,null,null,null,null,null,null,null,null,2360.8779801302135,2.2946970162458955]
[null,null,null,null,null,null,null,null,null,null,null,null,null,null,null,null,null,null,-7121.6515867931339,2.4227237153870935]
[null,null,null,null,null,null,null,null,null,null,null,null,null,null,null,null,null,null,-16988.10709439743,2.2121237779995346]
[null,null,null,null,null,null,null,null,null,null,null,null,null,null,null,null,null,null,-45305.472689369359,1.8178753657200502]
[null,null,null,null,null,null,null,null,null,null,null,null,null,null,null,null,null,null,-29135.311713676609,2.5217693702987316]
[null,null,null,null,null,null,null,null,null,null,null,null,null,null,null,null,null,null,-2880.949683695304,1.8146408384079917]
[null,null,null,null,null,null,null,null,null,null,null,null,null,null,null,null,null,null,-49338.195836122875,1.9769225853397661]
[null,null,null,null,null,null,null,null,null,null,null,null,null,null,null,null,null,null,-10340.871982976034,1.9245258408518113]
[null,null,null,null,null,null,null,null,null,null,null,null,null,null,null,null,null,null,-3780.570869596042,1.6844048310657738]
[null,null,null,null,null,null,null,null,null,null,null,null,null,null,null,null,null,null,-14927.168611994181,2.5326507008345742]
[null,null,null,null,null,null,null,null,null,null,null,null,null,null,null,null,null,null,-7660.6529791614084,2.5799060973964556]
[null,null,null,null,null,null,null,null,null,null,null,null,null,null,null,null,null,null,-8194.0787317809591,1.6627216890403962]
[null,null,null,null,null,null,null,null,null,null,null,null,null,null,null,null,null,null,-76557.571033927932,2.2703212043625287]
[null,null,null,null,null,null,null,null,null,null,null,null,null,null,null,null,null,null,-33571.49986384045,2.371638977402855]
[null,null,null,null,null,null,null,null,null,null,null,null,null,null,null,null,null,null,-16470.08523366561,1.6154267170080625]
[null,null,null,null,null,null,null,null,null,null,null,null,null,null,null,null,null,null,2822.4118532475695,2.181214162657136]
[null,null,null,null,null,null,null,null,null,null,null,null,null,null,null,null,null,null,-5925.2837892582793,2.264584306947059]
[null,null,null,null,null,null,null,null,null,null,null,null,null,null,null,null,null,null,-26438.026357660077,1.7782822352980925]
[null,null,null,null,null,null,null,null,null,null,null,null,null,null,null,null,null,null,-28123.037658254325,2.1504173072235044]
[null,null,null,null,null,null,null,null,null,null,null,null,null,null,null,null,null,null,-8677.1458545278729,1.7843205429807645]
[null,null,null,null,null,null,null,null,null,null,null,null,null,null,null,null,null,null,-17026.433701242047,1.8793603760728663]
[null,null,null,null,null,null,null,null,null,null,null,null,null,null,null,null,null,null,-18233.643819861343,2.0424803292655054]
[null,null,null,null,null,null,null,null,null,null,null,null,null,null,null,null,null,null,-10207.630412907361,2.5856216650704105]
[null,null,null,null,null,null,null,null,null,null,null,null,null,null,null,null,null,null,-15933.164507174064,2.2437691841854837]
[null,null,null,null,null,null,null,null,null,null,null,null,null,null,null,null,null,null,-9811.0952045741651,1.9759795030123986]
[null,null,null,null,null,null,null,null,null,null,null,null,null,null,null,null,null,null,-6522.3916086872487,2.2982419849119253]
[null,null,null,null,null,null,null,null,null,null,null,null,null,null,null,null,null,null,-23958.226134657627,2.1287263761734763]
[null,null,null,null,null,null,null,null,null,null,null,null,null,null,null,null,null,null,-23936.027654508951,2.4776566025100286]
[null,null,null,null,null,null,null,null,null,null,null,null,null,null,null,null,null,null,2316.3115996382876,2.4906142889681759]
[null,null,null,null,null,null,null,null,null,null,null,null,null,null,null,null,null,null,-12787.829479092405,1.5943181604342418]
[null,null,null,null,null,null,null,null,null,null,null,null,null,null,null,null,null,null,-9698.8821264375074,2.1983990609041881]
[null,null,null,null,null,null,null,null,null,null,null,null,null,null,null,null,null,null,-28814.528354970284,1.5287105333050586]
[null,null,null,null,null,null,null,null,null,null,null,null,null,null,null,null,null,null,-28301.165614343707,2.0393414729018522]
[null,null,null,null,null,null,null,null,null,null,null,null,null,null,null,null,null,null,-3770.7901796603201,1.6440456057690227]
[null,null,null,null,null,null,null,null,null,null,null,null,null,null,null,null,null,null,-27802.28089619556,1.2017285463547296]
[null,null,null,null,null,null,null,null,null,null,null,null,null,null,null,null,null,null,-10463.786621754982,1.8530522154268199]
[null,null,null,null,null,null,null,null,null,null,null,null,null,null,null,null,null,null,-20187.96692039245,1.6738994130832503]
[null,null,null,null,null,null,null,null,null,null,null,null,null,null,null,null,null,null,-47273.4823263984,2.1357734085841691]
[null,null,null,null,null,null,null,null,null,null,null,null,null,null,null,null,null,null,-409.00065094030833,1.8375934541112566]
[null,null,null,null,null,null,null,null,null,null,null,null,null,null,null,null,null,null,-8963.4661441288426,2.2767064809964546]
[null,null,null,null,null,null,null,null,null,null,null,null,null,null,null,null,null,null,-19342.189673341956,2.0340703975256296]
[null,null,null,null,null,null,null,null,null,null,null,null,null,null,null,null,null,null,-8156.3607270641332,2.0730883363041337]
[null,null,null,null,null,null,null,null,null,null,null,null,null,null,null,null,null,null,-13200.736086624449,2.124355160168109]
[null,null,null,null,null,null,null,null,null,null,null,null,null,null,null,null,null,null,-5899.0854552898672,2.1977347826941349]
[null,null,null,null,null,null,null,null,null,null,null,null,null,null,null,null,null,null,-39870.170900977231,1.9831501786081924]
[null,null,null,null,null,null,null,null,null,null,null,null,null,null,null,null,null,null,-38575.198862912061,2.3186695637020325]
[null,null,null,null,null,null,null,null,null,null,null,null,null,null,null,null,null,null,-44917.43010617471,2.0558684751439467]
[null,null,null,null,null,null,null,null,null,null,null,null,null,null,null,null,null,null,-16894.588169426024,2.2622646374535953]
[null,null,null,null,null,null,null,null,null,null,null,null,null,null,null,null,null,null,-34330.693197273082,2.4261199097921695]
[null,null,null,null,null,null,null,null,null,null,null,null,null,null,null,null,null,null,-17986.07238634683,2.0827441312746009]
[null,null,null,null,null,null,null,null,null,null,null,null,null,null,null,null,null,null,1559.9512263414581,2.1352810496810886]
[null,null,null,null,null,null,null,null,null,null,null,null,null,null,null,null,null,null,-16562.406055399399,2.1683014029258469]
[null,null,null,null,null,null,null,null,null,null,null,null,null,null,null,null,null,null,-28278.763191419217,1.66445303379763]
[null,null,null,null,null,null,null,null,null,null,null,null,null,null,null,null,null,null,-11361.26358506758,2.1067665945518042]
[null,null,null,null,null,null,null,null,null,null,null,null,null,null,null,null,null,null,-26610.183127854492,2.4077612386849352]
[null,null,null,null,null,null,null,null,null,null,null,null,null,null,null,null,null,null,-26638.719049530722,1.6662883622212386]
[null,null,null,null,null,null,null,null,null,null,null,null,null,null,null,null,null,null,-14163.595976846715,1.6848760454431817]
[null,null,null,null,null,null,null,null,null,null,null,null,null,null,null,null,null,null,-19609.01958916209,2.1254358466613295]
[null,null,null,null,null,null,null,null,null,null,null,null,null,null,null,null,null,null,-751.63944723179884,2.2195387373031923]
[null,null,null,null,null,null,null,null,null,null,null,null,null,null,null,null,null,null,-58984.18727999866,2.530124099636943]
[null,null,null,null,null,null,null,null,null,null,null,null,null,null,null,null,null,null,-5986.1892976805448,2.2473061462681794]
[null,null,null,null,null,null,null,null,null,null,null,null,null,null,null,null,null,null,-2764.2966078006793,1.215335207524407]
[null,null,null,null,null,null,null,null,null,null,null,null,null,null,null,null,null,null,-15914.032104469137,2.4569071654878671]
[null,null,null,null,null,null,null,null,null,null,null,null,null,null,null,null,null,null,-18503.068197168115,1.9580191381397438]
[null,null,null,null,null,null,null,null,null,null,null,null,null,null,null,null,null,null,-3330.6685703442272,2.0104749634484089]
[null,null,null,null,null,null,null,null,null,null,null,null,null,null,null,null,null,null,-17696.671795812028,2.1174336164470287]
[null,null,null,null,null,null,null,null,null,null,null,null,null,null,null,null,null,null,-73717.25137679941,2.3037377472742198]
[null,null,null,null,null,null,null,null,null,null,null,null,null,null,null,null,null,null,-20118.954191834237,3.1143611784947298]
[null,null,null,null,null,null,null,null,null,null,null,null,null,null,null,null,null,null,-29596.760458310651,1.613155752957764]
[null,null,null,null,null,null,null,null,null,null,null,null,null,null,null,null,null,null,-9743.2744897821376,2.5489367563857077]
[null,null,null,null,null,null,null,null,null,null,null,null,null,null,null,null,null,null,-39780.429687387543,1.718815105826045]
[null,null,null,null,null,null,null,null,null,null,null,null,null,null,null,null,null,null,-1095.76921207737,2.0983712746018197]
[null,null,null,null,null,null,null,null,null,null,null,null,null,null,null,null,null,null,-9766.7106010140342,3.0976598364868191]
[null,null,null,null,null,null,null,null,null,null,null,null,null,null,null,null,null,null,-35566.046816662201,1.6897792250207093]
[null,null,null,null,null,null,null,null,null,null,null,null,null,null,null,null,null,null,-22968.254701006357,1.814606428032604]
[null,null,null,null,null,null,null,null,null,null,null,null,null,null,null,null,null,null,-7080.8829162720758,1.7249482098980535]
[null,null,null,null,null,null,null,null,null,null,null,null,null,null,null,null,null,null,-11214.49551702867,2.1211322600999178]
[null,null,null,null,null,null,null,null,null,null,null,null,null,null,null,null,null,null,-22187.407136465597,2.1161536239401486]
[null,null,null,null,null,null,null,null,null,null,null,null,null,null,null,null,null,null,-40331.512846088983,2.0873955921272462]
[null,null,null,null,null,null,null,null,null,null,null,null,null,null,null,null,null,null,-26000.242668799994,2.1222994769258521]
[null,null,null,null,null,null,null,null,null,null,null,null,null,null,null,null,null,null,-64533.017415933602,1.8802899559167217]
[null,null,null,null,null,null,null,null,null,null,null,null,null,null,null,null,null,null,-19853.067600382434,2.3269648824320743]
[null,null,null,null,null,null,null,null,null,null,null,null,null,null,null,null,null,null,-5154.927778487694,2.4764828410556738]
[null,null,null,null,null,null,null,null,null,null,null,null,null,null,null,null,null,null,-23114.684906189417,1.4086506515743298]
[null,null,null,null,null,null,null,null,null,null,null,null,null,null,null,null,null,null,-11773.225368805925,2.3663289387697719]
[null,null,null,null,null,null,null,null,null,null,null,null,null,null,null,null,null,null,-79085.807106451728,2.1438598538301483]
[null,null,null,null,null,null,null,null,null,null,null,null,null,null,null,null,null,null,-14352.076001484289,2.1896392421994402]
[null,null,null,null,null,null,null,null,null,null,null,null,null,null,null,null,null,null,-2377.0201849539553,2.0463179960730828]
[null,null,null,null,null,null,null,null,null,null,null,null,null,null,null,null,null,null,-17892.704305521758,1.5457632059766957]
[null,null,null,null,null,null,null,null,null,null,null,null,null,null,null,null,null,null,-872.03956353067042,2.2889200782981871]
[null,null,null,null,null,null,null,null,null,null,null,null,null,null,null,null,null,null,-3547.2989629436797,1.8735879903879744]
[null,null,null,null,null,null,null,null,null,null,null,null,null,null,null,null,null,null,-32079.858129786793,2.1015903166950527]
[null,null,null,null,null,null,null,null,null,null,null,null,null,null,null,null,null,null,-22005.124718275896,1.4828030395337599]
[null,null,null,null,null,null,null,null,null,null,null,null,null,null,null,null,null,null,-20001.100360022028,2.2688812468963397]
[null,null,null,null,null,null,null,null,null,null,null,null,null,null,null,null,null,null,-16845.134197411928,1.5542402903054948]
[null,null,null,null,null,null,null,null,null,null,null,null,null,null,null,null,null,null,-26378.832242428056,2.0130759608352151]
[null,null,null,null,null,null,null,null,null,null,null,null,null,null,null,null,null,null,10383.018887441489,2.422569147307196]
[null,null,null,null,null,null,null,null,null,null,null,null,null,null,null,null,null,null,-39362.784918695419,2.7025884840550849]
[null,null,null,null,null,null,null,null,null,null,null,null,null,null,null,null,null,null,23185.440747962799,2.0085834177954625]
[null,null,null,null,null,null,null,null,null,null,null,null,null,null,null,null,null,null,-20525.513573158456,2.8307342644130515]
[null,null,null,null,null,null,null,null,null,null,null,null,null,null,null,null,null,null,-14276.544461952515,2.5983620893252368]
[null,null,null,null,null,null,null,null,null,null,null,null,null,null,null,null,null,null,-42518.43055759999,1.8767165698176655]
[null,null,null,null,null,null,null,null,null,null,null,null,null,null,null,null,null,null,11191.99577482148,2.3180675675912341]
[null,null,null,null,null,null,null,null,null,null,null,null,null,null,null,null,null,null,-10510.024157056925,1.8347957285766157]
[null,null,null,null,null,null,null,null,null,null,null,null,null,null,null,null,null,null,-13426.444771073675,2.0189326018949254]
[null,null,null,null,null,null,null,null,null,null,null,null,null,null,null,null,null,null,-10097.565584928732,1.1938665163193161]
[null,null,null,null,null,null,null,null,null,null,null,null,null,null,null,null,null,null,-25104.221210430333,2.1689990231729399]
[null,null,null,null,null,null,null,null,null,null,null,null,null,null,null,null,null,null,-10280.261864141312,2.2013849310659075]
[null,null,null,null,null,null,null,null,null,null,null,null,null,null,null,null,null,null,-19321.428402842263,2.5449710672044912]
[null,null,null,null,null,null,null,null,null,null,null,null,null,null,null,null,null,null,-15301.404144697601,1.6956721976615374]
[null,null,null,null,null,null,null,null,null,null,null,null,null,null,null,null,null,null,-7108.9253774282615,1.9536618266373731]
[null,null,null,null,null,null,null,null,null,null,null,null,null,null,null,null,null,null,-14680.969757032119,1.9816883784722932]
[null,null,null,null,null,null,null,null,null,null,null,null,null,null,null,null,null,null,-26972.385301819209,2.3469725709361033]
[null,null,null,null,null,null,null,null,null,null,null,null,null,null,null,null,null,null,-4848.7967726621082,1.9956669925806398]
[null,null,null,null,null,null,null,null,null,null,null,null,null,null,null,null,null,null,-10361.429358677,2.3667503888779295]
[null,null,null,null,null,null,null,null,null,null,null,null,null,null,null,null,null,null,-3936.4158409302727,2.1511592470622984]
[null,null,null,null,null,null,null,null,null,null,null,null,null,null,null,null,null,null,-42445.051943405677,2.7884882306403771]
[null,null,null,null,null,null,null,null,null,null,null,null,null,null,null,null,null,null,-33287.611797856167,2.6010412016007791]
[null,null,null,null,null,null,null,null,null,null,null,null,null,null,null,null,null,null,-15963.946810458423,2.0078073908753704]
[null,null,null,null,null,null,null,null,null,null,null,null,null,null,null,null,null,null,-52311.310816665864,1.9159995716456448]
[null,null,null,null,null,null,null,null,null,null,null,null,null,null,null,null,null,null,-111575.42129073586,2.2081103719775745]
[null,null,null,null,null,null,null,null,null,null,null,null,null,null,null,null,null,null,-25581.045385199432,2.3894816006118447]
[null,null,null,null,null,null,null,null,null,null,null,null,null,null,null,null,null,null,-60091.782900596358,2.0351721202464117]
[null,null,null,null,null,null,null,null,null,null,null,null,null,null,null,null,null,null,-1008.3965661671245,1.7922651097421665]
[null,null,null,null,null,null,null,null,null,null,null,null,null,null,null,null,null,null,-21191.101566616431,1.6831354560503597]
[null,null,null,null,null,null,null,null,null,null,null,null,null,null,null,null,null,null,-15767.375747693921,2.2902697717242613]
[null,null,null,null,null,null,null,null,null,null,null,null,null,null,null,null,null,null,-26413.376147715251,1.1886432949023966]
[null,null,null,null,null,null,null,null,null,null,null,null,null,null,null,null,null,null,-22247.665158559379,1.6168456090002499]
[null,null,null,null,null,null,null,null,null,null,null,null,null,null,null,null,null,null,-7450.5409404844941,2.761531833499753]
[null,null,null,null,null,null,null,null,null,null,null,null,null,null,null,null,null,null,-16560.914861850259,2.3379495827997916]
[null,null,null,null,null,null,null,null,null,null,null,null,null,null,null,null,null,null,-5270.6737330791912,2.2682731847663375]
[null,null,null,null,null,null,null,null,null,null,null,null,null,null,null,null,null,null,-6595.4399355576352,2.496236076965614]
[null,null,null,null,null,null,null,null,null,null,null,null,null,null,null,null,null,null,-26233.068695334321,2.0450880083867742]
[null,null,null,null,null,null,null,null,null,null,null,null,null,null,null,null,null,null,-13557.890296996255,1.201607463482822]
[null,null,null,null,null,null,null,null,null,null,null,null,null,null,null,null,null,null,-4951.6464529553486,2.1468063934427311]
[null,null,null,null,null,null,null,null,null,null,null,null,null,null,null,null,null,null,-46452.315861927433,2.256707026283939]
[null,null,null,null,null,null,null,null,null,null,null,null,null,null,null,null,null,null,-26785.291796636244,1.8307190236993249]
[null,null,null,null,null,null,null,null,null,null,null,null,null,null,null,null,null,null,-13693.2936071802,1.2353964666879782]
[null,null,null,null,null,null,null,null,null,null,null,null,null,null,null,null,null,null,-31932.522473497884,2.1101307681101518]
[null,null,null,null,null,null,null,null,null,null,null,null,null,null,null,null,null,null,-42585.881529437953,2.5901073464156612]
[null,null,null,null,null,null,null,null,null,null,null,null,null,null,null,null,null,null,-22231.853161839448,2.1033875804368325]
[null,null,null,null,null,null,null,null,null,null,null,null,null,null,null,null,null,null,-7704.1031252632893,2.2362189514711868]
[null,null,null,null,null,null,null,null,null,null,null,null,null,null,null,null,null,null,-20952.536027850747,2.1895446798128178]
[null,null,null,null,null,null,null,null,null,null,null,null,null,null,null,null,null,null,-2421.2056051593827,2.0712898263070536]
[null,null,null,null,null,null,null,null,null,null,null,null,null,null,null,null,null,null,-6092.5947880133717,1.5930031339046278]
[null,null,null,null,null,null,null,null,null,null,null,null,null,null,null,null,null,null,-22100.779025767675,2.0032504814288328]
[null,null,null,null,null,null,null,null,null,null,null,null,null,null,null,null,null,null,-16182.258099151877,1.9706500173882899]
[null,null,null,null,null,null,null,null,null,null,null,null,null,null,null,null,null,null,-13530.777082635246,2.6405359369469719]
[null,null,null,null,null,null,null,null,null,null,null,null,null,null,null,null,null,null,-5594.1867300911936,2.1408522377687684]
[null,null,null,null,null,null,null,null,null,null,null,null,null,null,null,null,null,null,11011.293754350612,2.072605667399924]
[null,null,null,null,null,null,null,null,null,null,null,null,null,null,null,null,null,null,679.79447368791443,1.8504717113062528]
[null,null,null,null,null,null,null,null,null,null,null,null,null,null,null,null,null,null,-17487.068659746059,1.5497383048121343]
[null,null,null,null,null,null,null,null,null,null,null,null,null,null,null,null,null,null,-56856.851318371992,2.1488801949919552]
[null,null,null,null,null,null,null,null,null,null,null,null,null,null,null,null,null,null,-20628.731983757367,2.2285819082625951]
[null,null,null,null,null,null,null,null,null,null,null,null,null,null,null,null,null,null,-20230.304542046237,2.0136644566804973]
[null,null,null,null,null,null,null,null,null,null,null,null,null,null,null,null,null,null,-17326.2754536297,1.8038879575403568]
[null,null,null,null,null,null,null,null,null,null,null,null,null,null,null,null,null,null,-21850.382425439551,2.2851152969995905]
[null,null,null,null,null,null,null,null,null,null,null,null,null,null,null,null,null,null,-4882.2543904448994,2.1346096023197894]
[null,null,null,null,null,null,null,null,null,null,null,null,null,null,null,null,null,null,-14648.885556798203,2.1314325087917219]
[null,null,null,null,null,null,null,null,null,null,null,null,null,null,null,null,null,null,-66642.746142208882,2.1608673688620779]
[null,null,null,null,null,null,null,null,null,null,null,null,null,null,null,null,null,null,-59768.362689768939,1.8899445866241691]
[null,null,null,null,null,null,null,null,null,null,null,null,null,null,null,null,null,null,-10524.646851751411,2.5097532825084357]
[null,null,null,null,null,null,null,null,null,null,null,null,null,null,null,null,null,null,-20466.59032786906,1.8917989215764699]
[null,null,null,null,null,null,null,null,null,null,null,null,null,null,null,null,null,null,-2521.4449684530846,1.9188235924952299]
[null,null,null,null,null,null,null,null,null,null,null,null,null,null,null,null,null,null,-78115.059875749997,2.6501217156988872]
[null,null,null,null,null,null,null,null,null,null,null,null,null,null,null,null,null,null,14631.60731106154,1.8195514933104691]
[null,null,null,null,null,null,null,null,null,null,null,null,null,null,null,null,null,null,-19891.298914277257,1.7974901178820901]
[null,null,null,null,null,null,null,null,null,null,null,null,null,null,null,null,null,null,-33343.124315022069,2.0896338067374511]
[null,null,null,null,null,null,null,null,null,null,null,null,null,null,null,null,null,null,-22613.440346593368,1.7368194393063519]
[null,null,null,null,null,null,null,null,null,null,null,null,null,null,null,null,null,null,-14516.568056262127,2.5984196762969205]
[null,null,null,null,null,null,null,null,null,null,null,null,null,null,null,null,null,null,-2604.005217291282,1.7000035238155702]
[null,null,null,null,null,null,null,null,null,null,null,null,null,null,null,null,null,null,-10143.453833127456,2.1812571737252262]
[null,null,null,null,null,null,null,null,null,null,null,null,null,null,null,null,null,null,-51504.331561244529,2.3542392887948682]
[null,null,null,null,null,null,null,null,null,null,null,null,null,null,null,null,null,null,-23544.935808347713,1.3465773635606308]
[null,null,null,null,null,null,null,null,null,null,null,null,null,null,null,null,null,null,-2811.3409348116184,2.0283709752905987]
[null,null,null,null,null,null,null,null,null,null,null,null,null,null,null,null,null,null,-33192.388033467709,2.4072053303089929]
[null,null,null,null,null,null,null,null,null,null,null,null,null,null,null,null,null,null,-4562.6315402108376,1.8706182409969845]
[null,null,null,null,null,null,null,null,null,null,null,null,null,null,null,null,null,null,-14616.850595143231,1.5914253121642754]
[null,null,null,null,null,null,null,null,null,null,null,null,null,null,null,null,null,null,-5003.4540039188578,1.7598507372982248]
[null,null,null,null,null,null,null,null,null,null,null,null,null,null,null,null,null,null,-31991.531577693288,2.5214266103016354]
[null,null,null,null,null,null,null,null,null,null,null,null,null,null,null,null,null,null,-10511.19571787466,1.9647500558568702]
[null,null,null,null,null,null,null,null,null,null,null,null,null,null,null,null,null,null,-8997.5932920189807,2.5755088183431165]
[null,null,null,null,null,null,null,null,null,null,null,null,null,null,null,null,null,null,-17945.978273764649,2.3145436700324522]
[null,null,null,null,null,null,null,null,null,null,null,null,null,null,null,null,null,null,-4383.9588664417424,2.0805050320034684]
[null,null,null,null,null,null,null,null,null,null,null,null,null,null,null,null,null,null,-12493.492515426871,2.162729006687794]
[null,null,null,null,null,null,null,null,null,null,null,null,null,null,null,null,null,null,26216.912987366391,1.6326795155721565]
[null,null,null,null,null,null,null,null,null,null,null,null,null,null,null,null,null,null,-5090.4774195521313,2.0750919424612606]
[null,null,null,null,null,null,null,null,null,null,null,null,null,null,null,null,null,null,-6652.7788572306927,2.1126871441380488]
[null,null,null,null,null,null,null,null,null,null,null,null,null,null,null,null,null,null,-10264.379173909078,2.0101833109146248]
[null,null,null,null,null,null,null,null,null,null,null,null,null,null,null,null,null,null,-32878.243503337631,2.3276675749600053]
[null,null,null,null,null,null,null,null,null,null,null,null,null,null,null,null,null,null,-2466.4689266988971,1.609111560024346]
[null,null,null,null,null,null,null,null,null,null,null,null,null,null,null,null,null,null,-32419.959038639474,2.4858067954236436]
[null,null,null,null,null,null,null,null,null,null,null,null,null,null,null,null,null,null,-7980.6669273491534,2.1560333019780318]
[null,null,null,null,null,null,null,null,null,null,null,null,null,null,null,null,null,null,-3789.5919596355106,1.7821833324554475]
[null,null,null,null,null,null,null,null,null,null,null,null,null,null,null,null,null,null,-36564.207370238706,2.2704211706898985]
[null,null,null,null,null,null,null,null,null,null,null,null,null,null,null,null,null,null,-44857.070731818254,2.4129205680041954]
[null,null,null,null,null,null,null,null,null,null,null,null,null,null,null,null,null,null,-17327.80288400433,1.9632490595543066]
[null,null,null,null,null,null,null,null,null,null,null,null,null,null,null,null,null,null,-20209.358892829012,1.8658637049844384]
[null,null,null,null,null,null,null,null,null,null,null,null,null,null,null,null,null,null,-11286.938577047964,2.0364649653549285]
[null,null,null,null,null,null,null,null,null,null,null,null,null,null,null,null,null,null,-41547.938730863636,2.7887545813600196]
[null,null,null,null,null,null,null,null,null,null,null,null,null,null,null,null,null,null,-3810.8158391036477,2.1916627383242084]
[null,null,null,null,null,null,null,null,null,null,null,null,null,null,null,null,null,null,-25182.372303290966,1.9735312986020213]
[null,null,null,null,null,null,null,null,null,null,null,null,null,null,null,null,null,null,-15264.616695274759,1.6850888603935763]
[null,null,null,null,null,null,null,null,null,null,null,null,null,null,null,null,null,null,-15148.263959214179,1.7689960244824885]
[null,null,null,null,null,null,null,null,null,null,null,null,null,null,null,null,null,null,-4464.0220219101229,2.4617577670500514]
[null,null,null,null,null,null,null,null,null,null,null,null,null,null,null,null,null,null,-42440.515977865347,2.7889410592570285]
[null,null,null,null,null,null,null,null,null,null,null,null,null,null,null,null,null,null,5535.3286336875499,1.8744501348840243]
[null,null,null,null,null,null,null,null,null,null,null,null,null,null,null,null,null,null,-43528.333762572351,1.8767616650765038]
[null,null,null,null,null,null,null,null,null,null,null,null,null,null,null,null,null,null,-29566.360564197097,2.3395879877692125]
[null,null,null,null,null,null,null,null,null,null,null,null,null,null,null,null,null,null,-15841.106977921187,2.4723523802715794]
[null,null,null,null,null,null,null,null,null,null,null,null,null,null,null,null,null,null,-8296.2677404554124,2.0366554240520021]
[null,null,null,null,null,null,null,null,null,null,null,null,null,null,null,null,null,null,-17187.091401040674,2.0566800797482472]
[null,null,null,null,null,null,null,null,null,null,null,null,null,null,null,null,null,null,-50338.228614676103,2.7148744129532103]
[null,null,null,null,null,null,null,null,null,null,null,null,null,null,null,null,null,null,-21417.287911371321,2.4320648363215693]
[null,null,null,null,null,null,null,null,null,null,null,null,null,null,null,null,null,null,-27933.546785629624,2.3859501715512845]
[null,null,null,null,null,null,null,null,null,null,null,null,null,null,null,null,null,null,-16073.692828136554,2.2224976697321983]
[null,null,null,null,null,null,null,null,null,null,null,null,null,null,null,null,null,null,-11283.208315975207,2.3171820944941812]
[null,null,null,null,null,null,null,null,null,null,null,null,null,null,null,null,null,null,-5306.0283435765468,2.2348894549584033]
[null,null,null,null,null,null,null,null,null,null,null,null,null,null,null,null,null,null,-12935.448314983782,2.4437475065976373]
[null,null,null,null,null,null,null,null,null,null,null,null,null,null,null,null,null,null,-15524.608960159414,1.9600682510302105]
[null,null,null,null,null,null,null,null,null,null,null,null,null,null,null,null,null,null,-50132.370120679705,2.6822666678004587]
[null,null,null,null,null,null,null,null,null,null,null,null,null,null,null,null,null,null,-44554.059449869266,1.8360249888779876]
[null,null,null,null,null,null,null,null,null,null,null,null,null,null,null,null,null,null,4135.5733183258708,2.3766247086587047]
[null,null,null,null,null,null,null,null,null,null,null,null,null,null,null,null,null,null,3309.6958388440435,1.8547683548766178]
[null,null,null,null,null,null,null,null,null,null,null,null,null,null,null,null,null,null,-28319.020915993682,2.2669126339168915]
[null,null,null,null,null,null,null,null,null,null,null,null,null,null,null,null,null,null,-15861.625632107709,2.2874833859447583]
[null,null,null,null,null,null,null,null,null,null,null,null,null,null,null,null,null,null,-10376.06398759886,2.4492334120132693]
[null,null,null,null,null,null,null,null,null,null,null,null,null,null,null,null,null,null,-8816.5968102566367,1.9925642150005936]
[null,null,null,null,null,null,null,null,null,null,null,null,null,null,null,null,null,null,-7978.4480934549319,2.6445513017504796]
[null,null,null,null,null,null,null,null,null,null,null,null,null,null,null,null,null,null,-26006.981918999722,2.5065812530607552]
[null,null,null,null,null,null,null,null,null,null,null,null,null,null,null,null,null,null,-16573.946683410628,2.681824715902545]
[null,null,null,null,null,null,null,null,null,null,null,null,null,null,null,null,null,null,-41761.647019770331,2.6406896670439348]
[null,null,null,null,null,null,null,null,null,null,null,null,null,null,null,null,null,null,-12932.370467401044,2.2033217145691149]
[null,null,null,null,null,null,null,null,null,null,null,null,null,null,null,null,null,null,-53717.286426869789,2.0907427762712749]
[null,null,null,null,null,null,null,null,null,null,null,null,null,null,null,null,null,null,-32791.394172487213,2.0023324746799802]
[null,null,null,null,null,null,null,null,null,null,null,null,null,null,null,null,null,null,-17099.477535956194,2.4703069461140643]
[null,null,null,null,null,null,null,null,null,null,null,null,null,null,null,null,null,null,-1599.7915714722476,2.3630713389720492]
[null,null,null,null,null,null,null,null,null,null,null,null,null,null,null,null,null,null,-43483.561222297198,1.4164500838735603]
[null,null,null,null,null,null,null,null,null,null,null,null,null,null,null,null,null,null,-28019.129073531069,2.1457141613016986]
[null,null,null,null,null,null,null,null,null,null,null,null,null,null,null,null,null,null,-10229.696155621405,2.0668445529695592]
[null,null,null,null,null,null,null,null,null,null,null,null,null,null,null,null,null,null,-23361.63050913201,2.1810749744800471]
[null,null,null,null,null,null,null,null,null,null,null,null,null,null,null,null,null,null,-42346.648020487482,2.1956864679425836]
[null,null,null,null,null,null,null,null,null,null,null,null,null,null,null,null,null,null,-37844.571004732745,2.2279149740500914]
[null,null,null,null,null,null,null,null,null,null,null,null,null,null,null,null,null,null,-15423.065952048288,2.4091869593319921]
[null,null,null,null,null,null,null,null,null,null,null,null,null,null,null,null,null,null,-31280.691643136786,2.4535091127777844]
[null,null,null,null,null,null,null,null,null,null,null,null,null,null,null,null,null,null,-25670.905386688893,2.4260278861643325]
[null,null,null,null,null,null,null,null,null,null,null,null,null,null,null,null,null,null,-62357.189273371267,2.6337849882567586]
[null,null,null,null,null,null,null,null,null,null,null,null,null,null,null,null,null,null,-13838.048269575844,1.2506943286682795]
[null,null,null,null,null,null,null,null,null,null,null,null,null,null,null,null,null,null,58882.164314307593,1.9483463361916895]
[null,null,null,null,null,null,null,null,null,null,null,null,null,null,null,null,null,null,2660.6115688157079,2.317034194778802]
[null,null,null,null,null,null,null,null,null,null,null,null,null,null,null,null,null,null,-9106.4438490351677,2.2398645829713635]
[null,null,null,null,null,null,null,null,null,null,null,null,null,null,null,null,null,null,-38920.564643588237,1.7496715503710014]
[null,null,null,null,null,null,null,null,null,null,null,null,null,null,null,null,null,null,-53960.006474284171,2.420565092513931]
[null,null,null,null,null,null,null,null,null,null,null,null,null,null,null,null,null,null,1570.6544051637138,1.7189857173722212]
[null,null,null,null,null,null,null,null,null,null,null,null,null,null,null,null,null,null,21943.230655095031,2.3048826175435355]
[null,null,null,null,null,null,null,null,null,null,null,null,null,null,null,null,null,null,28404.830261530165,2.0637650051650551]
[null,null,null,null,null,null,null,null,null,null,null,null,null,null,null,null,null,null,-22328.325010193297,2.535443426250052]
[null,null,null,null,null,null,null,null,null,null,null,null,null,null,null,null,null,null,-28811.953091182404,2.1748176576670071]
[null,null,null,null,null,null,null,null,null,null,null,null,null,null,null,null,null,null,-6506.3865715039501,1.2260630907011376]
[null,null,null,null,null,null,null,null,null,null,null,null,null,null,null,null,null,null,-11616.342692983402,2.5779473760217386]
[null,null,null,null,null,null,null,null,null,null,null,null,null,null,null,null,null,null,-40842.271938696576,2.2278087406301164]
[null,null,null,null,null,null,null,null,null,null,null,null,null,null,null,null,null,null,-8750.7139597159694,1.8468091190659299]
[null,null,null,null,null,null,null,null,null,null,null,null,null,null,null,null,null,null,-14542.291969299797,2.4479363742669675]
[null,null,null,null,null,null,null,null,null,null,null,null,null,null,null,null,null,null,-8380.5675143299231,1.7973986432507369]
[null,null,null,null,null,null,null,null,null,null,null,null,null,null,null,null,null,null,-12630.658752551586,2.2191937435027942]
[null,null,null,null,null,null,null,null,null,null,null,null,null,null,null,null,null,null,-38788.050628094585,1.5526218463512715]
[null,null,null,null,null,null,null,null,null,null,null,null,null,null,null,null,null,null,-22204.279655116348,2.5369659154467601]
[null,null,null,null,null,null,null,null,null,null,null,null,null,null,null,null,null,null,-67775.766119308289,2.1335937903801954]
[null,null,null,null,null,null,null,null,null,null,null,null,null,null,null,null,null,null,-18479.674680351778,2.0735396706646703]
[null,null,null,null,null,null,null,null,null,null,null,null,null,null,null,null,null,null,-20602.627009006821,1.8893390814799149]
[null,null,null,null,null,null,null,null,null,null,null,null,null,null,null,null,null,null,-25031.845458780961,2.8048030786173443]
[null,null,null,null,null,null,null,null,null,null,null,null,null,null,null,null,null,null,-27869.687359129181,1.8259094648170739]
[null,null,null,null,null,null,null,null,null,null,null,null,null,null,null,null,null,null,-1467.9632101290754,1.8893430380371155]
[null,null,null,null,null,null,null,null,null,null,null,null,null,null,null,null,null,null,-8371.4629593595891,2.5502298808428785]
[null,null,null,null,null,null,null,null,null,null,null,null,null,null,null,null,null,null,-37395.521952073956,2.2226915996148353]
[null,null,null,null,null,null,null,null,null,null,null,null,null,null,null,null,null,null,-24309.478084191127,2.0572828362127296]
[null,null,null,null,null,null,null,null,null,null,null,null,null,null,null,null,null,null,-23897.125856050774,1.6038138114115927]
[null,null,null,null,null,null,null,null,null,null,null,null,null,null,null,null,null,null,-16519.184024268463,2.2966004954043941]
[null,null,null,null,null,null,null,null,null,null,null,null,null,null,null,null,null,null,-3687.5284980860852,2.0285673762357925]
[null,null,null,null,null,null,null,null,null,null,null,null,null,null,null,null,null,null,-21550.059691959788,2.3702198705824014]
[null,null,null,null,null,null,null,null,null,null,null,null,null,null,null,null,null,null,-16879.06218620859,2.479058205249292]
[null,null,null,null,null,null,null,null,null,null,null,null,null,null,null,null,null,null,1245.5075721776448,1.7410937309480556]
[null,null,null,null,null,null,null,null,null,null,null,null,null,null,null,null,null,null,-18496.730916892928,2.4645485488513872]
[null,null,null,null,null,null,null,null,null,null,null,null,null,null,null,null,null,null,-6053.799176071032,1.6421977931308964]
[null,null,null,null,null,null,null,null,null,null,null,null,null,null,null,null,null,null,-9125.7445148999614,1.9831708472966012]
[null,null,null,null,null,null,null,null,null,null,null,null,null,null,null,null,null,null,-1111.7521114320853,2.6372564906882356]
[null,null,null,null,null,null,null,null,null,null,null,null,null,null,null,null,null,null,-11759.590005128923,1.5438436837913923]
[null,null,null,null,null,null,null,null,null,null,null,null,null,null,null,null,null,null,-9846.9585855386322,2.6278888814329235]
[null,null,null,null,null,null,null,null,null,null,null,null,null,null,null,null,null,null,-16666.056969041412,1.7908148149214895]
[null,null,null,null,null,null,null,null,null,null,null,null,null,null,null,null,null,null,-31120.27572693587,2.0796911599671599]
[null,null,null,null,null,null,null,null,null,null,null,null,null,null,null,null,null,null,-14510.082399669562,1.5871292351646082]
[null,null,null,null,null,null,null,null,null,null,null,null,null,null,null,null,null,null,-20126.643463950077,2.5546093879990419]
[null,null,null,null,null,null,null,null,null,null,null,null,null,null,null,null,null,null,-46475.515096106341,1.9184919682212058]
[null,null,null,null,null,null,null,null,null,null,null,null,null,null,null,null,null,null,-17922.500353369593,1.4339619035017743]
[null,null,null,null,null,null,null,null,null,null,null,null,null,null,null,null,null,null,-29545.72317231663,2.2131694404591102]
[null,null,null,null,null,null,null,null,null,null,null,null,null,null,null,null,null,null,-13946.784799635272,1.790479900441512]
[null,null,null,null,null,null,null,null,null,null,null,null,null,null,null,null,null,null,-21874.041470263299,2.3007917041998391]
[null,null,null,null,null,null,null,null,null,null,null,null,null,null,null,null,null,null,-12013.793882355454,1.9805885043046612]
[null,null,null,null,null,null,null,null,null,null,null,null,null,null,null,null,null,null,-54848.276027658241,2.3873133566096265]
[null,null,null,null,null,null,null,null,null,null,null,null,null,null,null,null,null,null,10346.384571573639,2.4060682888738256]
[null,null,null,null,null,null,null,null,null,null,null,null,null,null,null,null,null,null,-12138.738189272088,1.7033713531150014]
[null,null,null,null,null,null,null,null,null,null,null,null,null,null,null,null,null,null,-9204.9774371806598,2.8809120823682042]
[null,null,null,null,null,null,null,null,null,null,null,null,null,null,null,null,null,null,-24973.555169125997,1.9707043188333997]
[null,null,null,null,null,null,null,null,null,null,null,null,null,null,null,null,null,null,40437.506854351581,2.9532595711639877]
[null,null,null,null,null,null,null,null,null,null,null,null,null,null,null,null,null,null,-51362.323715899998,2.3154835505452542]
[null,null,null,null,null,null,null,null,null,null,null,null,null,null,null,null,null,null,-8989.3667199210504,2.1703384387038396]
[null,null,null,null,null,null,null,null,null,null,null,null,null,null,null,null,null,null,-8185.1998978088704,2.3805612418618138]
[null,null,null,null,null,null,null,null,null,null,null,null,null,null,null,null,null,null,-40824.313163875238,2.5838060649139614]
[null,null,null,null,null,null,null,null,null,null,null,null,null,null,null,null,null,null,-11211.661774604669,2.395121276699252]
[null,null,null,null,null,null,null,null,null,null,null,null,null,null,null,null,null,null,-7668.073411128782,1.948796325456041]
[null,null,null,null,null,null,null,null,null,null,null,null,null,null,null,null,null,null,-33821.725901334445,2.4577525734333205]
[null,null,null,null,null,null,null,null,null,null,null,null,null,null,null,null,null,null,-59492.189666210907,2.1972160027522185]
[null,null,null,null,null,null,null,null,null,null,null,null,null,null,null,null,null,null,-9377.2033157181995,1.8659037716009355]
[null,null,null,null,null,null,null,null,null,null,null,null,null,null,null,null,null,null,-19941.671831036976,1.5553413962848794]
[null,null,null,null,null,null,null,null,null,null,null,null,null,null,null,null,null,null,-50020.046392905024,2.5055597922880124]
[null,null,null,null,null,null,null,null,null,null,null,null,null,null,null,null,null,null,-11579.504219112252,2.4904663793342938]
[null,null,null,null,null,null,null,null,null,null,null,null,null,null,null,null,null,null,-8880.6263077616677,2.0513240997709072]
[null,null,null,null,null,null,null,null,null,null,null,null,null,null,null,null,null,null,-45089.950777517835,1.3285546622779725]
[null,null,null,null,null,null,null,null,null,null,null,null,null,null,null,null,null,null,-4440.6822473046268,2.4724877420510789]
[null,null,null,null,null,null,null,null,null,null,null,null,null,null,null,null,null,null,-65131.846238466278,2.2016080726587486]
[null,null,null,null,null,null,null,null,null,null,null,null,null,null,null,null,null,null,38179.814472022088,1.8129516179866316]
[null,null,null,null,null,null,null,null,null,null,null,null,null,null,null,null,null,null,-32332.631726970867,2.9161353601737212]
[null,null,null,null,null,null,null,null,null,null,null,null,null,null,null,null,null,null,-28648.020204151966,2.2850996251684981]
[null,null,null,null,null,null,null,null,null,null,null,null,null,null,null,null,null,null,-13289.988602812533,1.1371469973983999]
[null,null,null,null,null,null,null,null,null,null,null,null,null,null,null,null,null,null,-15269.131819755497,2.3724452886931338]
[null,null,null,null,null,null,null,null,null,null,null,null,null,null,null,null,null,null,-75323.622545727441,2.4112839215876956]
[null,null,null,null,null,null,null,null,null,null,null,null,null,null,null,null,null,null,-20737.668474583865,1.9426871047986691]
[null,null,null,null,null,null,null,null,null,null,null,null,null,null,null,null,null,null,-23178.007610255499,2.6416402105090913]
[null,null,null,null,null,null,null,null,null,null,null,null,null,null,null,null,null,null,-86868.060521978943,2.5170533006613756]
[null,null,null,null,null,null,null,null,null,null,null,null,null,null,null,null,null,null,-16862.42776154969,1.9509564164878572]
[null,null,null,null,null,null,null,null,null,null,null,null,null,null,null,null,null,null,-665.60285840965662,2.8818140297271659]
[null,null,null,null,null,null,null,null,null,null,null,null,null,null,null,null,null,null,-43569.090674593528,2.5201100425166869]
[null,null,null,null,null,null,null,null,null,null,null,null,null,null,null,null,null,null,-12338.059139934121,2.0998198469683156]
[null,null,null,null,null,null,null,null,null,null,null,null,null,null,null,null,null,null,-5321.468739612752,1.8090708824006572]
[null,null,null,null,null,null,null,null,null,null,null,null,null,null,null,null,null,null,-7226.0327467999414,1.0607132378280562]
[null,null,null,null,null,null,null,null,null,null,null,null,null,null,null,null,null,null,-14670.046111345146,2.1304681935669953]
[null,null,null,null,null,null,null,null,null,null,null,null,null,null,null,null,null,null,-42290.520930531769,2.4447198945564792]
[null,null,null,null,null,null,null,null,null,null,null,null,null,null,null,null,null,null,-22446.839875819736,2.2780923860519238]
[null,null,null,null,null,null,null,null,null,null,null,null,null,null,null,null,null,null,-17363.580864768446,2.4406413744079338]
[null,null,null,null,null,null,null,null,null,null,null,null,null,null,null,null,null,null,-5974.8554466868336,2.2524033656004336]
[null,null,null,null,null,null,null,null,null,null,null,null,null,null,null,null,null,null,-26688.082432117066,2.2930196080998435]
[null,null,null,null,null,null,null,null,null,null,null,null,null,null,null,null,null,null,-18949.348588133926,2.2695292122727797]
[null,null,null,null,null,null,null,null,null,null,null,null,null,null,null,null,null,null,-10188.162059387203,2.3405475662371775]
[null,null,null,null,null,null,null,null,null,null,null,null,null,null,null,null,null,null,-16573.112851263348,2.7342647400234785]
[null,null,null,null,null,null,null,null,null,null,null,null,null,null,null,null,null,null,-39792.967535505762,2.2217236504503841]
[null,null,null,null,null,null,null,null,null,null,null,null,null,null,null,null,null,null,-15624.820445969224,2.1159324722408668]
[null,null,null,null,null,null,null,null,null,null,null,null,null,null,null,null,null,null,-34825.734463659144,1.7441682951561268]
[null,null,null,null,null,null,null,null,null,null,null,null,null,null,null,null,null,null,443.71740857335135,2.1018995712934365]
[null,null,null,null,null,null,null,null,null,null,null,null,null,null,null,null,null,null,-22835.143138208605,1.6205013193958004]
[null,null,null,null,null,null,null,null,null,null,null,null,null,null,null,null,null,null,-18286.046610563324,2.159886862831061]
[null,null,null,null,null,null,null,null,null,null,null,null,null,null,null,null,null,null,32874.881550878796,2.1301546099720006]
[null,null,null,null,null,null,null,null,null,null,null,null,null,null,null,null,null,null,-8705.6244634547947,2.2831359554235151]
[null,null,null,null,null,null,null,null,null,null,null,null,null,null,null,null,null,null,10505.595900232547,2.1614034635887638]
[null,null,null,null,null,null,null,null,null,null,null,null,null,null,null,null,null,null,-23948.46606186984,1.626598223599196]
[null,null,null,null,null,null,null,null,null,null,null,null,null,null,null,null,null,null,-6459.6050472721163,2.6040149060061664]
[null,null,null,null,null,null,null,null,null,null,null,null,null,null,null,null,null,null,-20101.695631478324,2.1414306999949706]
[null,null,null,null,null,null,null,null,null,null,null,null,null,null,null,null,null,null,-55717.12412676934,3.0195873332461227]
[null,null,null,null,null,null,null,null,null,null,null,null,null,null,null,null,null,null,-6427.4851351630077,1.5601700009240878]
[null,null,null,null,null,null,null,null,null,null,null,null,null,null,null,null,null,null,11241.684151042959,2.0269077200343579]
[null,null,null,null,null,null,null,null,null,null,null,null,null,null,null,null,null,null,-32529.913025164606,2.425465349276902]
[null,null,null,null,null,null,null,null,null,null,null,null,null,null,null,null,null,null,-18125.689117452264,1.6881151228388536]
[null,null,null,null,null,null,null,null,null,null,null,null,null,null,null,null,null,null,-12588.065416909791,1.2069811902652234]
[null,null,null,null,null,null,null,null,null,null,null,null,null,null,null,null,null,null,-10728.798707641741,1.7743121668413924]
[null,null,null,null,null,null,null,null,null,null,null,null,null,null,null,null,null,null,-17132.44210829333,2.2648668116358284]
[null,null,null,null,null,null,null,null,null,null,null,null,null,null,null,null,null,null,19497.451780759366,2.5575552172270117]
[null,null,null,null,null,null,null,null,null,null,null,null,null,null,null,null,null,null,-805.11230237189739,1.2911930782791115]
[null,null,null,null,null,null,null,null,null,null,null,null,null,null,null,null,null,null,-8553.4585009863804,1.781532156837343]
[null,null,null,null,null,null,null,null,null,null,null,null,null,null,null,null,null,null,-7346.8890264640577,2.4629180133434208]
[null,null,null,null,null,null,null,null,null,null,null,null,null,null,null,null,null,null,-5228.5130507523136,1.7273120380345262]
[null,null,null,null,null,null,null,null,null,null,null,null,null,null,null,null,null,null,-33219.663501073097,1.9706077925685821]
[null,null,null,null,null,null,null,null,null,null,null,null,null,null,null,null,null,null,-7837.2176275810198,1.5435907533410416]
[null,null,null,null,null,null,null,null,null,null,null,null,null,null,null,null,null,null,2337.7430160861186,2.6290213771011417]
[null,null,null,null,null,null,null,null,null,null,null,null,null,null,null,null,null,null,-17230.458258453458,1.642800481130227]
[null,null,null,null,null,null,null,null,null,null,null,null,null,null,null,null,null,null,-7660.6984086409211,2.4850065479548884]
[null,null,null,null,null,null,null,null,null,null,null,null,null,null,null,null,null,null,-5381.2923514829599,1.5323629623893376]
[null,null,null,null,null,null,null,null,null,null,null,null,null,null,null,null,null,null,-4634.878577591131,2.6626039548562241]
[null,null,null,null,null,null,null,null,null,null,null,null,null,null,null,null,null,null,-4953.5484773892995,2.1314249450729399]
[null,null,null,null,null,null,null,null,null,null,null,null,null,null,null,null,null,null,-12588.446565204504,1.9560720219366639]
[null,null,null,null,null,null,null,null,null,null,null,null,null,null,null,null,null,null,-15754.355073855433,2.2592930189078406]
[null,null,null,null,null,null,null,null,null,null,null,null,null,null,null,null,null,null,-71580.645836203868,1.812835493125895]
[null,null,null,null,null,null,null,null,null,null,null,null,null,null,null,null,null,null,-41725.446503398358,3.0524633590758334]
[null,null,null,null,null,null,null,null,null,null,null,null,null,null,null,null,null,null,-10492.768419890956,1.5195568368434067]
[null,null,null,null,null,null,null,null,null,null,null,null,null,null,null,null,null,null,-55486.885142491315,2.3236481056950691]
[null,null,null,null,null,null,null,null,null,null,null,null,null,null,null,null,null,null,-14995.238920360651,2.2286743895110805]
[null,null,null,null,null,null,null,null,null,null,null,null,null,null,null,null,null,null,-9870.0534116447634,1.9395093000210375]
[null,null,null,null,null,null,null,null,null,null,null,null,null,null,null,null,null,null,-23041.374384302471,1.429081301384072]
[null,null,null,null,null,null,null,null,null,null,null,null,null,null,null,null,null,null,-18355.42401896439,2.1088190402089135]
[null,null,null,null,null,null,null,null,null,null,null,null,null,null,null,null,null,null,-16656.334524762715,1.738607124791395]
[null,null,null,null,null,null,null,null,null,null,null,null,null,null,null,null,null,null,-22310.308898008341,1.9896288163930529]
[null,null,null,null,null,null,null,null,null,null,null,null,null,null,null,null,null,null,-15880.181515526041,2.4083360489008223]
[null,null,null,null,null,null,null,null,null,null,null,null,null,null,null,null,null,null,-10893.144640753206,2.5368190302610416]
[null,null,null,null,null,null,null,null,null,null,null,null,null,null,null,null,null,null,-47852.843891039462,2.0352124567414491]
[null,null,null,null,null,null,null,null,null,null,null,null,null,null,null,null,null,null,-24961.857481823623,2.4213751800611432]
[null,null,null,null,null,null,null,null,null,null,null,null,null,null,null,null,null,null,-11019.958622897815,2.2033881320472979]
[null,null,null,null,null,null,null,null,null,null,null,null,null,null,null,null,null,null,-12938.230915256601,2.2004024073104924]
[null,null,null,null,null,null,null,null,null,null,null,null,null,null,null,null,null,null,-45384.882205382601,2.1490721006022495]
[null,null,null,null,null,null,null,null,null,null,null,null,null,null,null,null,null,null,-14235.219623246157,1.6010641531652743]
[null,null,null,null,null,null,null,null,null,null,null,null,null,null,null,null,null,null,-21193.738688846075,2.0971266716571004]
[null,null,null,null,null,null,null,null,null,null,null,null,null,null,null,null,null,null,-2724.6510266392543,1.9900857456863617]
[null,null,null,null,null,null,null,null,null,null,null,null,null,null,null,null,null,null,-5649.936246140911,1.6785637283968833]
[null,null,null,null,null,null,null,null,null,null,null,null,null,null,null,null,null,null,-26490.159122426245,1.5902577623726821]
[null,null,null,null,null,null,null,null,null,null,null,null,null,null,null,null,null,null,-27879.340520370453,2.5112316208063441]
[null,null,null,null,null,null,null,null,null,null,null,null,null,null,null,null,null,null,-2299.022913605264,2.1908978897834652]
[null,null,null,null,null,null,null,null,null,null,null,null,null,null,null,null,null,null,-14478.629575206898,1.9081848953333451]
[null,null,null,null,null,null,null,null,null,null,null,null,null,null,null,null,null,null,-21397.29419723052,1.9090578989638014]
[null,null,null,null,null,null,null,null,null,null,null,null,null,null,null,null,null,null,-31688.350622868769,2.5820914848591139]
[null,null,null,null,null,null,null,null,null,null,null,null,null,null,null,null,null,null,-15215.692339440844,2.0461897073651123]
[null,null,null,null,null,null,null,null,null,null,null,null,null,null,null,null,null,null,-38109.691673006659,2.2868572490588375]
[null,null,null,null,null,null,null,null,null,null,null,null,null,null,null,null,null,null,-51725.274368180806,1.3625431709157763]
[null,null,null,null,null,null,null,null,null,null,null,null,null,null,null,null,null,null,5979.9866967900707,1.696856010206258]
[null,null,null,null,null,null,null,null,null,null,null,null,null,null,null,null,null,null,-24730.569674967133,2.785201465223794]
[null,null,null,null,null,null,null,null,null,null,null,null,null,null,null,null,null,null,-3050.8082357593685,2.1896550102330381]
[null,null,null,null,null,null,null,null,null,null,null,null,null,null,null,null,null,null,-30398.391153448152,2.1389286883778911]
[null,null,null,null,null,null,null,null,null,null,null,null,null,null,null,null,null,null,-30189.741407307578,1.9837037433714668]
[null,null,null,null,null,null,null,null,null,null,null,null,null,null,null,null,null,null,-13387.41265784463,1.6312552873679178]
[null,null,null,null,null,null,null,null,null,null,null,null,null,null,null,null,null,null,-60888.132354829519,1.8663624335333622]
[null,null,null,null,null,null,null,null,null,null,null,null,null,null,null,null,null,null,-74645.232176443213,1.9027974664100253]
[null,null,null,null,null,null,null,null,null,null,null,null,null,null,null,null,null,null,-29273.207901152746,2.4233426102631666]
[null,null,null,null,null,null,null,null,null,null,null,null,null,null,null,null,null,null,-16870.902113976215,1.8442134201099698]
[null,null,null,null,null,null,null,null,null,null,null,null,null,null,null,null,null,null,-40256.038995712835,2.5187179513669817]
[null,null,null,null,null,null,null,null,null,null,null,null,null,null,null,null,null,null,-9285.5384133906919,2.4137204971655577]
[null,null,null,null,null,null,null,null,null,null,null,null,null,null,null,null,null,null,-12435.255539580285,1.7910063454147225]
[null,null,null,null,null,null,null,null,null,null,null,null,null,null,null,null,null,null,-21524.147293779737,2.6601860288767178]
[null,null,null,null,null,null,null,null,null,null,null,null,null,null,null,null,null,null,-17883.606172629618,1.7563280844280049]
[null,null,null,null,null,null,null,null,null,null,null,null,null,null,null,null,null,null,-4380.1489715182688,1.711507386313913]
[null,null,null,null,null,null,null,null,null,null,null,null,null,null,null,null,null,null,-38957.799909678448,2.3517879658492213]
[null,null,null,null,null,null,null,null,null,null,null,null,null,null,null,null,null,null,-61871.392828813972,2.3921990434125591]
[null,null,null,null,null,null,null,null,null,null,null,null,null,null,null,null,null,null,-25652.17122322222,2.2971825361095637]
[null,null,null,null,null,null,null,null,null,null,null,null,null,null,null,null,null,null,-23705.468833656087,2.5767099251328713]
[null,null,null,null,null,null,null,null,null,null,null,null,null,null,null,null,null,null,-18850.929358038244,2.110619521647612]
[null,null,null,null,null,null,null,null,null,null,null,null,null,null,null,null,null,null,4197.0934359056046,2.2727657597007327]
[null,null,null,null,null,null,null,null,null,null,null,null,null,null,null,null,null,null,-5393.5571815072253,2.2962966109445611]
[null,null,null,null,null,null,null,null,null,null,null,null,null,null,null,null,null,null,-12140.380205992442,2.0013519754943303]
[null,null,null,null,null,null,null,null,null,null,null,null,null,null,null,null,null,null,-7466.0308935403809,1.7575205565555683]
[null,null,null,null,null,null,null,null,null,null,null,null,null,null,null,null,null,null,-5257.6752039875209,2.112489798301191]
[null,null,null,null,null,null,null,null,null,null,null,null,null,null,null,null,null,null,-6213.6212516937594,1.9714611339847661]
[null,null,null,null,null,null,null,null,null,null,null,null,null,null,null,null,null,null,10164.246293163902,1.9181123704673912]
[null,null,null,null,null,null,null,null,null,null,null,null,null,null,null,null,null,null,-5261.4106795898406,1.789558062507564]
[null,null,null,null,null,null,null,null,null,null,null,null,null,null,null,null,null,null,-38104.568554660247,2.0274244561663077]
[null,null,null,null,null,null,null,null,null,null,null,null,null,null,null,null,null,null,-11339.902188179723,2.1339332890903404]
[null,null,null,null,null,null,null,null,null,null,null,null,null,null,null,null,null,null,-1479.9677458498736,2.3988001213099728]
[null,null,null,null,null,null,null,null,null,null,null,null,null,null,null,null,null,null,-7283.7031848172664,2.1296227523619016]
[null,null,null,null,null,null,null,null,null,null,null,null,null,null,null,null,null,null,-58851.777730516267,1.9331857930299292]
[null,null,null,null,null,null,null,null,null,null,null,null,null,null,null,null,null,null,-93291.120916199216,2.2563821268539468]
[null,null,null,null,null,null,null,null,null,null,null,null,null,null,null,null,null,null,-20505.847931577075,2.0278865628638529]
[null,null,null,null,null,null,null,null,null,null,null,null,null,null,null,null,null,null,-26696.051082298225,2.5275365738410889]
[null,null,null,null,null,null,null,null,null,null,null,null,null,null,null,null,null,null,-10120.954823258835,2.0674385733405543]
[null,null,null,null,null,null,null,null,null,null,null,null,null,null,null,null,null,null,-15310.589551131328,1.8859474407363344]
[null,null,null,null,null,null,null,null,null,null,null,null,null,null,null,null,null,null,-37315.013150881059,2.0737142260157744]
[null,null,null,null,null,null,null,null,null,null,null,null,null,null,null,null,null,null,-22709.170071949338,2.2224200006626349]
[null,null,null,null,null,null,null,null,null,null,null,null,null,null,null,null,null,null,-9402.5810601332996,2.4379881849881238]
[null,null,null,null,null,null,null,null,null,null,null,null,null,null,null,null,null,null,-6653.5169409627852,1.6725667209081863]
[null,null,null,null,null,null,null,null,null,null,null,null,null,null,null,null,null,null,-52916.105306347745,1.6747035095605685]
[null,null,null,null,null,null,null,null,null,null,null,null,null,null,null,null,null,null,-8729.2874807036787,2.5010811273967901]
[null,null,null,null,null,null,null,null,null,null,null,null,null,null,null,null,null,null,-18926.697756218542,2.5526492699071106]
[null,null,null,null,null,null,null,null,null,null,null,null,null,null,null,null,null,null,-13951.996967366311,1.8420283668174293]
[null,null,null,null,null,null,null,null,null,null,null,null,null,null,null,null,null,null,-1663.7533679702647,1.6737892373834709]
[null,null,null,null,null,null,null,null,null,null,null,null,null,null,null,null,null,null,-10169.966033068398,1.8998804152698381]
[null,null,null,null,null,null,null,null,null,null,null,null,null,null,null,null,null,null,-5763.5934588666405,2.1010592743941316]
[null,null,null,null,null,null,null,null,null,null,null,null,null,null,null,null,null,null,10254.45591015181,1.8289263021677864]
[null,null,null,null,null,null,null,null,null,null,null,null,null,null,null,null,null,null,-7558.9895576413546,1.5277298200404696]
[null,null,null,null,null,null,null,null,null,null,null,null,null,null,null,null,null,null,-6123.9657290313189,2.3178186301595733]
[null,null,null,null,null,null,null,null,null,null,null,null,null,null,null,null,null,null,-13373.209047558499,1.6483122369931689]
[null,null,null,null,null,null,null,null,null,null,null,null,null,null,null,null,null,null,-205.81697546671785,2.6877075627697486]
[null,null,null,null,null,null,null,null,null,null,null,null,null,null,null,null,null,null,-6290.7145336638023,2.9652807994427954]
[null,null,null,null,null,null,null,null,null,null,null,null,null,null,null,null,null,null,-20576.705884123992,1.9630626483658147]
[null,null,null,null,null,null,null,null,null,null,null,null,null,null,null,null,null,null,-4587.1250434162539,2.1265943562097767]
[null,null,null,null,null,null,null,null,null,null,null,null,null,null,null,null,null,null,-14181.629900656924,1.9009696742212161]
[null,null,null,null,null,null,null,null,null,null,null,null,null,null,null,null,null,null,-12694.320709492824,1.9122657052708965]
[null,null,null,null,null,null,null,null,null,null,null,null,null,null,null,null,null,null,-19610.957038822526,2.3489579470427286]
[null,null,null,null,null,null,null,null,null,null,null,null,null,null,null,null,null,null,-10344.801335492974,1.9543152536459658]
[null,null,null,null,null,null,null,null,null,null,null,null,null,null,null,null,null,null,-10600.732144358757,1.3846826366625513]
[null,null,null,null,null,null,null,null,null,null,null,null,null,null,null,null,null,null,4096.0292245172313,2.4349674737468794]
[null,null,null,null,null,null,null,null,null,null,null,null,null,null,null,null,null,null,-22912.718955577424,2.2881007018383333]
[null,null,null,null,null,null,null,null,null,null,null,null,null,null,null,null,null,null,8451.814856721383,1.9541429373233061]
[null,null,null,null,null,null,null,null,null,null,null,null,null,null,null,null,null,null,-7453.1470737860946,1.6058373052535515]
[null,null,null,null,null,null,null,null,null,null,null,null,null,null,null,null,null,null,-42889.055968970497,2.3190818669273847]
[null,null,null,null,null,null,null,null,null,null,null,null,null,null,null,null,null,null,-22886.045649584601,1.9128372656416937]
[null,null,null,null,null,null,null,null,null,null,null,null,null,null,null,null,null,null,31006.796333770231,2.0135113682277703]
[null,null,null,null,null,null,null,null,null,null,null,null,null,null,null,null,null,null,-25572.420020154226,1.6402673017039948]
[null,null,null,null,null,null,null,null,null,null,null,null,null,null,null,null,null,null,-46056.023134732815,1.7019459269759913]
[null,null,null,null,null,null,null,null,null,null,null,null,null,null,null,null,null,null,-23450.303269428194,2.4633222152487906]
[null,null,null,null,null,null,null,null,null,null,null,null,null,null,null,null,null,null,-2778.717900088337,2.0985365398553655]
[null,null,null,null,null,null,null,null,null,null,null,null,null,null,null,null,null,null,-40796.105327749887,2.6579850704088255]
[null,null,null,null,null,null,null,null,null,null,null,null,null,null,null,null,null,null,-37884.71787310025,1.6428657529636825]
[null,null,null,null,null,null,null,null,null,null,null,null,null,null,null,null,null,null,-9060.1820237288375,1.9641767012945048]
[null,null,null,null,null,null,null,null,null,null,null,null,null,null,null,null,null,null,-10888.023694457748,2.2197791380858596]
[null,null,null,null,null,null,null,null,null,null,null,null,null,null,null,null,null,null,-19436.552804258252,2.4694175577617758]
[null,null,null,null,null,null,null,null,null,null,null,null,null,null,null,null,null,null,-16295.747659511595,2.1783617728935432]
[null,null,null,null,null,null,null,null,null,null,null,null,null,null,null,null,null,null,18962.347714801763,2.2385427828223827]
[null,null,null,null,null,null,null,null,null,null,null,null,null,null,null,null,null,null,-9985.0185965430792,2.6766845128332233]
[null,null,null,null,null,null,null,null,null,null,null,null,null,null,null,null,null,null,-7244.7796326917351,2.3641902566471709]
[null,null,null,null,null,null,null,null,null,null,null,null,null,null,null,null,null,null,-76895.621889195434,2.4747515911391518]
[null,null,null,null,null,null,null,null,null,null,null,null,null,null,null,null,null,null,-24433.146894960024,2.3585399867351362]
[null,null,null,null,null,null,null,null,null,null,null,null,null,null,null,null,null,null,-33144.404869289909,2.2332311307200881]
[null,null,null,null,null,null,null,null,null,null,null,null,null,null,null,null,null,null,-16438.298951164015,2.0458457309596234]
[null,null,null,null,null,null,null,null,null,null,null,null,null,null,null,null,null,null,-80225.895152332916,2.3446339877581477]
[null,null,null,null,null,null,null,null,null,null,null,null,null,null,null,null,null,null,-1494.0159934131807,2.0602125518739647]
[null,null,null,null,null,null,null,null,null,null,null,null,null,null,null,null,null,null,7632.4168228119306,2.1360845952986511]
[null,null,null,null,null,null,null,null,null,null,null,null,null,null,null,null,null,null,-18225.993198671888,0.95858001241710067]
[null,null,null,null,null,null,null,null,null,null,null,null,null,null,null,null,null,null,-63404.120917304412,2.6708528071251285]
[null,null,null,null,null,null,null,null,null,null,null,null,null,null,null,null,null,null,-21167.052981572473,2.0314760732681378]
[null,null,null,null,null,null,null,null,null,null,null,null,null,null,null,null,null,null,-8999.3322797837973,2.3022581081911175]
[null,null,null,null,null,null,null,null,null,null,null,null,null,null,null,null,null,null,-17396.040500779662,3.0002516274985349]
[null,null,null,null,null,null,null,null,null,null,null,null,null,null,null,null,null,null,-2481.7888338366902,1.7310142080034567]
[null,null,null,null,null,null,null,null,null,null,null,null,null,null,null,null,null,null,-42943.890353898416,1.8547034219509073]
[null,null,null,null,null,null,null,null,null,null,null,null,null,null,null,null,null,null,-12937.688254464654,1.4710375479516529]
[null,null,null,null,null,null,null,null,null,null,null,null,null,null,null,null,null,null,-10676.253821968145,2.2886124821945808]
[null,null,null,null,null,null,null,null,null,null,null,null,null,null,null,null,null,null,-35105.451239301779,2.3911834308265738]
[null,null,null,null,null,null,null,null,null,null,null,null,null,null,null,null,null,null,-18491.718861711062,1.9958954404239271]
[null,null,null,null,null,null,null,null,null,null,null,null,null,null,null,null,null,null,1030.5592509375492,2.319003636810181]
[null,null,null,null,null,null,null,null,null,null,null,null,null,null,null,null,null,null,-29591.710239825181,2.3838023978226572]
[null,null,null,null,null,null,null,null,null,null,null,null,null,null,null,null,null,null,-46226.137076209532,1.7391844701238499]
[null,null,null,null,null,null,null,null,null,null,null,null,null,null,null,null,null,null,-7639.9671028507619,2.1547434622210031]
[null,null,null,null,null,null,null,null,null,null,null,null,null,null,null,null,null,null,-71500.714296585036,1.693852067089729]
[null,null,null,null,null,null,null,null,null,null,null,null,null,null,null,null,null,null,-12891.55152031541,2.3479242767197595]
[null,null,null,null,null,null,null,null,null,null,null,null,null,null,null,null,null,null,59461.276422555908,2.0884548113994339]
[null,null,null,null,null,null,null,null,null,null,null,null,null,null,null,null,null,null,-8841.6858131835688,2.8530724445722568]
[null,null,null,null,null,null,null,null,null,null,null,null,null,null,null,null,null,null,-1955.2943559429787,2.2419834297326102]
[null,null,null,null,null,null,null,null,null,null,null,null,null,null,null,null,null,null,-78082.35244194651,2.4797611784198521]
[null,null,null,null,null,null,null,null,null,null,null,null,null,null,null,null,null,null,-38225.088330954743,2.0954281132271584]
[null,null,null,null,null,null,null,null,null,null,null,null,null,null,null,null,null,null,-31759.221614362876,2.1789920954351931]
[null,null,null,null,null,null,null,null,null,null,null,null,null,null,null,null,null,null,-23187.15011035814,2.1102949373428448]
[null,null,null,null,null,null,null,null,null,null,null,null,null,null,null,null,null,null,-21610.022448108073,2.1887112655899039]
[null,null,null,null,null,null,null,null,null,null,null,null,null,null,null,null,null,null,-4445.7233926263543,2.0101016398910247]
[null,null,null,null,null,null,null,null,null,null,null,null,null,null,null,null,null,null,-34853.10462031138,1.9281248627711793]
[null,null,null,null,null,null,null,null,null,null,null,null,null,null,null,null,null,null,6424.4348307454275,2.4289077024647923]
[null,null,null,null,null,null,null,null,null,null,null,null,null,null,null,null,null,null,-17248.170234808658,1.8481285611768934]
[null,null,null,null,null,null,null,null,null,null,null,null,null,null,null,null,null,null,-12149.095844342402,2.5056907674396696]
[null,null,null,null,null,null,null,null,null,null,null,null,null,null,null,null,null,null,-445.31101787272928,1.6276259019138317]
[null,null,null,null,null,null,null,null,null,null,null,null,null,null,null,null,null,null,-49657.882749256547,1.6733475023634217]
[null,null,null,null,null,null,null,null,null,null,null,null,null,null,null,null,null,null,-29255.645982842289,1.9840533834543095]
[null,null,null,null,null,null,null,null,null,null,null,null,null,null,null,null,null,null,-1416.027120253093,2.0524178445954937]
[null,null,null,null,null,null,null,null,null,null,null,null,null,null,null,null,null,null,-6410.1913229990969,2.0680443891474911]
[null,null,null,null,null,null,null,null,null,null,null,null,null,null,null,null,null,null,-12171.836428342116,1.9550581534858011]
[null,null,null,null,null,null,null,null,null,null,null,null,null,null,null,null,null,null,-6534.1641765063523,1.4690335414789581]
[null,null,null,null,null,null,null,null,null,null,null,null,null,null,null,null,null,null,11935.656741944564,2.7936744008912404]
[null,null,null,null,null,null,null,null,null,null,null,null,null,null,null,null,null,null,-38508.901292171104,2.0639365754735581]
[null,null,null,null,null,null,null,null,null,null,null,null,null,null,null,null,null,null,-11438.45046719976,1.8199107285206759]
[null,null,null,null,null,null,null,null,null,null,null,null,null,null,null,null,null,null,-26928.760388846145,1.9216193045904091]
[null,null,null,null,null,null,null,null,null,null,null,null,null,null,null,null,null,null,-24046.622252576533,2.3663925905716998]
[null,null,null,null,null,null,null,null,null,null,null,null,null,null,null,null,null,null,-53435.715854360802,1.9837894267850746]
[null,null,null,null,null,null,null,null,null,null,null,null,null,null,null,null,null,null,2840.7610428693733,1.6761745969307236]
[null,null,null,null,null,null,null,null,null,null,null,null,null,null,null,null,null,null,-57737.901427629222,2.2798680990427465]
[null,null,null,null,null,null,null,null,null,null,null,null,null,null,null,null,null,null,-31026.41219161835,1.3496549052915503]
[null,null,null,null,null,null,null,null,null,null,null,null,null,null,null,null,null,null,-28733.960339837126,2.1199633256861024]
[null,null,null,null,null,null,null,null,null,null,null,null,null,null,null,null,null,null,-1162.4537484954908,2.2740613048462843]
[null,null,null,null,null,null,null,null,null,null,null,null,null,null,null,null,null,null,18545.514638763387,2.0993826875301211]
[null,null,null,null,null,null,null,null,null,null,null,null,null,null,null,null,null,null,-30152.616516623049,2.5053670433601489]
[null,null,null,null,null,null,null,null,null,null,null,null,null,null,null,null,null,null,-29533.367170184807,2.9549504264819033]
[null,null,null,null,null,null,null,null,null,null,null,null,null,null,null,null,null,null,-3180.3578000951384,2.4844867252044369]
[null,null,null,null,null,null,null,null,null,null,null,null,null,null,null,null,null,null,-26092.830958701928,2.2891403557102707]
[null,null,null,null,null,null,null,null,null,null,null,null,null,null,null,null,null,null,-44044.57995293985,2.1051508182070728]
[null,null,null,null,null,null,null,null,null,null,null,null,null,null,null,null,null,null,-9756.945733382905,1.701253886035039]
[null,null,null,null,null,null,null,null,null,null,null,null,null,null,null,null,null,null,-57145.374578180119,1.9324936831447892]
[null,null,null,null,null,null,null,null,null,null,null,null,null,null,null,null,null,null,-38217.404305073527,2.0766001294297363]
[null,null,null,null,null,null,null,null,null,null,null,null,null,null,null,null,null,null,-20870.688445406173,1.5392956457557121]
[null,null,null,null,null,null,null,null,null,null,null,null,null,null,null,null,null,null,-28605.546003287756,1.4846124713364532]
[null,null,null,null,null,null,null,null,null,null,null,null,null,null,null,null,null,null,-34297.038891111632,2.4339122751052695]
[null,null,null,null,null,null,null,null,null,null,null,null,null,null,null,null,null,null,-37277.289633041517,2.1362476280126272]
[null,null,null,null,null,null,null,null,null,null,null,null,null,null,null,null,null,null,5319.8301085533312,2.2589246293066556]
[null,null,null,null,null,null,null,null,null,null,null,null,null,null,null,null,null,null,-38341.731066385866,1.957447739938746]
[null,null,null,null,null,null,null,null,null,null,null,null,null,null,null,null,null,null,-29240.460017724465,2.5108225453869402]
[null,null,null,null,null,null,null,null,null,null,null,null,null,null,null,null,null,null,-3760.3312489681157,2.2671322630071713]
[null,null,null,null,null,null,null,null,null,null,null,null,null,null,null,null,null,null,71682.799957800467,1.6411401946152391]
[null,null,null,null,null,null,null,null,null,null,null,null,null,null,null,null,null,null,-13617.869982722121,2.0923505069181934]
[null,null,null,null,null,null,null,null,null,null,null,null,null,null,null,null,null,null,-44737.058170447126,2.1772554458188185]
[null,null,null,null,null,null,null,null,null,null,null,null,null,null,null,null,null,null,-46756.780477325963,2.3137305301016795]
[null,null,null,null,null,null,null,null,null,null,null,null,null,null,null,null,null,null,-30207.240715196229,2.2803652233913163]
[null,null,null,null,null,null,null,null,null,null,null,null,null,null,null,null,null,null,-3769.4050744340238,2.5743450947572843]
[null,null,null,null,null,null,null,null,null,null,null,null,null,null,null,null,null,null,-30360.841430292057,2.4042252432428177]
[null,null,null,null,null,null,null,null,null,null,null,null,null,null,null,null,null,null,-6328.630918632758,2.3817012871321346]
[null,null,null,null,null,null,null,null,null,null,null,null,null,null,null,null,null,null,-13831.697675967691,2.1527632170409734]
[null,null,null,null,null,null,null,null,null,null,null,null,null,null,null,null,null,null,22621.1564477512,2.1682058006555032]
[null,null,null,null,null,null,null,null,null,null,null,null,null,null,null,null,null,null,-4723.9631927613182,2.6539038081101745]
[null,null,null,null,null,null,null,null,null,null,null,null,null,null,null,null,null,null,-6171.5880229901295,2.2584863162721089]
[null,null,null,null,null,null,null,null,null,null,null,null,null,null,null,null,null,null,-21938.361228584356,2.838294643305157]
[null,null,null,null,null,null,null,null,null,null,null,null,null,null,null,null,null,null,-15685.93741238785,2.2654108408974416]
[null,null,null,null,null,null,null,null,null,null,null,null,null,null,null,null,null,null,-14564.968869069868,1.4707982559981034]
[null,null,null,null,null,null,null,null,null,null,null,null,null,null,null,null,null,null,-5479.8430065736138,2.3623325429939039]
[null,null,null,null,null,null,null,null,null,null,null,null,null,null,null,null,null,null,-20644.641722465778,2.0959199103808257]
[null,null,null,null,null,null,null,null,null,null,null,null,null,null,null,null,null,null,-5435.1636866739573,1.9594283072154344]
[null,null,null,null,null,null,null,null,null,null,null,null,null,null,null,null,null,null,-33218.058860728182,2.1552383712503169]
[null,null,null,null,null,null,null,null,null,null,null,null,null,null,null,null,null,null,-4561.2594132288286,2.0009076605878495]
[null,null,null,null,null,null,null,null,null,null,null,null,null,null,null,null,null,null,-17784.806568153883,2.6635232495445851]
[null,null,null,null,null,null,null,null,null,null,null,null,null,null,null,null,null,null,-8138.201252293482,2.2391070018380876]
[null,null,null,null,null,null,null,null,null,null,null,null,null,null,null,null,null,null,-24851.612445155522,1.3222799141905179]
[null,null,null,null,null,null,null,null,null,null,null,null,null,null,null,null,null,null,-5430.7924457061781,1.2934459059065024]
[null,null,null,null,null,null,null,null,null,null,null,null,null,null,null,null,null,null,-2496.9604944874318,2.2461478089605622]
[null,null,null,null,null,null,null,null,null,null,null,null,null,null,null,null,null,null,-53980.672861643514,2.1387937861758894]
[null,null,null,null,null,null,null,null,null,null,null,null,null,null,null,null,null,null,-47829.697444365796,2.2707198164312277]
[null,null,null,null,null,null,null,null,null,null,null,null,null,null,null,null,null,null,-18753.681363569485,1.9389332896280198]
[null,null,null,null,null,null,null,null,null,null,null,null,null,null,null,null,null,null,-2414.7575841869439,1.7180494052860524]
[null,null,null,null,null,null,null,null,null,null,null,null,null,null,null,null,null,null,-20358.288552464663,2.6896733203643342]
[null,null,null,null,null,null,null,null,null,null,null,null,null,null,null,null,null,null,-16641.187279936952,2.5295692389284028]
[null,null,null,null,null,null,null,null,null,null,null,null,null,null,null,null,null,null,-37978.099750892863,1.9658526926600528]
[null,null,null,null,null,null,null,null,null,null,null,null,null,null,null,null,null,null,-41869.643444507507,2.3350731732556151]
[null,null,null,null,null,null,null,null,null,null,null,null,null,null,null,null,null,null,-12518.250985332294,2.441520703854744]
[null,null,null,null,null,null,null,null,null,null,null,null,null,null,null,null,null,null,-3134.6114370993764,2.152789018799969]
[null,null,null,null,null,null,null,null,null,null,null,null,null,null,null,null,null,null,-11575.346839728103,2.2013329191384825]
[null,null,null,null,null,null,null,null,null,null,null,null,null,null,null,null,null,null,-44124.636410443258,1.9330207662163827]
[null,null,null,null,null,null,null,null,null,null,null,null,null,null,null,null,null,null,-20864.62024407721,2.0974402510596453]
[null,null,null,null,null,null,null,null,null,null,null,null,null,null,null,null,null,null,-49721.087986460698,2.4771956568291178]
[null,null,null,null,null,null,null,null,null,null,null,null,null,null,null,null,null,null,-18916.080749519482,1.8753207152001696]
[null,null,null,null,null,null,null,null,null,null,null,null,null,null,null,null,null,null,-2811.06752714095,2.3696913669179422]
[null,null,null,null,null,null,null,null,null,null,null,null,null,null,null,null,null,null,-127192.00860862547,2.2009170814709216]
[null,null,null,null,null,null,null,null,null,null,null,null,null,null,null,null,null,null,-8467.4532009590876,2.294283679555063]
[null,null,null,null,null,null,null,null,null,null,null,null,null,null,null,null,null,null,-2679.6161083694315,1.7545553268034824]
[null,null,null,null,null,null,null,null,null,null,null,null,null,null,null,null,null,null,-3911.0551531081655,1.9951162001777849]
[null,null,null,null,null,null,null,null,null,null,null,null,null,null,null,null,null,null,-268.287262997168,1.9967072088449846]
[null,null,null,null,null,null,null,null,null,null,null,null,null,null,null,null,null,null,-28501.155788209406,2.5888553990559671]
[null,null,null,null,null,null,null,null,null,null,null,null,null,null,null,null,null,null,-18686.287973644277,1.6330888922029692]
[null,null,null,null,null,null,null,null,null,null,null,null,null,null,null,null,null,null,989.11617935821414,1.6335554893785842]
[null,null,null,null,null,null,null,null,null,null,null,null,null,null,null,null,null,null,96136.665136942174,2.1561191584913182]
[null,null,null,null,null,null,null,null,null,null,null,null,null,null,null,null,null,null,-14804.805433145528,2.4938636342198985]
[null,null,null,null,null,null,null,null,null,null,null,null,null,null,null,null,null,null,-60372.68432705805,2.668965432065332]
[null,null,null,null,null,null,null,null,null,null,null,null,null,null,null,null,null,null,-9159.2849238335548,2.200680170200644]
[null,null,null,null,null,null,null,null,null,null,null,null,null,null,null,null,null,null,298.43786141830424,2.3039592136844873]
[null,null,null,null,null,null,null,null,null,null,null,null,null,null,null,null,null,null,-5572.8044521164702,1.8142179855871303]
[null,null,null,null,null,null,null,null,null,null,null,null,null,null,null,null,null,null,-64234.95094379998,2.5009862640599398]
[null,null,null,null,null,null,null,null,null,null,null,null,null,null,null,null,null,null,-11985.682764426623,2.0490362793297781]
[null,null,null,null,null,null,null,null,null,null,null,null,null,null,null,null,null,null,-2190.4238527719644,2.2611262207935741]
[null,null,null,null,null,null,null,null,null,null,null,null,null,null,null,null,null,null,-52689.504856683576,2.3399718357012618]
[null,null,null,null,null,null,null,null,null,null,null,null,null,null,null,null,null,null,-5207.5000468554063,2.3082451631581913]
[null,null,null,null,null,null,null,null,null,null,null,null,null,null,null,null,null,null,-14614.78725562169,1.9192620223113979]
[null,null,null,null,null,null,null,null,null,null,null,null,null,null,null,null,null,null,-20103.7588510649,2.8566215585009314]
[null,null,null,null,null,null,null,null,null,null,null,null,null,null,null,null,null,null,-26774.255283511138,2.3541038243817889]
[null,null,null,null,null,null,null,null,null,null,null,null,null,null,null,null,null,null,-24251.09397247107,1.873356204498092]
[null,null,null,null,null,null,null,null,null,null,null,null,null,null,null,null,null,null,-27862.513601351991,2.6388261356392322]
[null,null,null,null,null,null,null,null,null,null,null,null,null,null,null,null,null,null,-86148.585309338552,2.3164029482416941]
[null,null,null,null,null,null,null,null,null,null,null,null,null,null,null,null,null,null,-39623.603801633304,2.3105513855519497]
[null,null,null,null,null,null,null,null,null,null,null,null,null,null,null,null,null,null,-31719.874788302594,1.925990859905327]
[null,null,null,null,null,null,null,null,null,null,null,null,null,null,null,null,null,null,-22924.166738883781,2.2321280348576948]
[null,null,null,null,null,null,null,null,null,null,null,null,null,null,null,null,null,null,-23715.331399236893,2.3166285240244799]
[null,null,null,null,null,null,null,null,null,null,null,null,null,null,null,null,null,null,-47101.842531232425,2.5443401664755623]
[null,null,null,null,null,null,null,null,null,null,null,null,null,null,null,null,null,null,7944.5433614231879,2.2933493638721729]
[null,null,null,null,null,null,null,null,null,null,null,null,null,null,null,null,null,null,-5883.1848214279016,2.0307401677829247]
[null,null,null,null,null,null,null,null,null,null,null,null,null,null,null,null,null,null,-26319.362840284462,2.5153122825937708]
[null,null,null,null,null,null,null,null,null,null,null,null,null,null,null,null,null,null,-11875.144306473856,1.8295794269930248]
[null,null,null,null,null,null,null,null,null,null,null,null,null,null,null,null,null,null,-44973.034361873084,2.5613595761995511]
[null,null,null,null,null,null,null,null,null,null,null,null,null,null,null,null,null,null,-44992.356597765014,1.944913865140665]
[null,null,null,null,null,null,null,null,null,null,null,null,null,null,null,null,null,null,-5108.1807773830515,1.3103962597164336]
[null,null,null,null,null,null,null,null,null,null,null,null,null,null,null,null,null,null,-8320.8618258543866,1.756918168827295]
[null,null,null,null,null,null,null,null,null,null,null,null,null,null,null,null,null,null,-24661.088326385216,1.832797946376139]
[null,null,null,null,null,null,null,null,null,null,null,null,null,null,null,null,null,null,4551.2867827569571,2.2728333978918749]
[null,null,null,null,null,null,null,null,null,null,null,null,null,null,null,null,null,null,-14115.331352936446,2.1690154206423737]
[null,null,null,null,null,null,null,null,null,null,null,null,null,null,null,null,null,null,-16512.308364349141,1.9683841027641797]
[null,null,null,null,null,null,null,null,null,null,null,null,null,null,null,null,null,null,372.85661974297545,1.6067422448155608]
[null,null,null,null,null,null,null,null,null,null,null,null,null,null,null,null,null,null,-31440.264927772732,2.5369237487736611]
[null,null,null,null,null,null,null,null,null,null,null,null,null,null,null,null,null,null,-19514.091897057777,2.2566889334795612]
[null,null,null,null,null,null,null,null,null,null,null,null,null,null,null,null,null,null,-12970.231120266864,1.8255856006201121]
[null,null,null,null,null,null,null,null,null,null,null,null,null,null,null,null,null,null,-35695.051737629925,1.8208116175051634]
[null,null,null,null,null,null,null,null,null,null,null,null,null,null,null,null,null,null,4233.2689340056313,1.8463850806528646]
[null,null,null,null,null,null,null,null,null,null,null,null,null,null,null,null,null,null,3934.1603735420649,1.9516801903095291]
[null,null,null,null,null,null,null,null,null,null,null,null,null,null,null,null,null,null,-14942.924027379406,2.224729451048999]
[null,null,null,null,null,null,null,null,null,null,null,null,null,null,null,null,null,null,-50785.572778749854,2.5695194298982904]
[null,null,null,null,null,null,null,null,null,null,null,null,null,null,null,null,null,null,-6007.8525721373589,1.6562159473954399]
[null,null,null,null,null,null,null,null,null,null,null,null,null,null,null,null,null,null,-3176.409665629737,1.7093679987585326]
[null,null,null,null,null,null,null,null,null,null,null,null,null,null,null,null,null,null,-15613.037844314775,2.1350331767619219]
[null,null,null,null,null,null,null,null,null,null,null,null,null,null,null,null,null,null,-14672.276792891658,1.5671579393324766]
[null,null,null,null,null,null,null,null,null,null,null,null,null,null,null,null,null,null,-2070.7202934602865,1.5311293728111695]
[null,null,null,null,null,null,null,null,null,null,null,null,null,null,null,null,null,null,-56875.60776464871,2.5086371814465216]
[null,null,null,null,null,null,null,null,null,null,null,null,null,null,null,null,null,null,-5356.2980769552087,2.9709075887840193]
[null,null,null,null,null,null,null,null,null,null,null,null,null,null,null,null,null,null,-21615.042019606823,2.0747407121812351]
[null,null,null,null,null,null,null,null,null,null,null,null,null,null,null,null,null,null,-16354.288408567583,1.3708692230929374]
[null,null,null,null,null,null,null,null,null,null,null,null,null,null,null,null,null,null,-61807.508414024996,1.877618483286247]
[null,null,null,null,null,null,null,null,null,null,null,null,null,null,null,null,null,null,-53114.498092385184,1.9297507049620037]
[null,null,null,null,null,null,null,null,null,null,null,null,null,null,null,null,null,null,-39456.928704583275,2.505643300073749]
[null,null,null,null,null,null,null,null,null,null,null,null,null,null,null,null,null,null,-4379.5382631265675,2.8856307264016245]
[null,null,null,null,null,null,null,null,null,null,null,null,null,null,null,null,null,null,-17164.856503018098,2.3141342059140251]
[null,null,null,null,null,null,null,null,null,null,null,null,null,null,null,null,null,null,-34911.744288234513,1.9446621862989857]
[null,null,null,null,null,null,null,null,null,null,null,null,null,null,null,null,null,null,-33279.4334308178,2.5132166740953426]
[null,null,null,null,null,null,null,null,null,null,null,null,null,null,null,null,null,null,-29066.243587495235,2.1580826083311373]
[null,null,null,null,null,null,null,null,null,null,null,null,null,null,null,null,null,null,-68357.100884748361,2.3979968664986471]
[null,null,null,null,null,null,null,null,null,null,null,null,null,null,null,null,null,null,-21741.955183050228,2.1014752085181208]
[null,null,null,null,null,null,null,null,null,null,null,null,null,null,null,null,null,null,3894.0351604848256,2.1997261224474745]
[null,null,null,null,null,null,null,null,null,null,null,null,null,null,null,null,null,null,-26993.55725609306,3.1187064441420063]
[null,null,null,null,null,null,null,null,null,null,null,null,null,null,null,null,null,null,-76632.170093277644,2.3099768270383727]
[null,null,null,null,null,null,null,null,null,null,null,null,null,null,null,null,null,null,-14363.734616872673,2.0554058623170519]
[null,null,null,null,null,null,null,null,null,null,null,null,null,null,null,null,null,null,-67843.549949346896,2.4193811967989394]
[null,null,null,null,null,null,null,null,null,null,null,null,null,null,null,null,null,null,-14658.420070318218,2.3934519554273379]
[null,null,null,null,null,null,null,null,null,null,null,null,null,null,null,null,null,null,-43507.621516288717,2.3138849323380413]
[null,null,null,null,null,null,null,null,null,null,null,null,null,null,null,null,null,null,-2413.5802497950172,1.8709969893778018]
[null,null,null,null,null,null,null,null,null,null,null,null,null,null,null,null,null,null,-41752.906750792274,1.9975592817295462]
[null,null,null,null,null,null,null,null,null,null,null,null,null,null,null,null,null,null,-42196.107066765282,2.10133243703407]
[null,null,null,null,null,null,null,null,null,null,null,null,null,null,null,null,null,null,-20185.134504912763,2.5239631783658569]
[null,null,null,null,null,null,null,null,null,null,null,null,null,null,null,null,null,null,-14537.614881026224,1.4972023918866304]
[null,null,null,null,null,null,null,null,null,null,null,null,null,null,null,null,null,null,-5613.0580089639407,1.7974103095096798]
[null,null,null,null,null,null,null,null,null,null,null,null,null,null,null,null,null,null,-15058.289953249932,1.5967122804527851]
[null,null,null,null,null,null,null,null,null,null,null,null,null,null,null,null,null,null,-23114.73377228326,1.6328839149236996]
[null,null,null,null,null,null,null,null,null,null,null,null,null,null,null,null,null,null,-7546.8030854245026,2.1191454704845167]
[null,null,null,null,null,null,null,null,null,null,null,null,null,null,null,null,null,null,-36777.055566497613,2.0227011465651517]
[null,null,null,null,null,null,null,null,null,null,null,null,null,null,null,null,null,null,-13095.54103213314,2.0195020879978882]
[null,null,null,null,null,null,null,null,null,null,null,null,null,null,null,null,null,null,4393.353586889596,2.3714111577561581]
[null,null,null,null,null,null,null,null,null,null,null,null,null,null,null,null,null,null,-4401.1704593067952,1.9679162544157669]
[null,null,null,null,null,null,null,null,null,null,null,null,null,null,null,null,null,null,-31336.386496467574,1.8127283174281663]
[null,null,null,null,null,null,null,null,null,null,null,null,null,null,null,null,null,null,-3345.124151197826,2.0789048379705091]
[null,null,null,null,null,null,null,null,null,null,null,null,null,null,null,null,null,null,-18176.934593282025,2.3540155002741203]
[null,null,null,null,null,null,null,null,null,null,null,null,null,null,null,null,null,null,-1439.6619361843877,2.2469648593443239]
[null,null,null,null,null,null,null,null,null,null,null,null,null,null,null,null,null,null,-21600.949158084128,1.5479230391447962]
[null,null,null,null,null,null,null,null,null,null,null,null,null,null,null,null,null,null,-29996.695502081384,1.6891325798489589]
[null,null,null,null,null,null,null,null,null,null,null,null,null,null,null,null,null,null,-26152.792153169692,1.6176773100913571]
[null,null,null,null,null,null,null,null,null,null,null,null,null,null,null,null,null,null,-22942.849393945093,1.7484953475825473]
[null,null,null,null,null,null,null,null,null,null,null,null,null,null,null,null,null,null,-10253.695894043467,1.7031373129397878]
[null,null,null,null,null,null,null,null,null,null,null,null,null,null,null,null,null,null,-25893.587585296973,1.4256903102757805]
[null,null,null,null,null,null,null,null,null,null,null,null,null,null,null,null,null,null,-8124.3253812301191,1.7021720715332846]
[null,null,null,null,null,null,null,null,null,null,null,null,null,null,null,null,null,null,-8196.677403591515,2.21644755448686]
[null,null,null,null,null,null,null,null,null,null,null,null,null,null,null,null,null,null,-13447.704752886584,2.7854113240222955]
[null,null,null,null,null,null,null,null,null,null,null,null,null,null,null,null,null,null,-82296.903081281809,2.6573557256509241]
[null,null,null,null,null,null,null,null,null,null,null,null,null,null,null,null,null,null,-2878.8696346527358,2.2099874309839898]
[null,null,null,null,null,null,null,null,null,null,null,null,null,null,null,null,null,null,-13700.058584930575,2.8770493941728779]
[null,null,null,null,null,null,null,null,null,null,null,null,null,null,null,null,null,null,-14940.720578145367,1.9865688393944856]
[null,null,null,null,null,null,null,null,null,null,null,null,null,null,null,null,null,null,56467.586141653752,1.5856554059498538]
[null,null,null,null,null,null,null,null,null,null,null,null,null,null,null,null,null,null,-20330.111717391119,2.1314312721625792]
[null,null,null,null,null,null,null,null,null,null,null,null,null,null,null,null,null,null,-7204.4998382490885,1.7235517919301144]
[null,null,null,null,null,null,null,null,null,null,null,null,null,null,null,null,null,null,-4363.7451940373066,2.0608425186073105]
[null,null,null,null,null,null,null,null,null,null,null,null,null,null,null,null,null,null,-207.78539742003886,1.8997357987646084]
[null,null,null,null,null,null,null,null,null,null,null,null,null,null,null,null,null,null,-39028.306696754182,2.5536118513210866]
[null,null,null,null,null,null,null,null,null,null,null,null,null,null,null,null,null,null,1233.6821649912745,1.9916393955706013]
[null,null,null,null,null,null,null,null,null,null,null,null,null,null,null,null,null,null,-2411.8839474662054,1.9310669731849255]
[null,null,null,null,null,null,null,null,null,null,null,null,null,null,null,null,null,null,-14664.247911648243,1.6763759874708266]
[null,null,null,null,null,null,null,null,null,null,null,null,null,null,null,null,null,null,-16885.202816354926,2.145419521000671]
[null,null,null,null,null,null,null,null,null,null,null,null,null,null,null,null,null,null,-62942.282064017752,2.3214707587270786]
[null,null,null,null,null,null,null,null,null,null,null,null,null,null,null,null,null,null,-34972.946100700872,2.1637084564549522]
[null,null,null,null,null,null,null,null,null,null,null,null,null,null,null,null,null,null,-49556.464834019964,2.4868213504728609]
[null,null,null,null,null,null,null,null,null,null,null,null,null,null,null,null,null,null,-2929.8826164432248,2.0972773668034996]
[null,null,null,null,null,null,null,null,null,null,null,null,null,null,null,null,null,null,-36391.659761908319,1.8432159245960857]
[null,null,null,null,null,null,null,null,null,null,null,null,null,null,null,null,null,null,-11488.554131610239,2.4708888831901414]
[null,null,null,null,null,null,null,null,null,null,null,null,null,null,null,null,null,null,-56556.722002229726,2.4243526791981211]
[null,null,null,null,null,null,null,null,null,null,null,null,null,null,null,null,null,null,3251.627188651124,1.5423418915691038]
[null,null,null,null,null,null,null,null,null,null,null,null,null,null,null,null,null,null,-54033.122768339934,2.0132886734362834]
[null,null,null,null,null,null,null,null,null,null,null,null,null,null,null,null,null,null,-4395.1033979818094,2.5327498537537139]
[null,null,null,null,null,null,null,null,null,null,null,null,null,null,null,null,null,null,-17024.468719098018,2.3167292588070727]
[null,null,null,null,null,null,null,null,null,null,null,null,null,null,null,null,null,null,-8215.2626065209624,2.1913279854497341]
[null,null,null,null,null,null,null,null,null,null,null,null,null,null,null,null,null,null,-22755.912093287043,2.1006425401119859]
[null,null,null,null,null,null,null,null,null,null,null,null,null,null,null,null,null,null,-3887.11801463144,1.5982375162919529]
[null,null,null,null,null,null,null,null,null,null,null,null,null,null,null,null,null,null,-15890.887913224698,2.2752192018764053]
[null,null,null,null,null,null,null,null,null,null,null,null,null,null,null,null,null,null,-29269.096584356361,2.2854238954775958]
[null,null,null,null,null,null,null,null,null,null,null,null,null,null,null,null,null,null,-9193.2191478869354,1.6678277883028989]
[null,null,null,null,null,null,null,null,null,null,null,null,null,null,null,null,null,null,-28854.907145104597,2.4956598982314424]
[null,null,null,null,null,null,null,null,null,null,null,null,null,null,null,null,null,null,-20097.010925469556,1.9107347729029711]
[null,null,null,null,null,null,null,null,null,null,null,null,null,null,null,null,null,null,-9248.2501509965441,1.7051245085234799]
[null,null,null,null,null,null,null,null,null,null,null,null,null,null,null,null,null,null,-8436.5704094060566,2.2383890140147011]
[null,null,null,null,null,null,null,null,null,null,null,null,null,null,null,null,null,null,-18409.60766692723,1.6869183263502001]
[null,null,null,null,null,null,null,null,null,null,null,null,null,null,null,null,null,null,-13733.778790351265,1.5203065249637451]
[null,null,null,null,null,null,null,null,null,null,null,null,null,null,null,null,null,null,-48397.222111316602,1.8793401915141534]
[null,null,null,null,null,null,null,null,null,null,null,null,null,null,null,null,null,null,-32465.149829430226,2.0279921751448589]
[null,null,null,null,null,null,null,null,null,null,null,null,null,null,null,null,null,null,-28091.82123415461,2.4682784166902305]
[null,null,null,null,null,null,null,null,null,null,null,null,null,null,null,null,null,null,-25378.687703597338,2.2418760169713932]
[null,null,null,null,null,null,null,null,null,null,null,null,null,null,null,null,null,null,-15466.607387806311,2.0767418404977356]
[null,null,null,null,null,null,null,null,null,null,null,null,null,null,null,null,null,null,-32543.415226257144,1.9472822824527216]
[null,null,null,null,null,null,null,null,null,null,null,null,null,null,null,null,null,null,-48880.316616886703,2.4394778398176893]
[null,null,null,null,null,null,null,null,null,null,null,null,null,null,null,null,null,null,-25084.912933943735,2.326646368062856]
[null,null,null,null,null,null,null,null,null,null,null,null,null,null,null,null,null,null,-35457.639244188162,1.9713643715710476]
[null,null,null,null,null,null,null,null,null,null,null,null,null,null,null,null,null,null,-34657.505839090823,2.2016762664818219]
[null,null,null,null,null,null,null,null,null,null,null,null,null,null,null,null,null,null,-31728.365092093954,2.2303654808330546]
[null,null,null,null,null,null,null,null,null,null,null,null,null,null,null,null,null,null,-33987.084461398452,1.3308686677398383]
[null,null,null,null,null,null,null,null,null,null,null,null,null,null,null,null,null,null,-10005.685240193616,2.3451284411031108]
[null,null,null,null,null,null,null,null,null,null,null,null,null,null,null,null,null,null,-4109.9173875355973,1.953167462482079]
[null,null,null,null,null,null,null,null,null,null,null,null,null,null,null,null,null,null,-25717.913570804682,2.3031202563137101]
[null,null,null,null,null,null,null,null,null,null,null,null,null,null,null,null,null,null,-12526.05873040243,1.9782572157086329]
[null,null,null,null,null,null,null,null,null,null,null,null,null,null,null,null,null,null,-466.08537961464208,1.8555876754822931]
[null,null,null,null,null,null,null,null,null,null,null,null,null,null,null,null,null,null,-19668.373956899602,1.9276095943244358]
[null,null,null,null,null,null,null,null,null,null,null,null,null,null,null,null,null,null,-159.3758706530125,1.6089330956102157]
[null,null,null,null,null,null,null,null,null,null,null,null,null,null,null,null,null,null,-23678.895468375078,2.0660259802516152]
[null,null,null,null,null,null,null,null,null,null,null,null,null,null,null,null,null,null,180.856389548062,2.451341199385165]
[null,null,null,null,null,null,null,null,null,null,null,null,null,null,null,null,null,null,-14364.100476724903,1.675473907106142]
[null,null,null,null,null,null,null,null,null,null,null,null,null,null,null,null,null,null,-10328.910780539867,1.8603118628032349]
[null,null,null,null,null,null,null,null,null,null,null,null,null,null,null,null,null,null,-19833.791034147303,1.8532958842043636]
[null,null,null,null,null,null,null,null,null,null,null,null,null,null,null,null,null,null,-30083.834983693283,1.7736692411092254]
[null,null,null,null,null,null,null,null,null,null,null,null,null,null,null,null,null,null,-6049.7231073628682,2.2117441967646156]
[null,null,null,null,null,null,null,null,null,null,null,null,null,null,null,null,null,null,-14784.300693467259,1.9862350528685981]
[null,null,null,null,null,null,null,null,null,null,null,null,null,null,null,null,null,null,-1359.9345105481407,2.1059420507016484]
[null,null,null,null,null,null,null,null,null,null,null,null,null,null,null,null,null,null,-24745.427957121799,2.4017597415777869]
[null,null,null,null,null,null,null,null,null,null,null,null,null,null,null,null,null,null,-10483.296351082045,2.1170125522134091]
[null,null,null,null,null,null,null,null,null,null,null,null,null,null,null,null,null,null,-43004.092095944623,1.8993599891081678]
[null,null,null,null,null,null,null,null,null,null,null,null,null,null,null,null,null,null,-13847.762451382849,2.0499235484564169]
[null,null,null,null,null,null,null,null,null,null,null,null,null,null,null,null,null,null,-22137.629824913303,2.6069576896906939]
[null,null,null,null,null,null,null,null,null,null,null,null,null,null,null,null,null,null,-31898.618344987019,3.0143393467940198]
[null,null,null,null,null,null,null,null,null,null,null,null,null,null,null,null,null,null,-30666.445160214622,1.9208120655238776]
[null,null,null,null,null,null,null,null,null,null,null,null,null,null,null,null,null,null,-36854.464537833126,1.4353950107143318]
[null,null,null,null,null,null,null,null,null,null,null,null,null,null,null,null,null,null,-3534.663390640424,2.3971034175574588]
[null,null,null,null,null,null,null,null,null,null,null,null,null,null,null,null,null,null,-31420.38096335264,1.7936787984574543]
[null,null,null,null,null,null,null,null,null,null,null,null,null,null,null,null,null,null,-36887.728055238375,2.2364695822662339]
[null,null,null,null,null,null,null,null,null,null,null,null,null,null,null,null,null,null,-10582.855613148437,2.9710471932768021]
[null,null,null,null,null,null,null,null,null,null,null,null,null,null,null,null,null,null,6797.6148039261461,2.2040947967471674]
[null,null,null,null,null,null,null,null,null,null,null,null,null,null,null,null,null,null,-6511.5407605292639,2.5654329119708459]
[null,null,null,null,null,null,null,null,null,null,null,null,null,null,null,null,null,null,-31039.031470815899,1.6470791729357654]
[null,null,null,null,null,null,null,null,null,null,null,null,null,null,null,null,null,null,-1410.904422035499,2.1193556924362325]
[null,null,null,null,null,null,null,null,null,null,null,null,null,null,null,null,null,null,-2309.0952606072424,1.9397718526903844]
[null,null,null,null,null,null,null,null,null,null,null,null,null,null,null,null,null,null,-31199.695365895255,2.2646945234788793]
[null,null,null,null,null,null,null,null,null,null,null,null,null,null,null,null,null,null,-23169.022312669287,2.1330121493382803]
[null,null,null,null,null,null,null,null,null,null,null,null,null,null,null,null,null,null,-75395.75585002976,2.6933796938935854]
[null,null,null,null,null,null,null,null,null,null,null,null,null,null,null,null,null,null,7465.9261321820159,2.0156880286618208]
[null,null,null,null,null,null,null,null,null,null,null,null,null,null,null,null,null,null,-6163.0363806142705,2.0263208597729676]
[null,null,null,null,null,null,null,null,null,null,null,null,null,null,null,null,null,null,-43809.354240112938,1.6263492980580869]
[null,null,null,null,null,null,null,null,null,null,null,null,null,null,null,null,null,null,-12878.841421110927,2.5574973574937405]
[null,null,null,null,null,null,null,null,null,null,null,null,null,null,null,null,null,null,-23347.699415257644,2.3873788898515067]
[null,null,null,null,null,null,null,null,null,null,null,null,null,null,null,null,null,null,-3329.0655545155678,1.0704352849176964]
[null,null,null,null,null,null,null,null,null,null,null,null,null,null,null,null,null,null,-21921.136751277252,2.2931728516160388]
[null,null,null,null,null,null,null,null,null,null,null,null,null,null,null,null,null,null,-9516.9656413306839,2.5302063326623325]
[null,null,null,null,null,null,null,null,null,null,null,null,null,null,null,null,null,null,-20674.321539164514,1.7799739210606407]
[null,null,null,null,null,null,null,null,null,null,null,null,null,null,null,null,null,null,-22089.418001934751,2.2500182962129696]
[null,null,null,null,null,null,null,null,null,null,null,null,null,null,null,null,null,null,-27847.438667712464,2.5632315593871251]
[null,null,null,null,null,null,null,null,null,null,null,null,null,null,null,null,null,null,-2823.876618959428,2.456782889988935]
[null,null,null,null,null,null,null,null,null,null,null,null,null,null,null,null,null,null,-46443.75393774781,2.2771954464574811]
[null,null,null,null,null,null,null,null,null,null,null,null,null,null,null,null,null,null,-4625.4803695538358,2.5008936999153946]
[null,null,null,null,null,null,null,null,null,null,null,null,null,null,null,null,null,null,-33713.30695901905,2.6165320776935101]
[null,null,null,null,null,null,null,null,null,null,null,null,null,null,null,null,null,null,-21815.244614801682,2.44896031319713]
[null,null,null,null,null,null,null,null,null,null,null,null,null,null,null,null,null,null,-16358.352288933173,2.1235965127786591]
[null,null,null,null,null,null,null,null,null,null,null,null,null,null,null,null,null,null,-34677.266840604148,2.2043876328087659]
[null,null,null,null,null,null,null,null,null,null,null,null,null,null,null,null,null,null,-33001.673572737454,1.827401261447275]
[null,null,null,null,null,null,null,null,null,null,null,null,null,null,null,null,null,null,-9154.6355465712295,1.7417912690055131]
[null,null,null,null,null,null,null,null,null,null,null,null,null,null,null,null,null,null,-21230.536523914372,1.6490483984424595]
[null,null,null,null,null,null,null,null,null,null,null,null,null,null,null,null,null,null,-37008.827868465887,2.3310595474841334]
[null,null,null,null,null,null,null,null,null,null,null,null,null,null,null,null,null,null,-16699.648818891477,1.9142356368143822]
[null,null,null,null,null,null,null,null,null,null,null,null,null,null,null,null,null,null,-36618.431215880002,2.2938472077108609]
[null,null,null,null,null,null,null,null,null,null,null,null,null,null,null,null,null,null,11401.636002275525,2.6647895711675869]
[null,null,null,null,null,null,null,null,null,null,null,null,null,null,null,null,null,null,-10698.734506212364,2.1813602414431754]
[null,null,null,null,null,null,null,null,null,null,null,null,null,null,null,null,null,null,-12223.828773522237,1.9628714590633005]
[null,null,null,null,null,null,null,null,null,null,null,null,null,null,null,null,null,null,-4524.504843814062,1.9137876529336011]
[null,null,null,null,null,null,null,null,null,null,null,null,null,null,null,null,null,null,7361.5475256593636,2.6250230392062019]
[null,null,null,null,null,null,null,null,null,null,null,null,null,null,null,null,null,null,-41164.265776790344,2.2125865712210047]
[null,null,null,null,null,null,null,null,null,null,null,null,null,null,null,null,null,null,-4641.23357176014,1.6425069882025136]
[null,null,null,null,null,null,null,null,null,null,null,null,null,null,null,null,null,null,-32129.325529412388,2.1459690927855752]
[null,null,null,null,null,null,null,null,null,null,null,null,null,null,null,null,null,null,-5664.0313869111415,1.8916607478904028]
[null,null,null,null,null,null,null,null,null,null,null,null,null,null,null,null,null,null,-16245.89421838522,2.4396258479529442]
[null,null,null,null,null,null,null,null,null,null,null,null,null,null,null,null,null,null,-16659.864990792434,1.5549804384208841]
[null,null,null,null,null,null,null,null,null,null,null,null,null,null,null,null,null,null,-5990.7414035364091,2.4093369959826814]
[null,null,null,null,null,null,null,null,null,null,null,null,null,null,null,null,null,null,-30400.355798463861,2.193668385319818]
[null,null,null,null,null,null,null,null,null,null,null,null,null,null,null,null,null,null,-49293.57670828695,2.833723238909883]
[null,null,null,null,null,null,null,null,null,null,null,null,null,null,null,null,null,null,-15903.537700041677,2.173438740401012]
[null,null,null,null,null,null,null,null,null,null,null,null,null,null,null,null,null,null,-14807.433852837679,2.504450353165522]
[null,null,null,null,null,null,null,null,null,null,null,null,null,null,null,null,null,null,-46591.493182414735,1.6024791162325633]
[null,null,null,null,null,null,null,null,null,null,null,null,null,null,null,null,null,null,-31276.825152599595,2.276806413703957]
[null,null,null,null,null,null,null,null,null,null,null,null,null,null,null,null,null,null,4965.4333861921259,2.0521122236188831]
[null,null,null,null,null,null,null,null,null,null,null,null,null,null,null,null,null,null,-1087.773263322204,1.7654911235968171]
[null,null,null,null,null,null,null,null,null,null,null,null,null,null,null,null,null,null,-60237.506406131506,2.6070369903564092]
[null,null,null,null,null,null,null,null,null,null,null,null,null,null,null,null,null,null,-55085.994225956121,1.3869571593667507]
[null,null,null,null,null,null,null,null,null,null,null,null,null,null,null,null,null,null,-16143.539884646183,2.1915173120718121]
[null,null,null,null,null,null,null,null,null,null,null,null,null,null,null,null,null,null,-32720.68066024984,1.9412697798012273]
[null,null,null,null,null,null,null,null,null,null,null,null,null,null,null,null,null,null,-19057.740390813757,2.3260108230867163]
[null,null,null,null,null,null,null,null,null,null,null,null,null,null,null,null,null,null,-22538.491448820532,1.7855026002218812]
[null,null,null,null,null,null,null,null,null,null,null,null,null,null,null,null,null,null,-5662.546943370151,2.1116071246927111]
[null,null,null,null,null,null,null,null,null,null,null,null,null,null,null,null,null,null,-23386.832420638988,2.7111084595900747]
[null,null,null,null,null,null,null,null,null,null,null,null,null,null,null,null,null,null,-5842.3395170741242,2.1285334775991367]
[null,null,null,null,null,null,null,null,null,null,null,null,null,null,null,null,null,null,-8426.0164962497347,2.797548407644344]
[null,null,null,null,null,null,null,null,null,null,null,null,null,null,null,null,null,null,-2506.9899948072125,2.2175525283202338]
[null,null,null,null,null,null,null,null,null,null,null,null,null,null,null,null,null,null,-31393.553386510917,1.4986705405745111]
[null,null,null,null,null,null,null,null,null,null,null,null,null,null,null,null,null,null,-81986.043176289342,2.386504107377232]
[null,null,null,null,null,null,null,null,null,null,null,null,null,null,null,null,null,null,-18985.794152922444,2.1095705998866303]
[null,null,null,null,null,null,null,null,null,null,null,null,null,null,null,null,null,null,-7919.7401485556966,1.5230307607061593]
[null,null,null,null,null,null,null,null,null,null,null,null,null,null,null,null,null,null,6452.2815531764572,1.6189474113262192]
[null,null,null,null,null,null,null,null,null,null,null,null,null,null,null,null,null,null,-4608.3129588405536,1.6904843996332493]
[null,null,null,null,null,null,null,null,null,null,null,null,null,null,null,null,null,null,-22074.027031525089,2.3070324624821463]
[null,null,null,null,null,null,null,null,null,null,null,null,null,null,null,null,null,null,-11102.857927325073,1.852127917312834]
[null,null,null,null,null,null,null,null,null,null,null,null,null,null,null,null,null,null,-12620.837627941648,1.895355720956903]
[null,null,null,null,null,null,null,null,null,null,null,null,null,null,null,null,null,null,-130449.00281014503,1.8525128170813145]
[null,null,null,null,null,null,null,null,null,null,null,null,null,null,null,null,null,null,35558.40971451634,1.8010927470496889]
[null,null,null,null,null,null,null,null,null,null,null,null,null,null,null,null,null,null,-29125.281723276988,1.6770409949350773]
[null,null,null,null,null,null,null,null,null,null,null,null,null,null,null,null,null,null,-11142.427338789334,2.1954551506509108]
[null,null,null,null,null,null,null,null,null,null,null,null,null,null,null,null,null,null,-19257.598709791222,2.472633032382701]
[null,null,null,null,null,null,null,null,null,null,null,null,null,null,null,null,null,null,-337.75685322857316,2.3553405055299765]
[null,null,null,null,null,null,null,null,null,null,null,null,null,null,null,null,null,null,-16344.360941537016,2.7210519879737167]
[null,null,null,null,null,null,null,null,null,null,null,null,null,null,null,null,null,null,-57340.93741181212,1.9218089156922216]
[null,null,null,null,null,null,null,null,null,null,null,null,null,null,null,null,null,null,-5119.5050049698621,2.3768756404705518]
[null,null,null,null,null,null,null,null,null,null,null,null,null,null,null,null,null,null,-31917.612626712835,1.750881029971993]
[null,null,null,null,null,null,null,null,null,null,null,null,null,null,null,null,null,null,-10952.449715707276,1.96237974367259]
[null,null,null,null,null,null,null,null,null,null,null,null,null,null,null,null,null,null,1119.0841546519223,2.4304142042670467]
[null,null,null,null,null,null,null,null,null,null,null,null,null,null,null,null,null,null,-20916.45862563116,2.2876778064021241]
[null,null,null,null,null,null,null,null,null,null,null,null,null,null,null,null,null,null,-32991.011603640116,2.245178889221735]
[null,null,null,null,null,null,null,null,null,null,null,null,null,null,null,null,null,null,-15098.66768864193,1.7691045055210473]
[null,null,null,null,null,null,null,null,null,null,null,null,null,null,null,null,null,null,-20683.430955935561,2.0152674528362104]
[null,null,null,null,null,null,null,null,null,null,null,null,null,null,null,null,null,null,-7245.2044369678479,2.0142226809793411]
[null,null,null,null,null,null,null,null,null,null,null,null,null,null,null,null,null,null,-104070.16123254402,2.1773158495436666]
[null,null,null,null,null,null,null,null,null,null,null,null,null,null,null,null,null,null,-23914.007933691024,2.3547986267086101]
[null,null,null,null,null,null,null,null,null,null,null,null,null,null,null,null,null,null,-45081.738881680751,2.1161450623134899]
[null,null,null,null,null,null,null,null,null,null,null,null,null,null,null,null,null,null,-2571.4248909078851,2.0281346301730463]
[null,null,null,null,null,null,null,null,null,null,null,null,null,null,null,null,null,null,-16779.63162517007,2.0164628596559799]
[null,null,null,null,null,null,null,null,null,null,null,null,null,null,null,null,null,null,-65570.871323324769,2.2564004523048711]
[null,null,null,null,null,null,null,null,null,null,null,null,null,null,null,null,null,null,-21738.547816491315,2.248343752659657]
[null,null,null,null,null,null,null,null,null,null,null,null,null,null,null,null,null,null,-72733.677951831618,2.3354906662481678]
[null,null,null,null,null,null,null,null,null,null,null,null,null,null,null,null,null,null,-13215.320908507056,1.8811443880770913]
[null,null,null,null,null,null,null,null,null,null,null,null,null,null,null,null,null,null,3405.9687959877629,2.3189936245400484]
[null,null,null,null,null,null,null,null,null,null,null,null,null,null,null,null,null,null,-21307.364789484658,2.1141555790759292]
[null,null,null,null,null,null,null,null,null,null,null,null,null,null,null,null,null,null,-38561.65010344953,1.8985112417413532]
[null,null,null,null,null,null,null,null,null,null,null,null,null,null,null,null,null,null,-22055.221166118507,2.5823682643934864]
[null,null,null,null,null,null,null,null,null,null,null,null,null,null,null,null,null,null,-5896.317948125321,2.6078740805118201]
[null,null,null,null,null,null,null,null,null,null,null,null,null,null,null,null,null,null,-29459.85961858253,2.6134188855251819]
[null,null,null,null,null,null,null,null,null,null,null,null,null,null,null,null,null,null,-9514.0359747181756,2.9560819428611191]
[null,null,null,null,null,null,null,null,null,null,null,null,null,null,null,null,null,null,-24227.358011110322,2.0559474838784273]
[null,null,null,null,null,null,null,null,null,null,null,null,null,null,null,null,null,null,-30400.024928471343,2.2070846101501775]
[null,null,null,null,null,null,null,null,null,null,null,null,null,null,null,null,null,null,-14757.135826198966,2.7044557000629914]
[null,null,null,null,null,null,null,null,null,null,null,null,null,null,null,null,null,null,-49811.384708508311,2.3314251822482102]
[null,null,null,null,null,null,null,null,null,null,null,null,null,null,null,null,null,null,-46695.663906679329,2.2714074417391967]
[null,null,null,null,null,null,null,null,null,null,null,null,null,null,null,null,null,null,-12652.483596425147,2.3803699331369792]
[null,null,null,null,null,null,null,null,null,null,null,null,null,null,null,null,null,null,-23398.283725478992,2.5168270134901483]
[null,null,null,null,null,null,null,null,null,null,null,null,null,null,null,null,null,null,-34245.019887003815,1.888987865603355]
[null,null,null,null,null,null,null,null,null,null,null,null,null,null,null,null,null,null,-36401.448114362873,2.823747219411529]
[null,null,null,null,null,null,null,null,null,null,null,null,null,null,null,null,null,null,-6679.4775662854881,2.0117848234957543]
[null,null,null,null,null,null,null,null,null,null,null,null,null,null,null,null,null,null,-12402.234406625852,1.7224313149836283]
[null,null,null,null,null,null,null,null,null,null,null,null,null,null,null,null,null,null,-22232.091438491982,1.8075504371396875]
[null,null,null,null,null,null,null,null,null,null,null,null,null,null,null,null,null,null,-44669.781804303973,2.084795222657736]
[null,null,null,null,null,null,null,null,null,null,null,null,null,null,null,null,null,null,-43462.314467898759,2.2964106816644194]
[null,null,null,null,null,null,null,null,null,null,null,null,null,null,null,null,null,null,-13158.229188957957,2.2424724388323405]
[null,null,null,null,null,null,null,null,null,null,null,null,null,null,null,null,null,null,-18922.046999184364,2.3571899219086507]
[null,null,null,null,null,null,null,null,null,null,null,null,null,null,null,null,null,null,-8184.3942883163509,1.602765358694608]
[null,null,null,null,null,null,null,null,null,null,null,null,null,null,null,null,null,null,-48389.7327887266,2.8044333487172719]
[null,null,null,null,null,null,null,null,null,null,null,null,null,null,null,null,null,null,-10210.207312373859,1.7775109115641663]
[null,null,null,null,null,null,null,null,null,null,null,null,null,null,null,null,null,null,-5276.0213190230716,1.6948656600660006]
[null,null,null,null,null,null,null,null,null,null,null,null,null,null,null,null,null,null,-11630.715167703194,1.906511268273873]
[null,null,null,null,null,null,null,null,null,null,null,null,null,null,null,null,null,null,-61197.238325842249,2.0753745065807467]
[null,null,null,null,null,null,null,null,null,null,null,null,null,null,null,null,null,null,-5653.1451814665161,2.7166295548042214]
[null,null,null,null,null,null,null,null,null,null,null,null,null,null,null,null,null,null,-12564.976729831425,2.120365316104623]
[null,null,null,null,null,null,null,null,null,null,null,null,null,null,null,null,null,null,-4625.7592581922363,2.0189244049932045]
[null,null,null,null,null,null,null,null,null,null,null,null,null,null,null,null,null,null,-41170.635766040068,1.7919686722748218]
[null,null,null,null,null,null,null,null,null,null,null,null,null,null,null,null,null,null,-5695.6562851803101,1.9171375278464797]
[null,null,null,null,null,null,null,null,null,null,null,null,null,null,null,null,null,null,-22872.373074975316,1.92310153675799]
[null,null,null,null,null,null,null,null,null,null,null,null,null,null,null,null,null,null,-31369.227554662983,1.6999170868511593]
[null,null,null,null,null,null,null,null,null,null,null,null,null,null,null,null,null,null,-72052.639962979374,2.2846271137055703]
[null,null,null,null,null,null,null,null,null,null,null,null,null,null,null,null,null,null,-70017.972054357597,1.8127193103112171]
[null,null,null,null,null,null,null,null,null,null,null,null,null,null,null,null,null,null,-12741.288794356849,2.4721169912026539]
[null,null,null,null,null,null,null,null,null,null,null,null,null,null,null,null,null,null,-10342.424529863569,2.1799867620085394]
[null,null,null,null,null,null,null,null,null,null,null,null,null,null,null,null,null,null,-19455.935002274724,1.7491353817502029]
[null,null,null,null,null,null,null,null,null,null,null,null,null,null,null,null,null,null,-17132.893334405017,2.5149215971491898]
[null,null,null,null,null,null,null,null,null,null,null,null,null,null,null,null,null,null,10506.124994496775,2.443219020728308]
[null,null,null,null,null,null,null,null,null,null,null,null,null,null,null,null,null,null,-15544.222881541373,2.4849455473315323]
[null,null,null,null,null,null,null,null,null,null,null,null,null,null,null,null,null,null,-8191.1512129429429,2.1075001794571899]
[null,null,null,null,null,null,null,null,null,null,null,null,null,null,null,null,null,null,-2541.192037436369,1.739231267231605]
[null,null,null,null,null,null,null,null,null,null,null,null,null,null,null,null,null,null,-44540.933109634847,2.5126913279388323]

{"sheet":"Changes log","index":56,"n_rows":37,"n_cols":4,"rows_kept":37,"cut":false,"hidden":false,"merged":[]}
[]
[null,"Name (initials)","Date","Action"]
[]
[]
[]
[]
[]
[]
[]
[]
[]
[]
[]
[]
[]
[]
[]
[]
[]
[]
[]
[]
[]
[]
[]
[]
[]
[]
[]
[]
[]
[]
[]
[]
[]
[]
[null,"* For guidance on keeping a model changes, please see accompanying notes R:\\Templates\\New Templates\\Model Template\\Project log guidance.pptx"]

{"sheet":"Sheet2","index":57,"n_rows":0,"n_cols":0,"rows_kept":0,"cut":false,"hidden":false,"merged":[]}

{"sheet":"Sheet1","index":58,"n_rows":0,"n_cols":0,"rows_kept":0,"cut":false,"hidden":false,"merged":[]}